Workbook

Sheet code436 (hidden)
G1: 1 | H1: district_code | I1: district_short_name | J1: Select an lea
G2: 2 | H2: 001 | I2: ABINGTON | J2: =H2&" "&I2 -> 001 ABINGTON
G3: 3 | H3: 002 | I3: ACTON | J3: =H3&" "&I3 -> 002 ACTON
G4: 4 | H4: 003 | I4: ACUSHNET | J4: 003 ACUSHNET
G5: 5 | H5: 004 | I5: ADAMS | J5: 004 ADAMS
G6: 6 | H6: 005 | I6: AGAWAM | J6: 005 AGAWAM
G7: 7 | H7: 006 | I7: ALFORD | J7: 006 ALFORD
G8: 8 | H8: 007 | I8: AMESBURY | J8: 007 AMESBURY
A9: lea | B9: dist | C9: string | D9: order436 | E9: operating | G9: 9 | H9: 008 | I9: AMHERST | J9: 008 AMHERST
A10: 1 | B10: ABINGTON | C10: 001 | D10: 1 | E10: 1 | G10: 10 | H10: 009 | I10: ANDOVER | J10: 009 ANDOVER
A11: 2 | B11: ACTON | C11: 002 | D11: 2 | E11: 0 | G11: 11 | H11: 010 | I11: ARLINGTON | J11: 010 ARLINGTON
A12: 3 | B12: ACUSHNET | C12: 003 | D12: 3 | E12: 1 | G12: 12 | H12: 011 | I12: ASHBURNHAM | J12: 011 ASHBURNHAM
A13: 4 | B13: ADAMS | C13: 004 | D13: 4 | E13: 0 | G13: 13 | H13: 012 | I13: ASHBY | J13: 012 ASHBY
A14: 5 | B14: AGAWAM | C14: 005 | D14: 5 | E14: 1 | G14: 14 | H14: 013 | I14: ASHFIELD | J14: 013 ASHFIELD
A15: 6 | B15: ALFORD | C15: 006 | D15: 6 | E15: 0 | G15: 15 | H15: 014 | I15: ASHLAND | J15: 014 ASHLAND
A16: 7 | B16: AMESBURY | C16: 007 | D16: 7 | E16: 1 | G16: 16 | H16: 015 | I16: ATHOL | J16: 015 ATHOL
A17: 8 | B17: AMHERST | C17: 008 | D17: 8 | E17: 1 | G17: 17 | H17: 016 | I17: ATTLEBORO | J17: 016 ATTLEBORO
A18: 9 | B18: ANDOVER | C18: 009 | D18: 9 | E18: 1 | G18: 18 | H18: 017 | I18: AUBURN | J18: 017 AUBURN
A19: 10 | B19: ARLINGTON | C19: 010 | D19: 10 | E19: 1 | G19: 19 | H19: 018 | I19: AVON | J19: 018 AVON
A20: 11 | B20: ASHBURNHAM | C20: 011 | D20: 11 | E20: 0 | G20: 20 | H20: 019 | I20: AYER | J20: 019 AYER
A21: 12 | B21: ASHBY | C21: 012 | D21: 12 | E21: 0 | G21: 21 | H21: 020 | I21: BARNSTABLE | J21: 020 BARNSTABLE
A22: 13 | B22: ASHFIELD | C22: 013 | D22: 13 | E22: 0 | G22: 22 | H22: 021 | I22: BARRE | J22: 021 BARRE
A23: 14 | B23: ASHLAND | C23: 014 | D23: 14 | E23: 1 | G23: 23 | H23: 022 | I23: BECKET | J23: 022 BECKET
A24: 15 | B24: ATHOL | C24: 015 | D24: 15 | E24: 0 | G24: 24 | H24: 023 | I24: BEDFORD | J24: 023 BEDFORD
A25: 16 | B25: ATTLEBORO | C25: 016 | D25: 16 | E25: 1 | G25: 25 | H25: 024 | I25: BELCHERTOWN | J25: 024 BELCHERTOWN
A26: 17 | B26: AUBURN | C26: 017 | D26: 17 | E26: 1 | G26: 26 | H26: 025 | I26: BELLINGHAM | J26: 025 BELLINGHAM
A27: 18 | B27: AVON | C27: 018 | D27: 18 | E27: 1 | G27: 27 | H27: 026 | I27: BELMONT | J27: 026 BELMONT
A28: 19 | B28: AYER | C28: 019 | D28: 19 | E28: 0 | G28: 28 | H28: 027 | I28: BERKLEY | J28: 027 BERKLEY
A29: 20 | B29: BARNSTABLE | C29: 020 | D29: 20 | E29: 1 | G29: 29 | H29: 028 | I29: BERLIN | J29: 028 BERLIN
A30: 21 | B30: BARRE | C30: 021 | D30: 21 | E30: 0 | G30: 30 | H30: 029 | I30: BERNARDSTON | J30: 029 BERNARDSTON
A31: 22 | B31: BECKET | C31: 022 | D31: 22 | E31: 0 | G31: 31 | H31: 030 | I31: BEVERLY | J31: 030 BEVERLY
A32: 23 | B32: BEDFORD | C32: 023 | D32: 23 | E32: 1 | G32: 32 | H32: 031 | I32: BILLERICA | J32: 031 BILLERICA
A33: 24 | B33: BELCHERTOWN | C33: 024 | D33: 24 | E33: 1 | G33: 33 | H33: 032 | I33: BLACKSTONE | J33: 032 BLACKSTONE
A34: 25 | B34: BELLINGHAM | C34: 025 | D34: 25 | E34: 1 | G34: 34 | H34: 033 | I34: BLANDFORD | J34: 033 BLANDFORD
A35: 26 | B35: BELMONT | C35: 026 | D35: 26 | E35: 1 | G35: 35 | H35: 034 | I35: BOLTON | J35: 034 BOLTON
A36: 27 | B36: BERKLEY | C36: 027 | D36: 27 | E36: 1 | G36: 36 | H36: 035 | I36: BOSTON | J36: 035 BOSTON
A37: 28 | B37: BERLIN | C37: 028 | D37: 28 | E37: 1 | G37: 37 | H37: 036 | I37: BOURNE | J37: 036 BOURNE
A38: 29 | B38: BERNARDSTON | C38: 029 | D38: 29 | E38: 0 | G38: 38 | H38: 037 | I38: BOXBOROUGH | J38: 037 BOXBOROUGH
A39: 30 | B39: BEVERLY | C39: 030 | D39: 30 | E39: 1 | G39: 39 | H39: 038 | I39: BOXFORD | J39: 038 BOXFORD
A40: 31 | B40: BILLERICA | C40: 031 | D40: 31 | E40: 1 | G40: 40 | H40: 039 | I40: BOYLSTON | J40: 039 BOYLSTON
A41: 32 | B41: BLACKSTONE | C41: 032 | D41: 32 | E41: 0 | G41: 41 | H41: 040 | I41: BRAINTREE | J41: 040 BRAINTREE
A42: 33 | B42: BLANDFORD | C42: 033 | D42: 33 | E42: 0 | G42: 42 | H42: 041 | I42: BREWSTER | J42: 041 BREWSTER
A43: 34 | B43: BOLTON | C43: 034 | D43: 34 | E43: 0 | G43: 43 | H43: 042 | I43: BRIDGEWATER | J43: 042 BRIDGEWATER
A44: 35 | B44: BOSTON | C44: 035 | D44: 35 | E44: 1 | G44: 44 | H44: 043 | I44: BRIMFIELD | J44: 043 BRIMFIELD
A45: 36 | B45: BOURNE | C45: 036 | D45: 36 | E45: 1 | G45: 45 | H45: 044 | I45: BROCKTON | J45: 044 BROCKTON
A46: 37 | B46: BOXBOROUGH | C46: 037 | D46: 37 | E46: 0 | G46: 46 | H46: 045 | I46: BROOKFIELD | J46: 045 BROOKFIELD
A47: 38 | B47: BOXFORD | C47: 038 | D47: 38 | E47: 1 | G47: 47 | H47: 046 | I47: BROOKLINE | J47: 046 BROOKLINE
A48: 39 | B48: BOYLSTON | C48: 039 | D48: 39 | E48: 1 | G48: 48 | H48: 047 | I48: BUCKLAND | J48: 047 BUCKLAND
A49: 40 | B49: BRAINTREE | C49: 040 | D49: 40 | E49: 1 | G49: 49 | H49: 048 | I49: BURLINGTON | J49: 048 BURLINGTON
A50: 41 | B50: BREWSTER | C50: 041 | D50: 41 | E50: 1 | G50: 50 | H50: 049 | I50: CAMBRIDGE | J50: 049 CAMBRIDGE
A51: 42 | B51: BRIDGEWATER | C51: 042 | D51: 42 | E51: 0 | G51: 51 | H51: 050 | I51: CANTON | J51: 050 CANTON
A52: 43 | B52: BRIMFIELD | C52: 043 | D52: 43 | E52: 1 | G52: 52 | H52: 051 | I52: CARLISLE | J52: 051 CARLISLE
A53: 44 | B53: BROCKTON | C53: 044 | D53: 44 | E53: 1 | G53: 53 | H53: 052 | I53: CARVER | J53: 052 CARVER
A54: 45 | B54: BROOKFIELD | C54: 045 | D54: 45 | E54: 1 | G54: 54 | H54: 053 | I54: CHARLEMONT | J54: 053 CHARLEMONT
A55: 46 | B55: BROOKLINE | C55: 046 | D55: 46 | E55: 1 | G55: 55 | H55: 054 | I55: CHARLTON | J55: 054 CHARLTON
A56: 47 | B56: BUCKLAND | C56: 047 | D56: 47 | E56: 0 | G56: 56 | H56: 055 | I56: CHATHAM | J56: 055 CHATHAM
A57: 48 | B57: BURLINGTON | C57: 048 | D57: 48 | E57: 1 | G57: 57 | H57: 056 | I57: CHELMSFORD | J57: 056 CHELMSFORD
A58: 49 | B58: CAMBRIDGE | C58: 049 | D58: 49 | E58: 1 | G58: 58 | H58: 057 | I58: CHELSEA | J58: 057 CHELSEA
A59: 50 | B59: CANTON | C59: 050 | D59: 50 | E59: 1 | G59: 59 | H59: 058 | I59: CHESHIRE | J59: 058 CHESHIRE
A60: 51 | B60: CARLISLE | C60: 051 | D60: 51 | E60: 1 | G60: 60 | H60: 059 | I60: CHESTER | J60: 059 CHESTER
A61: 52 | B61: CARVER | C61: 052 | D61: 52 | E61: 1 | G61: 61 | H61: 060 | I61: CHESTERFIELD | J61: 060 CHESTERFIELD
A62: 53 | B62: CHARLEMONT | C62: 053 | D62: 53 | E62: 0 | G62: 62 | H62: 061 | I62: CHICOPEE | J62: 061 CHICOPEE
A63: 54 | B63: CHARLTON | C63: 054 | D63: 54 | E63: 0 | G63: 63 | H63: 062 | I63: CHILMARK | J63: 062 CHILMARK
A64: 55 | B64: CHATHAM | C64: 055 | D64: 55 | E64: 1 | G64: 64 | H64: 063 | I64: CLARKSBURG | J64: 063 CLARKSBURG
A65: 56 | B65: CHELMSFORD | C65: 056 | D65: 56 | E65: 1 | G65: 65 | H65: 064 | I65: CLINTON | J65: 064 CLINTON
A66: 57 | B66: CHELSEA | C66: 057 | D66: 57 | E66: 1 | G66: 66 | H66: 065 | I66: COHASSET | J66: 065 COHASSET
A67: 58 | B67: CHESHIRE | C67: 058 | D67: 58 | E67: 0 | G67: 67 | H67: 066 | I67: COLRAIN | J67: =H67&" "&I67 -> 066 COLRAIN
A68: 59 | B68: CHESTER | C68: 059 | D68: 59 | E68: 0 | G68: 68 | H68: 067 | I68: CONCORD | J68: 067 CONCORD
A69: 60 | B69: CHESTERFIELD | C69: 060 | D69: 60 | E69: 0 | G69: 69 | H69: 068 | I69: CONWAY | J69: 068 CONWAY
A70: 61 | B70: CHICOPEE | C70: 061 | D70: 61 | E70: 1 | G70: 70 | H70: 069 | I70: CUMMINGTON | J70: 069 CUMMINGTON
A71: 62 | B71: CHILMARK | C71: 062 | D71: 62 | E71: 0 | G71: 71 | H71: 070 | I71: DALTON | J71: 070 DALTON
A72: 63 | B72: CLARKSBURG | C72: 063 | D72: 63 | E72: 1 | G72: 72 | H72: 071 | I72: DANVERS | J72: 071 DANVERS
A73: 64 | B73: CLINTON | C73: 064 | D73: 64 | E73: 1 | G73: 73 | H73: 072 | I73: DARTMOUTH | J73: 072 DARTMOUTH
A74: 65 | B74: COHASSET | C74: 065 | D74: 65 | E74: 1 | G74: 74 | H74: 073 | I74: DEDHAM | J74: 073 DEDHAM
A75: 66 | B75: COLRAIN | C75: 066 | D75: 66 | E75: 0 | G75: 75 | H75: 074 | I75: DEERFIELD | J75: 074 DEERFIELD
A76: 67 | B76: CONCORD | C76: 067 | D76: 67 | E76: 1 | G76: 76 | H76: 075 | I76: DENNIS | J76: 075 DENNIS
A77: 68 | B77: CONWAY | C77: 068 | D77: 68 | E77: 1 | G77: 77 | H77: 076 | I77: DIGHTON | J77: 076 DIGHTON
A78: 69 | B78: CUMMINGTON | C78: 069 | D78: 69 | E78: 0 | G78: 78 | H78: 077 | I78: DOUGLAS | J78: 077 DOUGLAS
A79: 70 | B79: DALTON | C79: 070 | D79: 70 | E79: 0 | G79: 79 | H79: 078 | I79: DOVER | J79: 078 DOVER
A80: 71 | B80: DANVERS | C80: 071 | D80: 71 | E80: 1 | G80: 80 | H80: 079 | I80: DRACUT | J80: 079 DRACUT
A81: 72 | B81: DARTMOUTH | C81: 072 | D81: 72 | E81: 1 | G81: 81 | H81: 080 | I81: DUDLEY | J81: 080 DUDLEY
A82: 73 | B82: DEDHAM | C82: 073 | D82: 73 | E82: 1 | G82: 82 | H82: 081 | I82: DUNSTABLE | J82: 081 DUNSTABLE
A83: 74 | B83: DEERFIELD | C83: 074 | D83: 74 | E83: 1 | G83: 83 | H83: 082 | I83: DUXBURY | J83: 082 DUXBURY
A84: 75 | B84: DENNIS | C84: 075 | D84: 75 | E84: 0 | G84: 84 | H84: 083 | I84: EAST BRIDGEWATER | J84: 083 EAST BRIDGEWATER
A85: 76 | B85: DIGHTON | C85: 076 | D85: 76 | E85: 0 | G85: 85 | H85: 084 | I85: EAST BROOKFIELD | J85: 084 EAST BROOKFIELD
A86: 77 | B86: DOUGLAS | C86: 077 | D86: 77 | E86: 1 | G86: 86 | H86: 085 | I86: EASTHAM | J86: 085 EASTHAM
A87: 78 | B87: DOVER | C87: 078 | D87: 78 | E87: 1 | G87: 87 | H87: 086 | I87: EASTHAMPTON | J87: 086 EASTHAMPTON
A88: 79 | B88: DRACUT | C88: 079 | D88: 79 | E88: 1 | G88: 88 | H88: 087 | I88: EAST LONGMEADOW | J88: 087 EAST LONGMEADOW
A89: 80 | B89: DUDLEY | C89: 080 | D89: 80 | E89: 0 | G89: 89 | H89: 088 | I89: EASTON | J89: 088 EASTON
A90: 81 | B90: DUNSTABLE | C90: 081 | D90: 81 | E90: 0 | G90: 90 | H90: 089 | I90: EDGARTOWN | J90: 089 EDGARTOWN
A91: 82 | B91: DUXBURY | C91: 082 | D91: 82 | E91: 1 | G91: 91 | H91: 090 | I91: EGREMONT | J91: 090 EGREMONT
A92: 83 | B92: EAST BRIDGEWATER | C92: 083 | D92: 83 | E92: 1 | G92: 92 | H92: 091 | I92: ERVING | J92: 091 ERVING
A93: 84 | B93: EAST BROOKFIELD | C93: 084 | D93: 84 | E93: 0 | G93: 93 | H93: 092 | I93: ESSEX | J93: 092 ESSEX
A94: 85 | B94: EASTHAM | C94: 085 | D94: 85 | E94: 1 | G94: 94 | H94: 093 | I94: EVERETT | J94: 093 EVERETT
A95: 86 | B95: EASTHAMPTON | C95: 086 | D95: 86 | E95: 1 | G95: 95 | H95: 094 | I95: FAIRHAVEN | J95: 094 FAIRHAVEN
A96: 87 | B96: EAST LONGMEADOW | C96: 087 | D96: 87 | E96: 1 | G96: 96 | H96: 095 | I96: FALL RIVER | J96: 095 FALL RIVER
A97: 88 | B97: EASTON | C97: 088 | D97: 88 | E97: 1 | G97: 97 | H97: 096 | I97: FALMOUTH | J97: 096 FALMOUTH
A98: 89 | B98: EDGARTOWN | C98: 089 | D98: 89 | E98: 1 | G98: 98 | H98: 097 | I98: FITCHBURG | J98: 097 FITCHBURG
A99: 90 | B99: EGREMONT | C99: 090 | D99: 90 | E99: 0 | G99: 99 | H99: 098 | I99: FLORIDA | J99: 098 FLORIDA
A100: 91 | B100: ERVING | C100: 091 | D100: 91 | E100: 1 | G100: 100 | H100: 099 | I100: FOXBOROUGH | J100: 099 FOXBOROUGH
A101: 92 | B101: ESSEX | C101: 092 | D101: 92 | E101: 0 | G101: 101 | H101: 100 | I101: FRAMINGHAM | J101: 100 FRAMINGHAM
A102: 93 | B102: EVERETT | C102: 093 | D102: 93 | E102: 1 | G102: 102 | H102: 101 | I102: FRANKLIN | J102: 101 FRANKLIN
A103: 94 | B103: FAIRHAVEN | C103: 094 | D103: 94 | E103: 1 | G103: 103 | H103: 102 | I103: FREETOWN | J103: 102 FREETOWN
A104: 95 | B104: FALL RIVER | C104: 095 | D104: 95 | E104: 1 | G104: 104 | H104: 103 | I104: GARDNER | J104: 103 GARDNER
A105: 96 | B105: FALMOUTH | C105: 096 | D105: 96 | E105: 1 | G105: 105 | H105: 104 | I105: GAY HEAD | J105: 104 GAY HEAD
A106: 97 | B106: FITCHBURG | C106: 097 | D106: 97 | E106: 1 | G106: 106 | H106: 105 | I106: GEORGETOWN | J106: 105 GEORGETOWN
A107: 98 | B107: FLORIDA | C107: 098 | D107: 98 | E107: 1 | G107: 107 | H107: 106 | I107: GILL | J107: 106 GILL
A108: 99 | B108: FOXBOROUGH | C108: 099 | D108: 99 | E108: 1 | G108: 108 | H108: 107 | I108: GLOUCESTER | J108: 107 GLOUCESTER
A109: 100 | B109: FRAMINGHAM | C109: 100 | D109: 100 | E109: 1 | G109: 109 | H109: 108 | I109: GOSHEN | J109: 108 GOSHEN
A110: 101 | B110: FRANKLIN | C110: 101 | D110: 101 | E110: 1 | G110: 110 | H110: 109 | I110: GOSNOLD | J110: 109 GOSNOLD
A111: 102 | B111: FREETOWN | C111: 102 | D111: 102 | E111: 0 | G111: 111 | H111: 110 | I111: GRAFTON | J111: 110 GRAFTON
A112: 103 | B112: GARDNER | C112: 103 | D112: 103 | E112: 1 | G112: 112 | H112: 111 | I112: GRANBY | J112: 111 GRANBY
A113: 104 | B113: GAY HEAD | C113: 104 | D113: 104 | E113: 0 | G113: 113 | H113: 112 | I113: GRANVILLE | J113: 112 GRANVILLE
A114: 105 | B114: GEORGETOWN | C114: 105 | D114: 105 | E114: 1 | G114: 114 | H114: 113 | I114: GREAT BARRINGTON | J114: 113 GREAT BARRINGTON
A115: 106 | B115: GILL | C115: 106 | D115: 106 | E115: 0 | G115: 115 | H115: 114 | I115: GREENFIELD | J115: 114 GREENFIELD
A116: 107 | B116: GLOUCESTER | C116: 107 | D116: 107 | E116: 1 | G116: 116 | H116: 115 | I116: GROTON | J116: 115 GROTON
A117: 108 | B117: GOSHEN | C117: 108 | D117: 108 | E117: 0 | G117: 117 | H117: 116 | I117: GROVELAND | J117: 116 GROVELAND
A118: 109 | B118: GOSNOLD | C118: 109 | D118: 109 | E118: 0 | G118: 118 | H118: 117 | I118: HADLEY | J118: 117 HADLEY
A119: 110 | B119: GRAFTON | C119: 110 | D119: 110 | E119: 1 | G119: 119 | H119: 118 | I119: HALIFAX | J119: 118 HALIFAX
A120: 111 | B120: GRANBY | C120: 111 | D120: 111 | E120: 1 | G120: 120 | H120: 119 | I120: HAMILTON | J120: 119 HAMILTON
A121: 112 | B121: GRANVILLE | C121: 112 | D121: 112 | E121: 1 | G121: 121 | H121: 120 | I121: HAMPDEN | J121: 120 HAMPDEN
A122: 113 | B122: GREAT BARRINGTON | C122: 113 | D122: 113 | E122: 0 | G122: 122 | H122: 121 | I122: HANCOCK | J122: 121 HANCOCK
A123: 114 | B123: GREENFIELD | C123: 114 | D123: 114 | E123: 1 | G123: 123 | H123: 122 | I123: HANOVER | J123: 122 HANOVER
A124: 115 | B124: GROTON | C124: 115 | D124: 115 | E124: 0 | G124: 124 | H124: 123 | I124: HANSON | J124: 123 HANSON
A125: 116 | B125: GROVELAND | C125: 116 | D125: 116 | E125: 0 | G125: 125 | H125: 124 | I125: HARDWICK | J125: 124 HARDWICK
A126: 117 | B126: HADLEY | C126: 117 | D126: 117 | E126: 1 | G126: 126 | H126: 125 | I126: HARVARD | J126: 125 HARVARD
A127: 118 | B127: HALIFAX | C127: 118 | D127: 118 | E127: 1 | G127: 127 | H127: 126 | I127: HARWICH | J127: 126 HARWICH
A128: 119 | B128: HAMILTON | C128: 119 | D128: 119 | E128: 0 | G128: 128 | H128: 127 | I128: HATFIELD | J128: 127 HATFIELD
A129: 120 | B129: HAMPDEN | C129: 120 | D129: 120 | E129: 0 | G129: 129 | H129: 128 | I129: HAVERHILL | J129: 128 HAVERHILL
A130: 121 | B130: HANCOCK | C130: 121 | D130: 121 | E130: 1 | G130: 130 | H130: 129 | I130: HAWLEY | J130: 129 HAWLEY
A131: 122 | B131: HANOVER | C131: 122 | D131: 122 | E131: 1 | G131: 131 | H131: 130 | I131: HEATH | J131: =H131&" "&I131 -> 130 HEATH
A132: 123 | B132: HANSON | C132: 123 | D132: 123 | E132: 0 | G132: 132 | H132: 131 | I132: HINGHAM | J132: 131 HINGHAM
A133: 124 | B133: HARDWICK | C133: 124 | D133: 124 | E133: 0 | G133: 133 | H133: 132 | I133: HINSDALE | J133: 132 HINSDALE
A134: 125 | B134: HARVARD | C134: 125 | D134: 125 | E134: 1 | G134: 134 | H134: 133 | I134: HOLBROOK | J134: 133 HOLBROOK
A135: 126 | B135: HARWICH | C135: 126 | D135: 126 | E135: 1 | G135: 135 | H135: 134 | I135: HOLDEN | J135: 134 HOLDEN
A136: 127 | B136: HATFIELD | C136: 127 | D136: 127 | E136: 1 | G136: 136 | H136: 135 | I136: HOLLAND | J136: 135 HOLLAND
A137: 128 | B137: HAVERHILL | C137: 128 | D137: 128 | E137: 1 | G137: 137 | H137: 136 | I137: HOLLISTON | J137: 136 HOLLISTON
A138: 129 | B138: HAWLEY | C138: 129 | D138: 129 | E138: 0 | G138: 138 | H138: 137 | I138: HOLYOKE | J138: 137 HOLYOKE
A139: 130 | B139: HEATH | C139: 130 | D139: 130 | E139: 0 | G139: 139 | H139: 138 | I139: HOPEDALE | J139: 138 HOPEDALE
A140: 131 | B140: HINGHAM | C140: 131 | D140: 131 | E140: 1 | G140: 140 | H140: 139 | I140: HOPKINTON | J140: 139 HOPKINTON
A141: 132 | B141: HINSDALE | C141: 132 | D141: 132 | E141: 0 | G141: 141 | H141: 140 | I141: HUBBARDSTON | J141: 140 HUBBARDSTON
A142: 133 | B142: HOLBROOK | C142: 133 | D142: 133 | E142: 1 | G142: 142 | H142: 141 | I142: HUDSON | J142: 141 HUDSON
A143: 134 | B143: HOLDEN | C143: 134 | D143: 134 | E143: 0 | G143: 143 | H143: 142 | I143: HULL | J143: 142 HULL
A144: 135 | B144: HOLLAND | C144: 135 | D144: 135 | E144: 1 | G144: 144 | H144: 143 | I144: HUNTINGTON | J144: 143 HUNTINGTON
A145: 136 | B145: HOLLISTON | C145: 136 | D145: 136 | E145: 1 | G145: 145 | H145: 144 | I145: IPSWICH | J145: 144 IPSWICH
A146: 137 | B146: HOLYOKE | C146: 137 | D146: 137 | E146: 1 | G146: 146 | H146: 145 | I146: KINGSTON | J146: 145 KINGSTON
A147: 138 | B147: HOPEDALE | C147: 138 | D147: 138 | E147: 1 | G147: 147 | H147: 146 | I147: LAKEVILLE | J147: 146 LAKEVILLE
A148: 139 | B148: HOPKINTON | C148: 139 | D148: 139 | E148: 1 | G148: 148 | H148: 147 | I148: LANCASTER | J148: 147 LANCASTER
A149: 140 | B149: HUBBARDSTON | C149: 140 | D149: 140 | E149: 0 | G149: 149 | H149: 148 | I149: LANESBOROUGH | J149: 148 LANESBOROUGH
A150: 141 | B150: HUDSON | C150: 141 | D150: 141 | E150: 1 | G150: 150 | H150: 149 | I150: LAWRENCE | J150: 149 LAWRENCE
A151: 142 | B151: HULL | C151: 142 | D151: 142 | E151: 1 | G151: 151 | H151: 150 | I151: LEE | J151: 150 LEE
A152: 143 | B152: HUNTINGTON | C152: 143 | D152: 143 | E152: 0 | G152: 152 | H152: 151 | I152: LEICESTER | J152: 151 LEICESTER
A153: 144 | B153: IPSWICH | C153: 144 | D153: 144 | E153: 1 | G153: 153 | H153: 152 | I153: LENOX | J153: 152 LENOX
A154: 145 | B154: KINGSTON | C154: 145 | D154: 145 | E154: 1 | G154: 154 | H154: 153 | I154: LEOMINSTER | J154: 153 LEOMINSTER
A155: 146 | B155: LAKEVILLE | C155: 146 | D155: 146 | E155: 0 | G155: 155 | H155: 154 | I155: LEVERETT | J155: 154 LEVERETT
A156: 147 | B156: LANCASTER | C156: 147 | D156: 147 | E156: 0 | G156: 156 | H156: 155 | I156: LEXINGTON | J156: 155 LEXINGTON
A157: 148 | B157: LANESBOROUGH | C157: 148 | D157: 148 | E157: 1 | G157: 157 | H157: 156 | I157: LEYDEN | J157: 156 LEYDEN
A158: 149 | B158: LAWRENCE | C158: 149 | D158: 149 | E158: 1 | G158: 158 | H158: 157 | I158: LINCOLN | J158: 157 LINCOLN
A159: 150 | B159: LEE | C159: 150 | D159: 150 | E159: 1 | G159: 159 | H159: 158 | I159: LITTLETON | J159: 158 LITTLETON
A160: 151 | B160: LEICESTER | C160: 151 | D160: 151 | E160: 1 | G160: 160 | H160: 159 | I160: LONGMEADOW | J160: 159 LONGMEADOW
A161: 152 | B161: LENOX | C161: 152 | D161: 152 | E161: 1 | G161: 161 | H161: 160 | I161: LOWELL | J161: 160 LOWELL
A162: 153 | B162: LEOMINSTER | C162: 153 | D162: 153 | E162: 1 | G162: 162 | H162: 161 | I162: LUDLOW | J162: 161 LUDLOW
A163: 154 | B163: LEVERETT | C163: 154 | D163: 154 | E163: 1 | G163: 163 | H163: 162 | I163: LUNENBURG | J163: 162 LUNENBURG
A164: 155 | B164: LEXINGTON | C164: 155 | D164: 155 | E164: 1 | G164: 164 | H164: 163 | I164: LYNN | J164: 163 LYNN
A165: 156 | B165: LEYDEN | C165: 156 | D165: 156 | E165: 0 | G165: 165 | H165: 164 | I165: LYNNFIELD | J165: 164 LYNNFIELD
A166: 157 | B166: LINCOLN | C166: 157 | D166: 157 | E166: 1 | G166: 166 | H166: 165 | I166: MALDEN | J166: 165 MALDEN
A167: 158 | B167: LITTLETON | C167: 158 | D167: 158 | E167: 1 | G167: 167 | H167: 166 | I167: MANCHESTER | J167: 166 MANCHESTER
A168: 159 | B168: LONGMEADOW | C168: 159 | D168: 159 | E168: 1 | G168: 168 | H168: 167 | I168: MANSFIELD | J168: 167 MANSFIELD
A169: 160 | B169: LOWELL | C169: 160 | D169: 160 | E169: 1 | G169: 169 | H169: 168 | I169: MARBLEHEAD | J169: 168 MARBLEHEAD
A170: 161 | B170: LUDLOW | C170: 161 | D170: 161 | E170: 1 | G170: 170 | H170: 169 | I170: MARION | J170: 169 MARION
A171: 162 | B171: LUNENBURG | C171: 162 | D171: 162 | E171: 1 | G171: 171 | H171: 170 | I171: MARLBOROUGH | J171: 170 MARLBOROUGH
A172: 163 | B172: LYNN | C172: 163 | D172: 163 | E172: 1 | G172: 172 | H172: 171 | I172: MARSHFIELD | J172: 171 MARSHFIELD
A173: 164 | B173: LYNNFIELD | C173: 164 | D173: 164 | E173: 1 | G173: 173 | H173: 172 | I173: MASHPEE | J173: 172 MASHPEE
A174: 165 | B174: MALDEN | C174: 165 | D174: 165 | E174: 1 | G174: 174 | H174: 173 | I174: MATTAPOISETT | J174: 173 MATTAPOISETT
A175: 166 | B175: MANCHESTER | C175: 166 | D175: 166 | E175: 0 | G175: 175 | H175: 174 | I175: MAYNARD | J175: 174 MAYNARD
A176: 167 | B176: MANSFIELD | C176: 167 | D176: 167 | E176: 1 | G176: 176 | H176: 175 | I176: MEDFIELD | J176: 175 MEDFIELD
A177: 168 | B177: MARBLEHEAD | C177: 168 | D177: 168 | E177: 1 | G177: 177 | H177: 176 | I177: MEDFORD | J177: 176 MEDFORD
A178: 169 | B178: MARION | C178: 169 | D178: 169 | E178: 1 | G178: 178 | H178: 177 | I178: MEDWAY | J178: 177 MEDWAY
A179: 170 | B179: MARLBOROUGH | C179: 170 | D179: 170 | E179: 1 | G179: 179 | H179: 178 | I179: MELROSE | J179: 178 MELROSE
A180: 171 | B180: MARSHFIELD | C180: 171 | D180: 171 | E180: 1 | G180: 180 | H180: 179 | I180: MENDON | J180: 179 MENDON
A181: 172 | B181: MASHPEE | C181: 172 | D181: 172 | E181: 1 | G181: 181 | H181: 180 | I181: MERRIMAC | J181: 180 MERRIMAC
A182: 173 | B182: MATTAPOISETT | C182: 173 | D182: 173 | E182: 1 | G182: 182 | H182: 181 | I182: METHUEN | J182: 181 METHUEN
A183: 174 | B183: MAYNARD | C183: 174 | D183: 174 | E183: 1 | G183: 183 | H183: 182 | I183: MIDDLEBOROUGH | J183: 182 MIDDLEBOROUGH
A184: 175 | B184: MEDFIELD | C184: 175 | D184: 175 | E184: 1 | G184: 184 | H184: 183 | I184: MIDDLEFIELD | J184: 183 MIDDLEFIELD
A185: 176 | B185: MEDFORD | C185: 176 | D185: 176 | E185: 1 | G185: 185 | H185: 184 | I185: MIDDLETON | J185: 184 MIDDLETON
A186: 177 | B186: MEDWAY | C186: 177 | D186: 177 | E186: 1 | G186: 186 | H186: 185 | I186: MILFORD | J186: 185 MILFORD
A187: 178 | B187: MELROSE | C187: 178 | D187: 178 | E187: 1 | G187: 187 | H187: 186 | I187: MILLBURY | J187: 186 MILLBURY
A188: 179 | B188: MENDON | C188: 179 | D188: 179 | E188: 0 | G188: 188 | H188: 187 | I188: MILLIS | J188: 187 MILLIS
A189: 180 | B189: MERRIMAC | C189: 180 | D189: 180 | E189: 0 | G189: 189 | H189: 188 | I189: MILLVILLE | J189: 188 MILLVILLE
A190: 181 | B190: METHUEN | C190: 181 | D190: 181 | E190: 1 | G190: 190 | H190: 189 | I190: MILTON | J190: 189 MILTON
A191: 182 | B191: MIDDLEBOROUGH | C191: 182 | D191: 182 | E191: 1 | G191: 191 | H191: 190 | I191: MONROE | J191: 190 MONROE
A192: 183 | B192: MIDDLEFIELD | C192: 183 | D192: 183 | E192: 0 | G192: 192 | H192: 191 | I192: MONSON | J192: 191 MONSON
A193: 184 | B193: MIDDLETON | C193: 184 | D193: 184 | E193: 1 | G193: 193 | H193: 192 | I193: MONTAGUE | J193: 192 MONTAGUE
A194: 185 | B194: MILFORD | C194: 185 | D194: 185 | E194: 1 | G194: 194 | H194: 193 | I194: MONTEREY | J194: 193 MONTEREY
A195: 186 | B195: MILLBURY | C195: 186 | D195: 186 | E195: 1 | G195: 195 | H195: 194 | I195: MONTGOMERY | J195: =H195&" "&I195 -> 194 MONTGOMERY
A196: 187 | B196: MILLIS | C196: 187 | D196: 187 | E196: 1 | G196: 196 | H196: 195 | I196: MOUNT WASHINGTON | J196: 195 MOUNT WASHINGTON
A197: 188 | B197: MILLVILLE | C197: 188 | D197: 188 | E197: 0 | G197: 197 | H197: 196 | I197: NAHANT | J197: 196 NAHANT
A198: 189 | B198: MILTON | C198: 189 | D198: 189 | E198: 1 | G198: 198 | H198: 197 | I198: NANTUCKET | J198: 197 NANTUCKET
A199: 190 | B199: MONROE | C199: 190 | D199: 190 | E199: 0 | G199: 199 | H199: 198 | I199: NATICK | J199: 198 NATICK
A200: 191 | B200: MONSON | C200: 191 | D200: 191 | E200: 1 | G200: 200 | H200: 199 | I200: NEEDHAM | J200: 199 NEEDHAM
... 247 more rows

Sheet notes (hidden)
A1: ran december numbers at 5000 for everyone; didn't have time to update these rates in case someone came in below $5000
A4: notes16
A6: 2015-12-16 | B6: estimated membership because FY15 wasn’t ready, but did want to publish an estimated rate file
A7: 2015-12-16 | B7: updated eoy sheet
A8: 2015-12-16 | B8: updated rate summary (just the fiscal year in title)
A9: 2015-12-16 | B9: redid dataout
A10: 2015-12-16 | B10: redid webmessage
A11: 2015-12-16 | B11: updated tuitioncalc--just the fiscal year in title; no changes to the report
B13: for later postings use actual fy15 membership
B14: change wording on rate summary membership description
A16: 2016-06-15 | B16: re-rah AFTER finalizing distribution for lisa's deadline. Fortunately none of the rates were affected.

Sheet leas (hidden)
A1: first record | B1: 187
A2: lea | B2: =VLOOKUP(B1,order436,2) -> 885 | C2: =VLOOKUP(leaextract,code436,2) -> WHITTIER | D2: =VLOOKUP(leaextract,code436,3) -> 885
A4: last record | B4: 187
A5: lastlea | B5: =VLOOKUP(B4,order436,2) -> 885 | C5: =VLOOKUP(lastlea,code436,2) -> WHITTIER
K6: from webmessage, 1Y0 or 1T0
B7: To update the list, replace this column
B8: jun15
A9: order | B9: lea | D9: leastring | J9: lea | K9: dist | L9: ok?
A10: 1 | B10: =VALUE(J10) -> 1 | C10: =K10 -> ABINGTON | D10: =J10 -> 001 | J10: 001 | K10: ABINGTON | L10: 1Y0
A11: 2 | B11: =VALUE(J11) -> 5 | C11: =K11 -> AGAWAM | D11: =J11 -> 005 | J11: 005 | K11: AGAWAM | L11: 1Y0
A12: 3 | B12: 7 | C12: AMESBURY | D12: 007 | J12: 007 | K12: AMESBURY | L12: 1Y0
A13: 4 | B13: 8 | C13: AMHERST | D13: 008 | J13: 008 | K13: AMHERST | L13: 1Y0
A14: 5 | B14: 14 | C14: ASHLAND | D14: 014 | J14: 014 | K14: ASHLAND | L14: 1Y0
A15: 6 | B15: 17 | C15: AUBURN | D15: 017 | J15: 017 | K15: AUBURN | L15: 1Y0
A16: 7 | B16: 18 | C16: AVON | D16: 018 | J16: 018 | K16: AVON | L16: 1Y0
A17: 8 | B17: 20 | C17: BARNSTABLE | D17: 020 | J17: 020 | K17: BARNSTABLE | L17: 1Y0
A18: 9 | B18: 24 | C18: BELCHERTOWN | D18: 024 | J18: 024 | K18: BELCHERTOWN | L18: 1Y0
A19: 10 | B19: 25 | C19: BELLINGHAM | D19: 025 | J19: 025 | K19: BELLINGHAM | L19: 1Y0
A20: 11 | B20: 27 | C20: BERKLEY | D20: 027 | J20: 027 | K20: BERKLEY | L20: 1Y0
A21: 12 | B21: 28 | C21: BERLIN | D21: 028 | J21: 028 | K21: BERLIN | L21: 1Y0
A22: 13 | B22: 30 | C22: BEVERLY | D22: 030 | J22: 030 | K22: BEVERLY | L22: 1Y0
A23: 14 | B23: 36 | C23: BOURNE | D23: 036 | J23: 036 | K23: BOURNE | L23: 1Y0
A24: 15 | B24: 39 | C24: BOYLSTON | D24: 039 | J24: 039 | K24: BOYLSTON | L24: 1Y0
A25: 16 | B25: 44 | C25: BROCKTON | D25: 044 | J25: 044 | K25: BROCKTON | L25: 1Y0
A26: 17 | B26: 45 | C26: BROOKFIELD | D26: 045 | J26: 045 | K26: BROOKFIELD | L26: 1Y0
A27: 18 | B27: 48 | C27: BURLINGTON | D27: 048 | J27: 048 | K27: BURLINGTON | L27: 1Y0
A28: 19 | B28: 52 | C28: CARVER | D28: 052 | J28: 052 | K28: CARVER | L28: 1Y0
A29: 20 | B29: 56 | C29: CHELMSFORD | D29: 056 | J29: 056 | K29: CHELMSFORD | L29: 1Y0
A30: 21 | B30: 61 | C30: CHICOPEE | D30: 061 | J30: 061 | K30: CHICOPEE | L30: 1Y0
A31: 22 | B31: 63 | C31: CLARKSBURG | D31: 063 | J31: 063 | K31: CLARKSBURG | L31: 1Y0
A32: 23 | B32: 64 | C32: CLINTON | D32: 064 | J32: 064 | K32: CLINTON | L32: 1Y0
A33: 24 | B33: 68 | C33: CONWAY | D33: 068 | J33: 068 | K33: CONWAY | L33: 1Y0
A34: 25 | B34: 74 | C34: DEERFIELD | D34: 074 | J34: 074 | K34: DEERFIELD | L34: 1Y0
A35: 26 | B35: 77 | C35: DOUGLAS | D35: 077 | J35: 077 | K35: DOUGLAS | L35: 1T0
A36: 27 | B36: 79 | C36: DRACUT | D36: 079 | J36: 079 | K36: DRACUT | L36: 1Y0
A37: 28 | B37: 83 | C37: EAST BRIDGEWATER | D37: 083 | J37: 083 | K37: EAST BRIDGEWATER | L37: 1Y0
A38: 29 | B38: 86 | C38: EASTHAMPTON | D38: 086 | J38: 086 | K38: EASTHAMPTON | L38: 1Y0
A39: 30 | B39: 89 | C39: EDGARTOWN | D39: 089 | J39: 089 | K39: EDGARTOWN | L39: 1Y0
A40: 31 | B40: 94 | C40: FAIRHAVEN | D40: 094 | J40: 094 | K40: FAIRHAVEN | L40: 1Y0
A41: 32 | B41: 95 | C41: FALL RIVER | D41: 095 | J41: 095 | K41: FALL RIVER | L41: 1Y0
A42: 33 | B42: 96 | C42: FALMOUTH | D42: 096 | J42: 096 | K42: FALMOUTH | L42: 1Y0
A43: 34 | B43: 97 | C43: FITCHBURG | D43: 097 | J43: 097 | K43: FITCHBURG | L43: 1Y0
A44: 35 | B44: 98 | C44: FLORIDA | D44: 098 | J44: 098 | K44: FLORIDA | L44: 1Y0
A45: 36 | B45: 101 | C45: FRANKLIN | D45: 101 | J45: 101 | K45: FRANKLIN | L45: 1Y0
A46: 37 | B46: 103 | C46: GARDNER | D46: 103 | J46: 103 | K46: GARDNER | L46: 1Y0
A47: 38 | B47: 105 | C47: GEORGETOWN | D47: 105 | J47: 105 | K47: GEORGETOWN | L47: 1Y0
A48: 39 | B48: 107 | C48: GLOUCESTER | D48: 107 | J48: 107 | K48: GLOUCESTER | L48: 1Y0
A49: 40 | B49: 110 | C49: GRAFTON | D49: 110 | J49: 110 | K49: GRAFTON | L49: 1Y0
A50: 41 | B50: 111 | C50: GRANBY | D50: 111 | J50: 111 | K50: GRANBY | L50: 1Y0
A51: 42 | B51: 114 | C51: GREENFIELD | D51: 114 | J51: 114 | K51: GREENFIELD | L51: 1Y0
A52: 43 | B52: 117 | C52: HADLEY | D52: 117 | J52: 117 | K52: HADLEY | L52: 1Y0
A53: 44 | B53: 121 | C53: HANCOCK | D53: 121 | J53: 121 | K53: HANCOCK | L53: 1Y0
A54: 45 | B54: 125 | C54: HARVARD | D54: 125 | J54: 125 | K54: HARVARD | L54: 1Y0
A55: 46 | B55: 127 | C55: HATFIELD | D55: 127 | J55: 127 | K55: HATFIELD | L55: 1Y0
A56: 47 | B56: 128 | C56: HAVERHILL | D56: 128 | J56: 128 | K56: HAVERHILL | L56: 1Y0
A57: 48 | B57: 133 | C57: HOLBROOK | D57: 133 | J57: 133 | K57: HOLBROOK | L57: 1Y0
A58: 49 | B58: 135 | C58: HOLLAND | D58: 135 | J58: 135 | K58: HOLLAND | L58: 1Y0
A59: 50 | B59: 136 | C59: HOLLISTON | D59: 136 | J59: 136 | K59: HOLLISTON | L59: 1Y0
A60: 51 | B60: 137 | C60: HOLYOKE | D60: 137 | J60: 137 | K60: HOLYOKE | L60: 1Y0
A61: 52 | B61: 138 | C61: HOPEDALE | D61: 138 | J61: 138 | K61: HOPEDALE | L61: 1Y0
A62: 53 | B62: 141 | C62: HUDSON | D62: 141 | J62: 141 | K62: HUDSON | L62: 1Y0
A63: 54 | B63: 144 | C63: IPSWICH | D63: 144 | J63: 144 | K63: IPSWICH | L63: 1Y0
A64: 55 | B64: 148 | C64: LANESBOROUGH | D64: 148 | J64: 148 | K64: LANESBOROUGH | L64: 1Y0
A65: 56 | B65: 150 | C65: LEE | D65: 150 | J65: 150 | K65: LEE | L65: 1Y0
A66: 57 | B66: 151 | C66: LEICESTER | D66: 151 | J66: 151 | K66: LEICESTER | L66: 1Y0
A67: 58 | B67: 152 | C67: LENOX | D67: 152 | J67: 152 | K67: LENOX | L67: 1Y0
A68: 59 | B68: 153 | C68: LEOMINSTER | D68: 153 | J68: 153 | K68: LEOMINSTER | L68: 1Y0
A69: 60 | B69: 154 | C69: LEVERETT | D69: 154 | J69: 154 | K69: LEVERETT | L69: 1Y0
A70: 61 | B70: 158 | C70: LITTLETON | D70: 158 | J70: 158 | K70: LITTLETON | L70: 1Y0
A71: 62 | B71: 159 | C71: LONGMEADOW | D71: 159 | J71: 159 | K71: LONGMEADOW | L71: 1Y0
A72: 63 | B72: 161 | C72: LUDLOW | D72: 161 | J72: 161 | K72: LUDLOW | L72: 1T0
A73: 64 | B73: 162 | C73: LUNENBURG | D73: 162 | J73: 162 | K73: LUNENBURG | L73: 1Y0
A74: 65 | B74: 171 | C74: MARSHFIELD | D74: 171 | J74: 171 | K74: MARSHFIELD | L74: 1Y0
A75: 66 | B75: =VALUE(J75) -> 172 | C75: =K75 -> MASHPEE | D75: =J75 -> 172 | J75: 172 | K75: MASHPEE | L75: 1Y0
A76: 67 | B76: 173 | C76: MATTAPOISETT | D76: 173 | J76: 173 | K76: MATTAPOISETT | L76: 1Y0
A77: 68 | B77: 174 | C77: MAYNARD | D77: 174 | J77: 174 | K77: MAYNARD | L77: 1Y0
A78: 69 | B78: 177 | C78: MEDWAY | D78: 177 | J78: 177 | K78: MEDWAY | L78: 1Y0
A79: 70 | B79: 178 | C79: MELROSE | D79: 178 | J79: 178 | K79: MELROSE | L79: 1Y0
A80: 71 | B80: 182 | C80: MIDDLEBOROUGH | D80: 182 | J80: 182 | K80: MIDDLEBOROUGH | L80: 1Y0
A81: 72 | B81: 185 | C81: MILFORD | D81: 185 | J81: 185 | K81: MILFORD | L81: 1Y0
A82: 73 | B82: 187 | C82: MILLIS | D82: 187 | J82: 187 | K82: MILLIS | L82: 1Y0
A83: 74 | B83: 191 | C83: MONSON | D83: 191 | J83: 191 | K83: MONSON | L83: 1Y0
A84: 75 | B84: 198 | C84: NATICK | D84: 198 | J84: 198 | K84: NATICK | L84: 1Y0
A85: 76 | B85: 201 | C85: NEW BEDFORD | D85: 201 | J85: 201 | K85: NEW BEDFORD | L85: 1Y0
A86: 77 | B86: 204 | C86: NEWBURYPORT | D86: 204 | J86: 204 | K86: NEWBURYPORT | L86: 1Y0
A87: 78 | B87: 209 | C87: NORTH ADAMS | D87: 209 | J87: 209 | K87: NORTH ADAMS | L87: 1Y0
A88: 79 | B88: 210 | C88: NORTHAMPTON | D88: 210 | J88: 210 | K88: NORTHAMPTON | L88: 1Y0
A89: 80 | B89: 214 | C89: NORTHBRIDGE | D89: 214 | J89: 214 | K89: NORTHBRIDGE | L89: 1Y0
A90: 81 | B90: 215 | C90: NORTH BROOKFIELD | D90: 215 | J90: 215 | K90: NORTH BROOKFIELD | L90: 1Y0
A91: 82 | B91: 218 | C91: NORTON | D91: =J91 -> 218 | J91: 218 | K91: NORTON | L91: 1Y0
A92: 83 | B92: 221 | C92: OAK BLUFFS | D92: 221 | J92: 221 | K92: OAK BLUFFS | L92: 1Y0
A93: 84 | B93: 223 | C93: ORANGE | D93: 223 | J93: 223 | K93: ORANGE | L93: 1Y0
A94: 85 | B94: 224 | C94: ORLEANS | D94: 224 | J94: 224 | K94: ORLEANS | L94: 1Y0
A95: 86 | B95: 226 | C95: OXFORD | D95: 226 | J95: 226 | K95: OXFORD | L95: 1Y0
A96: 87 | B96: 227 | C96: PALMER | D96: 227 | J96: 227 | K96: PALMER | L96: 1Y0
A97: 88 | B97: 229 | C97: PEABODY | D97: 229 | J97: 229 | K97: PEABODY | L97: 1Y0
A98: 89 | B98: 230 | C98: PELHAM | D98: 230 | J98: 230 | K98: PELHAM | L98: 1Y0
A99: 90 | B99: 234 | C99: PETERSHAM | D99: 234 | J99: 234 | K99: PETERSHAM | L99: 1Y0
A100: 91 | B100: 236 | C100: PITTSFIELD | D100: 236 | J100: 236 | K100: PITTSFIELD | L100: 1Y0
A101: 92 | B101: 240 | C101: PLYMPTON | D101: 240 | J101: 240 | K101: PLYMPTON | L101: 1T0
A102: 93 | B102: 242 | C102: PROVINCETOWN | D102: 242 | J102: 242 | K102: PROVINCETOWN | L102: 1Y0
A103: 94 | B103: 244 | C103: RANDOLPH | D103: 244 | J103: 244 | K103: RANDOLPH | L103: 1Y0
A104: 95 | B104: 249 | C104: RICHMOND | D104: 249 | J104: 249 | K104: RICHMOND | L104: 1Y0
A105: 96 | B105: 251 | C105: ROCKLAND | D105: 251 | J105: 251 | K105: ROCKLAND | L105: 1Y0
A106: 97 | B106: 252 | C106: ROCKPORT | D106: 252 | J106: 252 | K106: ROCKPORT | L106: 1Y0
A107: 98 | B107: 253 | C107: ROWE | D107: 253 | J107: 253 | K107: ROWE | L107: 1Y0
A108: 99 | B108: 261 | C108: SANDWICH | D108: 261 | J108: 261 | K108: SANDWICH | L108: 1Y0
A109: 100 | B109: 263 | C109: SAVOY | D109: 263 | J109: 263 | K109: SAVOY | L109: 1Y0
A110: 101 | B110: 275 | C110: SOUTHAMPTON | D110: 275 | J110: 275 | K110: SOUTHAMPTON | L110: 1Y0
A111: 102 | B111: 277 | C111: SOUTHBRIDGE | D111: 277 | J111: 277 | K111: SOUTHBRIDGE | L111: 1Y0
A112: 103 | B112: 278 | C112: SOUTH HADLEY | D112: 278 | J112: 278 | K112: SOUTH HADLEY | L112: 1Y0
A113: 104 | B113: 281 | C113: SPRINGFIELD | D113: 281 | J113: 281 | K113: SPRINGFIELD | L113: 1Y0
A114: 105 | B114: 289 | C114: SUNDERLAND | D114: 289 | J114: 289 | K114: SUNDERLAND | L114: 1Y0
A115: 106 | B115: 290 | C115: SUTTON | D115: 290 | J115: 290 | K115: SUTTON | L115: 1Y0
A116: 107 | B116: 291 | C116: SWAMPSCOTT | D116: 291 | J116: 291 | K116: SWAMPSCOTT | L116: 1Y0
A117: 108 | B117: 293 | C117: TAUNTON | D117: 293 | J117: 293 | K117: TAUNTON | L117: 1Y0
A118: 109 | B118: 296 | C118: TISBURY | D118: 296 | J118: 296 | K118: TISBURY | L118: 1Y0
A119: 110 | B119: 300 | C119: TRURO | D119: 300 | J119: 300 | K119: TRURO | L119: 1Y0
A120: 111 | B120: 301 | C120: TYNGSBOROUGH | D120: 301 | J120: 301 | K120: TYNGSBOROUGH | L120: 1Y0
A121: 112 | B121: 304 | C121: UXBRIDGE | D121: 304 | J121: 304 | K121: UXBRIDGE | L121: 1Y0
A122: 113 | B122: 306 | C122: WALES | D122: 306 | J122: 306 | K122: WALES | L122: 1Y0
A123: 114 | B123: 309 | C123: WARE | D123: 309 | J123: 309 | K123: WARE | L123: 1Y0
A124: 115 | B124: 310 | C124: WAREHAM | D124: 310 | J124: 310 | K124: WAREHAM | L124: 1Y0
A125: 116 | B125: 316 | C125: WEBSTER | D125: 316 | J125: 316 | K125: WEBSTER | L125: 1Y0
A126: 117 | B126: 322 | C126: WEST BOYLSTON | D126: 322 | J126: 322 | K126: WEST BOYLSTON | L126: 1Y0
A127: 118 | B127: 323 | C127: WEST BRIDGEWATER | D127: 323 | J127: 323 | K127: WEST BRIDGEWATER | L127: 1Y0
A128: 119 | B128: 325 | C128: WESTFIELD | D128: 325 | J128: 325 | K128: WESTFIELD | L128: 1Y0
A129: 120 | B129: 326 | C129: WESTFORD | D129: 326 | J129: 326 | K129: WESTFORD | L129: 1Y0
A130: 121 | B130: 327 | C130: WESTHAMPTON | D130: 327 | J130: 327 | K130: WESTHAMPTON | L130: 1Y0
A131: 122 | B131: 332 | C131: WEST SPRINGFIELD | D131: 332 | J131: 332 | K131: WEST SPRINGFIELD | L131: 1Y0
A132: 123 | B132: 337 | C132: WHATELY | D132: 337 | J132: 337 | K132: WHATELY | L132: 1Y0
A133: 124 | B133: 340 | C133: WILLIAMSBURG | D133: 340 | J133: 340 | K133: WILLIAMSBURG | L133: 1Y0
A134: 125 | B134: 341 | C134: WILLIAMSTOWN | D134: 341 | J134: 341 | K134: WILLIAMSTOWN | L134: 1Y0
A135: 126 | B135: 343 | C135: WINCHENDON | D135: 343 | J135: 343 | K135: WINCHENDON | L135: 1Y0
A136: 127 | B136: 346 | C136: WINTHROP | D136: 346 | J136: 346 | K136: WINTHROP | L136: 1Y0
A137: 128 | B137: 348 | C137: WORCESTER | D137: 348 | J137: 348 | K137: WORCESTER | L137: 1Y0
A138: 129 | B138: 349 | C138: WORTHINGTON | D138: 349 | J138: 349 | K138: WORTHINGTON | L138: 1Y0
A139: 130 | B139: =VALUE(J139) -> 600 | C139: =K139 -> ACTON BOXBOROUGH | D139: 600 | J139: 600 | K139: ACTON BOXBOROUGH | L139: 1Y0
A140: 131 | B140: 603 | C140: ADAMS CHESHIRE | D140: 603 | J140: 603 | K140: ADAMS CHESHIRE | L140: 1Y0
A141: 132 | B141: 605 | C141: AMHERST PELHAM | D141: 605 | J141: 605 | K141: AMHERST PELHAM | L141: 1Y0
A142: 133 | B142: 610 | C142: ASHBURNHAM WESTMINSTER | D142: 610 | J142: 610 | K142: ASHBURNHAM WESTMINSTER | L142: 1Y0
A143: 134 | B143: 615 | C143: ATHOL ROYALSTON | D143: 615 | J143: 615 | K143: ATHOL ROYALSTON | L143: 1Y0
A144: 135 | B144: 616 | C144: AYER SHIRLEY | D144: 616 | J144: 616 | K144: AYER SHIRLEY | L144: 1Y0
A145: 136 | B145: 618 | C145: BERKSHIRE HILLS | D145: 618 | J145: 618 | K145: BERKSHIRE HILLS | L145: 1Y0
A146: 137 | B146: 620 | C146: BERLIN BOYLSTON | D146: 620 | J146: 620 | K146: BERLIN BOYLSTON | L146: 1Y0
A147: 138 | B147: 622 | C147: BLACKSTONE MILLVILLE | D147: 622 | J147: 622 | K147: BLACKSTONE MILLVILLE | L147: 1Y0
A148: 139 | B148: 625 | C148: BRIDGEWATER RAYNHAM | D148: 625 | J148: 625 | K148: BRIDGEWATER RAYNHAM | L148: 1Y0
A149: 140 | B149: 632 | C149: CHESTERFIELD GOSHEN | D149: 632 | J149: 632 | K149: CHESTERFIELD GOSHEN | L149: 1Y0
A150: 141 | B150: 635 | C150: CENTRAL BERKSHIRE | D150: 635 | J150: 635 | K150: CENTRAL BERKSHIRE | L150: 1Y0
A151: 142 | B151: 645 | C151: DENNIS YARMOUTH | D151: 645 | J151: 645 | K151: DENNIS YARMOUTH | L151: 1Y0
A152: 143 | B152: 650 | C152: DIGHTON REHOBOTH | D152: 650 | J152: 650 | K152: DIGHTON REHOBOTH | L152: 1Y0
A153: 144 | B153: 658 | C153: DUDLEY CHARLTON | D153: 658 | J153: 658 | K153: DUDLEY CHARLTON | L153: 1Y0
A154: 145 | B154: 660 | C154: NAUSET | D154: 660 | J154: 660 | K154: NAUSET | L154: 1Y0
A155: 146 | B155: 662 | C155: FARMINGTON RIVER | D155: =J155 -> 662 | J155: 662 | K155: FARMINGTON RIVER | L155: 1Y0
A156: 147 | B156: 665 | C156: FREETOWN LAKEVILLE | D156: 665 | J156: 665 | K156: FREETOWN LAKEVILLE | L156: 1Y0
A157: 148 | B157: 670 | C157: FRONTIER | D157: 670 | J157: 670 | K157: FRONTIER | L157: 1Y0
A158: 149 | B158: 672 | C158: GATEWAY | D158: 672 | J158: 672 | K158: GATEWAY | L158: 1Y0
A159: 150 | B159: 673 | C159: GROTON DUNSTABLE | D159: 673 | J159: 673 | K159: GROTON DUNSTABLE | L159: 1Y0
A160: 151 | B160: 674 | C160: GILL MONTAGUE | D160: 674 | J160: 674 | K160: GILL MONTAGUE | L160: 1Y0
A161: 152 | B161: 675 | C161: HAMILTON WENHAM | D161: 675 | J161: 675 | K161: HAMILTON WENHAM | L161: 1Y0
A162: 153 | B162: 680 | C162: HAMPDEN WILBRAHAM | D162: 680 | J162: 680 | K162: HAMPDEN WILBRAHAM | L162: 1Y0
A163: 154 | B163: 683 | C163: HAMPSHIRE | D163: 683 | J163: 683 | K163: HAMPSHIRE | L163: 1Y0
A164: 155 | B164: 685 | C164: HAWLEMONT | D164: 685 | J164: 685 | K164: HAWLEMONT | L164: 1Y0
A165: 156 | B165: 698 | C165: MANCHESTER ESSEX | D165: 698 | J165: 698 | K165: MANCHESTER ESSEX | L165: 1Y0
A166: 157 | B166: 710 | C166: MENDON UPTON | D166: 710 | J166: 710 | K166: MENDON UPTON | L166: 1Y0
A167: 158 | B167: 712 | C167: MONOMOY | D167: 712 | J167: 712 | K167: MONOMOY | L167: 1Y0
A168: 159 | B168: 715 | C168: MOUNT GREYLOCK | D168: 715 | J168: 715 | K168: MOUNT GREYLOCK | L168: 1Y0
A169: 160 | B169: 717 | C169: MOHAWK TRAIL | D169: 717 | J169: 717 | K169: MOHAWK TRAIL | L169: 1Y0
A170: 161 | B170: 720 | C170: NARRAGANSETT | D170: 720 | J170: 720 | K170: NARRAGANSETT | L170: 1Y0
A171: 162 | B171: 725 | C171: NASHOBA | D171: 725 | J171: 725 | K171: NASHOBA | L171: 1Y0
A172: 163 | B172: =VALUE(J172) -> 728 | C172: =K172 -> NEW SALEM WENDELL | D172: 728 | J172: 728 | K172: NEW SALEM WENDELL | L172: 1Y0
A173: 164 | B173: 735 | C173: NORTH MIDDLESEX | D173: 735 | J173: 735 | K173: NORTH MIDDLESEX | L173: 1Y0
A174: 165 | B174: 740 | C174: OLD ROCHESTER | D174: 740 | J174: 740 | K174: OLD ROCHESTER | L174: 1Y0
A175: 166 | B175: 745 | C175: PENTUCKET | D175: 745 | J175: 745 | K175: PENTUCKET | L175: 1Y0
A176: 167 | B176: 750 | C176: PIONEER | D176: 750 | J176: 750 | K176: PIONEER | L176: 1Y0
A177: 168 | B177: 753 | C177: QUABBIN | D177: 753 | J177: 753 | K177: QUABBIN | L177: 1Y0
A178: 169 | B178: 755 | C178: RALPH C MAHAR | D178: 755 | J178: 755 | K178: RALPH C MAHAR | L178: 1Y0
A179: 170 | B179: 763 | C179: SOMERSET BERKLEY | D179: 763 | J179: 763 | K179: SOMERSET BERKLEY | L179: 1Y0
A180: 171 | B180: 765 | C180: SOUTHERN BERKSHIRE | D180: 765 | J180: 765 | K180: SOUTHERN BERKSHIRE | L180: 1Y0
A181: 172 | B181: 766 | C181: SOUTHWICK TOLLAND | D181: 766 | J181: 766 | K181: SOUTHWICK TOLLAND | L181: 1Y0
A182: 173 | B182: 767 | C182: SPENCER EAST BROOKFIELD | D182: 767 | J182: 767 | K182: SPENCER EAST BROOKFIELD | L182: 1Y0
A183: 174 | B183: 770 | C183: TANTASQUA | D183: 770 | J183: 770 | K183: TANTASQUA | L183: 1Y0
A184: 175 | B184: 773 | C184: TRITON | D184: 773 | J184: 773 | K184: TRITON | L184: 1Y0
A185: 176 | B185: 774 | C185: UPISLAND | D185: 774 | J185: 774 | K185: UPISLAND | L185: 1Y0
A186: 177 | B186: 775 | C186: WACHUSETT | D186: 775 | J186: 775 | K186: WACHUSETT | L186: 1Y0
A187: 178 | B187: 778 | C187: QUABOAG | D187: 778 | J187: 778 | K187: QUABOAG | L187: 1Y0
A188: 179 | B188: 780 | C188: WHITMAN HANSON | D188: 780 | J188: 780 | K188: WHITMAN HANSON | L188: 1Y0
A189: 180 | B189: 817 | C189: ESSEX NORTH SHORE | D189: 817 | J189: 817 | K189: ESSEX NORTH SHORE | L189: 1Y0
A190: 181 | B190: 823 | C190: GREATER LAWRENCE | D190: 823 | J190: 823 | K190: GREATER LAWRENCE | L190: 1Y0
A191: 182 | B191: 828 | C191: GREATER LOWELL | D191: 828 | J191: 828 | K191: GREATER LOWELL | L191: 1Y0
A192: 183 | B192: 832 | C192: MONTACHUSETT | D192: 832 | J192: 832 | K192: MONTACHUSETT | L192: 1Y0
A193: 184 | B193: 852 | C193: NASHOBA VALLEY | D193: 852 | J193: 852 | K193: NASHOBA VALLEY | L193: 1Y0
A194: 185 | B194: 853 | C194: NORTHEAST METROPOLITAN | D194: 853 | J194: 853 | K194: NORTHEAST METROPOLITAN | L194: 1Y0
A195: 186 | B195: 860 | C195: PATHFINDER | D195: 860 | J195: 860 | K195: PATHFINDER | L195: 1Y0
A196: 187 | B196: =VALUE(J196) -> 885 | C196: =K196 -> WHITTIER | D196: =J196 -> 885 | J196: 885 | K196: WHITTIER | L196: 1Y0

Sheet membership (hidden)
H3: 15 - sch 11 jun15, 2016
B5: Estimated FY15 membership | H5: In District FTE
J6: Fix
J7: to | P7: Total
C8: Reg Ed | D8: Sped | E8: Voke Ed | J8: District | K8: Reg Ed | L8: Sped | M8: Voke Ed | P8: Day
A9: Lea | B9: District | C9: Memb | D9: Memb | E9: Memb | F9: Sum | H9: Lea | I9: District | J9: 1 = yes | K9: Memb | L9: Memb | M9: Memb | N9: Sum | O9: diff | P9: Memb
A10: 1 | B10: ABINGTON | C10: =K10 -> 1866.98 | D10: =L10 -> 72.06 | E10: 0 | F10: 1939.04 | H10: 1 | I10: ABINGTON | J10: 0 | K10: 1866.98 | L10: 72.06 | M10: 0 | N10: 1939.04 | O10: 0 | P10: 1939.04
A11: 2 | B11: ACTON | C11: =K11 -> 0 | D11: =L11 -> 0 | E11: =M11 -> 0 | F11: =N11 -> 0 | H11: 2 | I11: ACTON | J11: 0 | K11: 0 | L11: 0 | M11: 0 | N11: 0 | O11: 0 | P11: 0
A12: 3 | B12: ACUSHNET | C12: 921.38 | D12: 46.12 | E12: 0 | F12: 967.5 | H12: 3 | I12: ACUSHNET | J12: 0 | K12: 921.38 | L12: 46.12 | M12: 0 | N12: 967.5 | O12: 0 | P12: 967.5
A13: 4 | B13: ADAMS | C13: 0 | D13: 0 | E13: 0 | F13: 0 | H13: 4 | I13: ADAMS | J13: 0 | K13: 0 | L13: 0 | M13: 0 | N13: 0 | O13: 0 | P13: 0
A14: 5 | B14: AGAWAM | C14: 3706.91 | D14: 194.26 | E14: 75.62 | F14: 3976.79 | H14: 5 | I14: AGAWAM | J14: 0 | K14: 3706.91 | L14: 194.26 | M14: 75.62 | N14: 3976.79 | O14: 0.01 | P14: 3976.78
A15: 6 | B15: ALFORD | C15: 0 | D15: 0 | E15: 0 | F15: 0 | H15: 6 | I15: ALFORD | J15: 0 | K15: 0 | L15: 0 | M15: 0 | N15: 0 | O15: 0 | P15: 0
A16: 7 | B16: AMESBURY | C16: 2094.88 | D16: 136.32 | E16: 0 | F16: 2231.2 | H16: 7 | I16: AMESBURY | J16: 0 | K16: 2094.88 | L16: 136.32 | M16: 0 | N16: 2231.2 | O16: 0.01 | P16: 2231.19
A17: 8 | B17: AMHERST | C17: 1119.98 | D17: 63.53 | E17: 0 | F17: 1183.51 | H17: 8 | I17: AMHERST | J17: 0 | K17: 1119.98 | L17: 63.53 | M17: 0 | N17: 1183.51 | O17: 0 | P17: 1183.51
A18: 9 | B18: ANDOVER | C18: 5770.4 | D18: 357.73 | E18: 0 | F18: 6128.13 | H18: 9 | I18: ANDOVER | J18: 0 | K18: 5770.4 | L18: 357.73 | M18: 0 | N18: 6128.13 | O18: 0 | P18: 6128.13
A19: 10 | B19: ARLINGTON | C19: 5036.62 | D19: 235.77 | E19: 0 | F19: 5272.39 | H19: 10 | I19: ARLINGTON | J19: 0 | K19: 5036.62 | L19: 235.77 | M19: 0 | N19: 5272.39 | O19: 0.01 | P19: 5272.38
A20: 11 | B20: ASHBURNHAM | C20: 0 | D20: 0 | E20: 0 | F20: 0 | H20: 11 | I20: ASHBURNHAM | J20: 0 | K20: 0 | L20: 0 | M20: 0 | N20: 0 | O20: 0 | P20: 0
A21: 12 | B21: ASHBY | C21: 0 | D21: 0 | E21: 0 | F21: 0 | H21: 12 | I21: ASHBY | J21: 0 | K21: 0 | L21: 0 | M21: 0 | N21: 0 | O21: 0 | P21: 0
A22: 13 | B22: ASHFIELD | C22: 0 | D22: 0 | E22: 0 | F22: 0 | H22: 13 | I22: ASHFIELD | J22: 0 | K22: 0 | L22: 0 | M22: 0 | N22: 0 | O22: 0 | P22: 0
A23: 14 | B23: ASHLAND | C23: 2476.98 | D23: 109.57 | E23: 0 | F23: 2586.55 | H23: 14 | I23: ASHLAND | J23: 0 | K23: 2476.98 | L23: 109.57 | M23: 0 | N23: 2586.55 | O23: 0 | P23: 2586.55
A24: 15 | B24: ATHOL | C24: 0 | D24: 0 | E24: 0 | F24: 0 | H24: 15 | I24: ATHOL | J24: 0 | K24: 0 | L24: 0 | M24: 0 | N24: 0 | O24: 0 | P24: 0
A25: 16 | B25: ATTLEBORO | C25: 4545.72 | D25: 362.73 | E25: 890.26 | F25: 5798.71 | H25: 16 | I25: ATTLEBORO | J25: 0 | K25: 4545.72 | L25: 362.73 | M25: 890.26 | N25: 5798.71 | O25: -0.009999999999 | P25: 5798.72
A26: 17 | B26: AUBURN | C26: 2284.17 | D26: 67.06 | E26: 0 | F26: 2351.23 | H26: 17 | I26: AUBURN | J26: 0 | K26: 2284.17 | L26: 67.06 | M26: 0 | N26: 2351.23 | O26: 0 | P26: 2351.23
A27: 18 | B27: AVON | C27: 695.36 | D27: 33.46 | E27: 0 | F27: 728.82 | H27: 18 | I27: AVON | J27: 0 | K27: 695.36 | L27: 33.46 | M27: 0 | N27: 728.82 | O27: 0 | P27: 728.82
A28: 19 | B28: AYER | C28: 0 | D28: 0 | E28: 0 | F28: 0 | H28: 19 | I28: AYER | J28: 0 | K28: 0 | L28: 0 | M28: 0 | N28: 0 | O28: 0 | P28: 0
A29: 20 | B29: BARNSTABLE | C29: 4602.73 | D29: 264.08 | E29: 0 | F29: 4866.81 | H29: 20 | I29: BARNSTABLE | J29: 0 | K29: 4602.73 | L29: 264.08 | M29: 0 | N29: 4866.81 | O29: 0 | P29: 4866.81
A30: 21 | B30: BARRE | C30: 0 | D30: 0 | E30: 0 | F30: 0 | H30: 21 | I30: BARRE | J30: 0 | K30: 0 | L30: 0 | M30: 0 | N30: 0 | O30: 0 | P30: 0
A31: 22 | B31: BECKET | C31: 0 | D31: 0 | E31: 0 | F31: 0 | H31: 22 | I31: BECKET | J31: 0 | K31: 0 | L31: 0 | M31: 0 | N31: 0 | O31: 0 | P31: 0
A32: 23 | B32: BEDFORD | C32: 2410.21 | D32: 111.34 | E32: 0 | F32: 2521.55 | H32: 23 | I32: BEDFORD | J32: 0 | K32: 2410.21 | L32: 111.34 | M32: 0 | N32: 2521.55 | O32: 0 | P32: 2521.55
A33: 24 | B33: BELCHERTOWN | C33: 2201.42 | D33: 147.63 | E33: 0 | F33: 2349.05 | H33: 24 | I33: BELCHERTOWN | J33: 0 | K33: 2201.42 | L33: 147.63 | M33: 0 | N33: 2349.05 | O33: -0.01 | P33: 2349.06
A34: 25 | B34: BELLINGHAM | C34: 2227.7 | D34: 132.22 | E34: 0 | F34: 2359.92 | H34: 25 | I34: BELLINGHAM | J34: 0 | K34: 2227.7 | L34: 132.22 | M34: 0 | N34: 2359.92 | O34: 0 | P34: 2359.92
A35: 26 | B35: BELMONT | C35: 4140.93 | D35: 83.51 | E35: 0 | F35: 4224.44 | H35: 26 | I35: BELMONT | J35: 0 | K35: 4140.93 | L35: 83.51 | M35: 0 | N35: 4224.44 | O35: 0 | P35: 4224.44
A36: 27 | B36: BERKLEY | C36: 801.72 | D36: 48.98 | E36: 0 | F36: 850.7 | H36: 27 | I36: BERKLEY | J36: 0 | K36: 801.72 | L36: 48.98 | M36: 0 | N36: 850.7 | O36: 0 | P36: 850.7
A37: 28 | B37: BERLIN | C37: 176.31 | D37: 11.25 | E37: 0 | F37: 187.56 | H37: 28 | I37: BERLIN | J37: 0 | K37: 176.31 | L37: 11.25 | M37: 0 | N37: 187.56 | O37: -0.01 | P37: 187.57
A38: 29 | B38: BERNARDSTON | C38: 0 | D38: 0 | E38: 0 | F38: 0 | H38: 29 | I38: BERNARDSTON | J38: 0 | K38: 0 | L38: 0 | M38: 0 | N38: 0 | O38: 0 | P38: 0
A39: 30 | B39: BEVERLY | C39: 4193.82 | D39: 288.03 | E39: 0 | F39: 4481.85 | H39: 30 | I39: BEVERLY | J39: 0 | K39: 4193.82 | L39: 288.03 | M39: 0 | N39: 4481.85 | O39: 0 | P39: 4481.85
A40: 31 | B40: BILLERICA | C40: 4787.48 | D40: 294.57 | E40: 0 | F40: 5082.05 | H40: 31 | I40: BILLERICA | J40: 0 | K40: 4787.48 | L40: 294.57 | M40: 0 | N40: 5082.05 | O40: 0.009999999999 | P40: 5082.04
A41: 32 | B41: BLACKSTONE | C41: 0 | D41: 0 | E41: 0 | F41: 0 | H41: 32 | I41: BLACKSTONE | J41: 0 | K41: 0 | L41: 0 | M41: 0 | N41: 0 | O41: 0 | P41: 0
A42: 33 | B42: BLANDFORD | C42: 0 | D42: 0 | E42: 0 | F42: 0 | H42: 33 | I42: BLANDFORD | J42: 0 | K42: 0 | L42: 0 | M42: 0 | N42: 0 | O42: 0 | P42: 0
A43: 34 | B43: BOLTON | C43: 0 | D43: 0 | E43: 0 | F43: 0 | H43: 34 | I43: BOLTON | J43: 0 | K43: 0 | L43: 0 | M43: 0 | N43: 0 | O43: 0 | P43: 0
A44: 35 | B44: BOSTON | C44: 48649.65 | D44: 5104.81 | E44: 659.35 | F44: 54413.81 | H44: 35 | I44: BOSTON | J44: 0 | K44: 48649.65 | L44: 5104.81 | M44: 659.35 | N44: 54413.81 | O44: -0.01 | P44: 54413.82
A45: 36 | B45: BOURNE | C45: 1900.7 | D45: 99.17 | E45: 0 | F45: 1999.87 | H45: 36 | I45: BOURNE | J45: 0 | K45: 1900.7 | L45: 99.17 | M45: 0 | N45: 1999.87 | O45: 0 | P45: 1999.87
A46: 37 | B46: BOXBOROUGH | C46: 0 | D46: 0 | E46: 0 | F46: 0 | H46: 37 | I46: BOXBOROUGH | J46: 0 | K46: 0 | L46: 0 | M46: 0 | N46: 0 | O46: 0 | P46: 0
A47: 38 | B47: BOXFORD | C47: 705.35 | D47: 43.64 | E47: 0 | F47: 748.99 | H47: 38 | I47: BOXFORD | J47: 0 | K47: 705.35 | L47: 43.64 | M47: 0 | N47: 748.99 | O47: 0 | P47: 748.99
A48: 39 | B48: BOYLSTON | C48: 288.72 | D48: 8.93 | E48: 0 | F48: 297.65 | H48: 39 | I48: BOYLSTON | J48: 0 | K48: 288.72 | L48: 8.93 | M48: 0 | N48: 297.65 | O48: 0 | P48: 297.65
A49: 40 | B49: BRAINTREE | C49: 5248.6 | D49: 412.01 | E49: 0 | F49: 5660.61 | H49: 40 | I49: BRAINTREE | J49: 0 | K49: 5248.6 | L49: 412.01 | M49: 0 | N49: 5660.61 | O49: -0.009999999999 | P49: 5660.62
A50: 41 | B50: BREWSTER | C50: 448.21 | D50: 19.88 | E50: 0 | F50: 468.09 | H50: 41 | I50: BREWSTER | J50: 0 | K50: 448.21 | L50: 19.88 | M50: 0 | N50: 468.09 | O50: 0 | P50: 468.09
A51: 42 | B51: BRIDGEWATER | C51: 0 | D51: 0 | E51: 0 | F51: 0 | H51: 42 | I51: BRIDGEWATER | J51: 0 | K51: 0 | L51: 0 | M51: 0 | N51: 0 | O51: 0 | P51: 0
A52: 43 | B52: BRIMFIELD | C52: 277.34 | D52: 11.13 | E52: 0 | F52: 288.47 | H52: 43 | I52: BRIMFIELD | J52: 0 | K52: 277.34 | L52: 11.13 | M52: 0 | N52: 288.47 | O52: -0.01 | P52: 288.48
A53: 44 | B53: BROCKTON | C53: 15819.33 | D53: 837.85 | E53: 201.33 | F53: 16858.51 | H53: 44 | I53: BROCKTON | J53: 0 | K53: 15819.33 | L53: 837.85 | M53: 201.33 | N53: 16858.51 | O53: 0 | P53: 16858.51
A54: 45 | B54: BROOKFIELD | C54: 319.86 | D54: 12.35 | E54: 0 | F54: 332.21 | H54: 45 | I54: BROOKFIELD | J54: 0 | K54: 319.86 | L54: 12.35 | M54: 0 | N54: 332.21 | O54: 0 | P54: 332.21
A55: 46 | B55: BROOKLINE | C55: 7127.88 | D55: 372.48 | E55: 0 | F55: 7500.36 | H55: 46 | I55: BROOKLINE | J55: 0 | K55: 7127.88 | L55: 372.48 | M55: 0 | N55: 7500.36 | O55: -0.009999999999 | P55: 7500.37
A56: 47 | B56: BUCKLAND | C56: 0 | D56: 0 | E56: 0 | F56: 0 | H56: 47 | I56: BUCKLAND | J56: 0 | K56: 0 | L56: 0 | M56: 0 | N56: 0 | O56: 0 | P56: 0
A57: 48 | B57: BURLINGTON | C57: 3343.09 | D57: 108.42 | E57: 0 | F57: 3451.51 | H57: 48 | I57: BURLINGTON | J57: 0 | K57: 3343.09 | L57: 108.42 | M57: 0 | N57: 3451.51 | O57: 0 | P57: 3451.51
A58: 49 | B58: CAMBRIDGE | C58: 5569.63 | D58: 408.33 | E58: 450.06 | F58: 6428.02 | H58: 49 | I58: CAMBRIDGE | J58: 0 | K58: 5569.63 | L58: 408.33 | M58: 450.06 | N58: 6428.02 | O58: 0 | P58: 6428.02
A59: 50 | B59: CANTON | C59: 2909.37 | D59: 103.1 | E59: 0 | F59: 3012.47 | H59: 50 | I59: CANTON | J59: 1 | K59: 2909.37 | L59: 103.1 | M59: 0 | N59: 3012.47 | O59: -346.93 | P59: 3359.4
A60: 51 | B60: CARLISLE | C60: 614 | D60: 24.75 | E60: 0 | F60: 638.75 | H60: 51 | I60: CARLISLE | J60: 0 | K60: 614 | L60: 24.75 | M60: 0 | N60: 638.75 | O60: -0.01 | P60: 638.76
A61: 52 | B61: CARVER | C61: 1523.14 | D61: 101.95 | E61: 0 | F61: 1625.09 | H61: 52 | I61: CARVER | J61: 0 | K61: 1523.14 | L61: 101.95 | M61: 0 | N61: 1625.09 | O61: 0 | P61: 1625.09
A62: 53 | B62: CHARLEMONT | C62: 0 | D62: 0 | E62: 0 | F62: 0 | H62: 53 | I62: CHARLEMONT | J62: 0 | K62: 0 | L62: 0 | M62: 0 | N62: 0 | O62: 0 | P62: 0
A63: 54 | B63: CHARLTON | C63: 0 | D63: 0 | E63: 0 | F63: 0 | H63: 54 | I63: CHARLTON | J63: 0 | K63: 0 | L63: 0 | M63: 0 | N63: 0 | O63: 0 | P63: 0
A64: 55 | B64: CHATHAM | C64: 0 | D64: 0 | E64: 0 | F64: 0 | H64: 55 | I64: CHATHAM | J64: 0 | K64: 0 | L64: 0 | M64: 0 | N64: 0 | O64: 0 | P64: 0
A65: 56 | B65: CHELMSFORD | C65: 4806.94 | D65: 221.5 | E65: 0 | F65: 5028.44 | H65: 56 | I65: CHELMSFORD | J65: 0 | K65: 4806.94 | L65: 221.5 | M65: 0 | N65: 5028.44 | O65: 0 | P65: 5028.44
A66: 57 | B66: CHELSEA | C66: 6028.87 | D66: 271.54 | E66: 0 | F66: 6300.41 | H66: 57 | I66: CHELSEA | J66: 0 | K66: 6028.87 | L66: 271.54 | M66: 0 | N66: 6300.41 | O66: 0 | P66: 6300.41
A67: 58 | B67: CHESHIRE | C67: 0 | D67: 0 | E67: 0 | F67: 0 | H67: 58 | I67: CHESHIRE | J67: 0 | K67: 0 | L67: 0 | M67: 0 | N67: 0 | O67: 0 | P67: 0
A68: 59 | B68: CHESTER | C68: 0 | D68: 0 | E68: 0 | F68: 0 | H68: 59 | I68: CHESTER | J68: 0 | K68: 0 | L68: 0 | M68: 0 | N68: 0 | O68: 0 | P68: 0
A69: 60 | B69: CHESTERFIELD | C69: 0 | D69: 0 | E69: 0 | F69: 0 | H69: 60 | I69: CHESTERFIELD | J69: 0 | K69: 0 | L69: 0 | M69: 0 | N69: 0 | O69: 0 | P69: 0
A70: 61 | B70: CHICOPEE | C70: 6622.64 | D70: 543.67 | E70: 452.04 | F70: 7618.35 | H70: 61 | I70: CHICOPEE | J70: 0 | K70: 6622.64 | L70: 543.67 | M70: 452.04 | N70: 7618.35 | O70: 0.01 | P70: 7618.34
A71: 62 | B71: CHILMARK | C71: 0 | D71: 0 | E71: 0 | F71: 0 | H71: 62 | I71: CHILMARK | J71: 0 | K71: 0 | L71: 0 | M71: 0 | N71: 0 | O71: 0 | P71: 0
A72: 63 | B72: CLARKSBURG | C72: 159.18 | D72: 11.28 | E72: 0 | F72: 170.46 | H72: 63 | I72: CLARKSBURG | J72: 0 | K72: 159.18 | L72: 11.28 | M72: 0 | N72: 170.46 | O72: 0 | P72: 170.46
A73: 64 | B73: CLINTON | C73: 1716.73 | D73: 140.59 | E73: 0 | F73: 1857.32 | H73: 64 | I73: CLINTON | J73: 0 | K73: 1716.73 | L73: 140.59 | M73: 0 | N73: 1857.32 | O73: 0 | P73: 1857.32
A74: 65 | B74: COHASSET | C74: 1545.89 | D74: 47.57 | E74: 0 | F74: 1593.46 | H74: 65 | I74: COHASSET | J74: 0 | K74: 1545.89 | L74: 47.57 | M74: 0 | N74: 1593.46 | O74: 0 | P74: 1593.46
A75: 66 | B75: COLRAIN | C75: =K75 -> 0 | D75: =L75 -> 0 | E75: =M75 -> 0 | F75: =N75 -> 0 | H75: 66 | I75: COLRAIN | J75: 0 | K75: 0 | L75: 0 | M75: 0 | N75: 0 | O75: 0 | P75: 0
A76: 67 | B76: CONCORD | C76: 1993.64 | D76: 101.3 | E76: 0 | F76: 2094.94 | H76: 67 | I76: CONCORD | J76: 0 | K76: 1993.64 | L76: 101.3 | M76: 0 | N76: 2094.94 | O76: 0 | P76: 2094.94
A77: 68 | B77: CONWAY | C77: 157.1 | D77: 10.94 | E77: 0 | F77: 168.04 | H77: 68 | I77: CONWAY | J77: 0 | K77: 157.1 | L77: 10.94 | M77: 0 | N77: 168.04 | O77: 0 | P77: 168.04
A78: 69 | B78: CUMMINGTON | C78: 0 | D78: 0 | E78: 0 | F78: 0 | H78: 69 | I78: CUMMINGTON | J78: 0 | K78: 0 | L78: 0 | M78: 0 | N78: 0 | O78: 0 | P78: 0
A79: 70 | B79: DALTON | C79: 0 | D79: 0 | E79: 0 | F79: 0 | H79: 70 | I79: DALTON | J79: 0 | K79: 0 | L79: 0 | M79: 0 | N79: 0 | O79: 0 | P79: 0
A80: 71 | B80: DANVERS | C80: 3387.76 | D80: 177.13 | E80: 0 | F80: 3564.89 | H80: 71 | I80: DANVERS | J80: 0 | K80: 3387.76 | L80: 177.13 | M80: 0 | N80: 3564.89 | O80: 0 | P80: 3564.89
A81: 72 | B81: DARTMOUTH | C81: 3552.42 | D81: 145.43 | E81: 0 | F81: 3697.85 | H81: 72 | I81: DARTMOUTH | J81: 0 | K81: 3552.42 | L81: 145.43 | M81: 0 | N81: 3697.85 | O81: 0 | P81: 3697.85
A82: 73 | B82: DEDHAM | C82: 2565.3 | D82: 176.47 | E82: 0 | F82: 2741.77 | H82: 73 | I82: DEDHAM | J82: 0 | K82: 2565.3 | L82: 176.47 | M82: 0 | N82: 2741.77 | O82: 0 | P82: 2741.77
A83: 74 | B83: DEERFIELD | C83: 405.36 | D83: 25.54 | E83: 0 | F83: 430.9 | H83: 74 | I83: DEERFIELD | J83: 0 | K83: 405.36 | L83: 25.54 | M83: 0 | N83: 430.9 | O83: 0 | P83: 430.9
A84: 75 | B84: DENNIS | C84: 0 | D84: 0 | E84: 0 | F84: 0 | H84: 75 | I84: DENNIS | J84: 0 | K84: 0 | L84: 0 | M84: 0 | N84: 0 | O84: 0 | P84: 0
A85: 76 | B85: DIGHTON | C85: 0 | D85: 0 | E85: 0 | F85: 0 | H85: 76 | I85: DIGHTON | J85: 0 | K85: 0 | L85: 0 | M85: 0 | N85: 0 | O85: 0 | P85: 0
A86: 77 | B86: DOUGLAS | C86: 1453.58 | D86: 77.19 | E86: 0 | F86: 1530.77 | H86: 77 | I86: DOUGLAS | J86: 0 | K86: 1453.58 | L86: 77.19 | M86: 0 | N86: 1530.77 | O86: 0 | P86: 1530.77
A87: 78 | B87: DOVER | C87: 454.06 | D87: 22.25 | E87: 0 | F87: 476.31 | H87: 78 | I87: DOVER | J87: 0 | K87: 454.06 | L87: 22.25 | M87: 0 | N87: 476.31 | O87: 0 | P87: 476.31
A88: 79 | B88: DRACUT | C88: 3495.47 | D88: 177.13 | E88: 0 | F88: 3672.6 | H88: 79 | I88: DRACUT | J88: 0 | K88: 3495.47 | L88: 177.13 | M88: 0 | N88: 3672.6 | O88: 0 | P88: 3672.6
A89: 80 | B89: DUDLEY | C89: 0 | D89: 0 | E89: 0 | F89: 0 | H89: 80 | I89: DUDLEY | J89: 0 | K89: 0 | L89: 0 | M89: 0 | N89: 0 | O89: 0 | P89: 0
A90: 81 | B90: DUNSTABLE | C90: 0 | D90: 0 | E90: 0 | F90: 0 | H90: 81 | I90: DUNSTABLE | J90: 0 | K90: 0 | L90: 0 | M90: 0 | N90: 0 | O90: 0 | P90: 0
A91: 82 | B91: DUXBURY | C91: 3098.19 | D91: 106.25 | E91: 0 | F91: 3204.44 | H91: 82 | I91: DUXBURY | J91: 0 | K91: 3098.19 | L91: 106.25 | M91: 0 | N91: 3204.44 | O91: 0 | P91: 3204.44
A92: 83 | B92: EAST BRIDGEWATER | C92: 2147.68 | D92: 133.12 | E92: 0 | F92: 2280.8 | H92: 83 | I92: EAST BRIDGEWATER | J92: 0 | K92: 2147.68 | L92: 133.12 | M92: 0 | N92: 2280.8 | O92: -0.01 | P92: 2280.81
A93: 84 | B93: EAST BROOKFIELD | C93: 0 | D93: 0 | E93: 0 | F93: 0 | H93: 84 | I93: EAST BROOKFIELD | J93: 0 | K93: 0 | L93: 0 | M93: 0 | N93: 0 | O93: 0 | P93: 0
A94: 85 | B94: EASTHAM | C94: 167.8 | D94: 6.98 | E94: 0 | F94: 174.78 | H94: 85 | I94: EASTHAM | J94: 0 | K94: 167.8 | L94: 6.98 | M94: 0 | N94: 174.78 | O94: 0 | P94: 174.78
A95: 86 | B95: EASTHAMPTON | C95: 1385.96 | D95: 85.24 | E95: 57.91 | F95: 1529.11 | H95: 86 | I95: EASTHAMPTON | J95: 0 | K95: 1385.96 | L95: 85.24 | M95: 57.91 | N95: 1529.11 | O95: -0.01 | P95: 1529.12
A96: 87 | B96: EAST LONGMEADOW | C96: 2510.46 | D96: 152.32 | E96: 7.88 | F96: 2670.66 | H96: 87 | I96: EAST LONGMEADOW | J96: 0 | K96: 2510.46 | L96: 152.32 | M96: 7.88 | N96: 2670.66 | O96: 0 | P96: 2670.66
A97: 88 | B97: EASTON | C97: 3588.83 | D97: 171.83 | E97: 0 | F97: 3760.66 | H97: 88 | I97: EASTON | J97: 0 | K97: 3588.83 | L97: 171.83 | M97: 0 | N97: 3760.66 | O97: 0 | P97: 3760.66
A98: 89 | B98: EDGARTOWN | C98: 323.27 | D98: 30.17 | E98: 0 | F98: 353.44 | H98: 89 | I98: EDGARTOWN | J98: 0 | K98: 323.27 | L98: 30.17 | M98: 0 | N98: 353.44 | O98: 0 | P98: 353.44
A99: 90 | B99: EGREMONT | C99: 0 | D99: 0 | E99: 0 | F99: 0 | H99: 90 | I99: EGREMONT | J99: 0 | K99: 0 | L99: 0 | M99: 0 | N99: 0 | O99: 0 | P99: 0
A100: 91 | B100: ERVING | C100: 131.08 | D100: 8.53 | E100: 0 | F100: 139.61 | H100: 91 | I100: ERVING | J100: 0 | K100: 131.08 | L100: 8.53 | M100: 0 | N100: 139.61 | O100: -0.01 | P100: 139.62
A101: 92 | B101: ESSEX | C101: 0 | D101: 0 | E101: 0 | F101: 0 | H101: 92 | I101: ESSEX | J101: 0 | K101: 0 | L101: 0 | M101: 0 | N101: 0 | O101: 0 | P101: 0
A102: 93 | B102: EVERETT | C102: 6713.32 | D102: 317.14 | E102: 0 | F102: 7030.46 | H102: 93 | I102: EVERETT | J102: 0 | K102: 6713.32 | L102: 317.14 | M102: 0 | N102: 7030.46 | O102: 0 | P102: 7030.46
A103: 94 | B103: FAIRHAVEN | C103: 1922.44 | D103: 87.71 | E103: 0 | F103: 2010.15 | H103: 94 | I103: FAIRHAVEN | J103: 0 | K103: 1922.44 | L103: 87.71 | M103: 0 | N103: 2010.15 | O103: 0 | P103: 2010.15
A104: 95 | B104: FALL RIVER | C104: 9002.35 | D104: 794.13 | E104: 367.9 | F104: 10164.38 | H104: 95 | I104: FALL RIVER | J104: 0 | K104: 9002.35 | L104: 794.13 | M104: 367.9 | N104: 10164.38 | O104: 0.009999999998 | P104: 10164.37
A105: 96 | B105: FALMOUTH | C105: 3124.3 | D105: 201.03 | E105: 203.75 | F105: 3529.08 | H105: 96 | I105: FALMOUTH | J105: 0 | K105: 3124.3 | L105: 201.03 | M105: 203.75 | N105: 3529.08 | O105: 0 | P105: 3529.08
A106: 97 | B106: FITCHBURG | C106: 4579.55 | D106: 357.84 | E106: 0 | F106: 4937.39 | H106: 97 | I106: FITCHBURG | J106: 0 | K106: 4579.55 | L106: 357.84 | M106: 0 | N106: 4937.39 | O106: 0 | P106: 4937.39
A107: 98 | B107: FLORIDA | C107: 77.67 | D107: 7.48 | E107: 0 | F107: 85.15 | H107: 98 | I107: FLORIDA | J107: 0 | K107: 77.67 | L107: 7.48 | M107: 0 | N107: 85.15 | O107: 0.01 | P107: 85.14
A108: 99 | B108: FOXBOROUGH | C108: 2524.66 | D108: 154 | E108: 0 | F108: 2678.66 | H108: 99 | I108: FOXBOROUGH | J108: 0 | K108: 2524.66 | L108: 154 | M108: 0 | N108: 2678.66 | O108: 0 | P108: 2678.66
A109: 100 | B109: FRAMINGHAM | C109: 7613.1 | D109: 707.35 | E109: 0 | F109: 8320.45 | H109: 100 | I109: FRAMINGHAM | J109: 0 | K109: 7613.1 | L109: 707.35 | M109: 0 | N109: 8320.45 | O109: 0 | P109: 8320.45
A110: 101 | B110: FRANKLIN | C110: 5370.36 | D110: 264.58 | E110: 0 | F110: 5634.94 | H110: 101 | I110: FRANKLIN | J110: 0 | K110: 5370.36 | L110: 264.58 | M110: 0 | N110: 5634.94 | O110: 0 | P110: 5634.94
A111: 102 | B111: FREETOWN | C111: 0 | D111: 0 | E111: 0 | F111: 0 | H111: 102 | I111: FREETOWN | J111: 0 | K111: 0 | L111: 0 | M111: 0 | N111: 0 | O111: 0 | P111: 0
A112: 103 | B112: GARDNER | C112: 2246.17 | D112: 180.09 | E112: 0 | F112: 2426.26 | H112: 103 | I112: GARDNER | J112: 0 | K112: 2246.17 | L112: 180.09 | M112: 0 | N112: 2426.26 | O112: -0.01 | P112: 2426.27
A113: 104 | B113: AQUINNAH | C113: 0 | D113: 0 | E113: 0 | F113: 0 | H113: 104 | I113: AQUINNAH | J113: 0 | K113: 0 | L113: 0 | M113: 0 | N113: 0 | O113: 0 | P113: 0
A114: 105 | B114: GEORGETOWN | C114: 1409.14 | D114: 59.86 | E114: 0 | F114: 1469 | H114: 105 | I114: GEORGETOWN | J114: 0 | K114: 1409.14 | L114: 59.86 | M114: 0 | N114: 1469 | O114: 0 | P114: 1469
A115: 106 | B115: GILL | C115: 0 | D115: 0 | E115: 0 | F115: 0 | H115: 106 | I115: GILL | J115: 0 | K115: 0 | L115: 0 | M115: 0 | N115: 0 | O115: 0 | P115: 0
A116: 107 | B116: GLOUCESTER | C116: 2583.46 | D116: 221.51 | E116: 118.5 | F116: 2923.47 | H116: 107 | I116: GLOUCESTER | J116: 0 | K116: 2583.46 | L116: 221.51 | M116: 118.5 | N116: 2923.47 | O116: 0 | P116: 2923.47
A117: 108 | B117: GOSHEN | C117: 0 | D117: 0 | E117: 0 | F117: 0 | H117: 108 | I117: GOSHEN | J117: 0 | K117: 0 | L117: 0 | M117: 0 | N117: 0 | O117: 0 | P117: 0
A118: 109 | B118: GOSNOLD | C118: 2 | D118: 0 | E118: 0 | F118: 2 | H118: 109 | I118: GOSNOLD | J118: 0 | K118: 2 | L118: 0 | M118: 0 | N118: 2 | O118: 0 | P118: 2
A119: 110 | B119: GRAFTON | C119: 2971.32 | D119: 147.79 | E119: 0 | F119: 3119.11 | H119: 110 | I119: GRAFTON | J119: 0 | K119: 2971.32 | L119: 147.79 | M119: 0 | N119: 3119.11 | O119: 0 | P119: 3119.11
A120: 111 | B120: GRANBY | C120: 828.83 | D120: 45.91 | E120: 0 | F120: 874.74 | H120: 111 | I120: GRANBY | J120: 0 | K120: 828.83 | L120: 45.91 | M120: 0 | N120: 874.74 | O120: 0 | P120: 874.74
A121: 112 | B121: GRANVILLE | C121: 0 | D121: 0 | E121: 0 | F121: 0 | H121: 112 | I121: GRANVILLE | J121: 0 | K121: 0 | L121: 0 | M121: 0 | N121: 0 | O121: 0 | P121: 0
A122: 113 | B122: GREAT BARRINGTON | C122: 0 | D122: 0 | E122: 0 | F122: 0 | H122: 113 | I122: GREAT BARRINGTON | J122: 0 | K122: 0 | L122: 0 | M122: 0 | N122: 0 | O122: 0 | P122: 0
A123: 114 | B123: GREENFIELD | C123: 1581.44 | D123: 95.23 | E123: 0 | F123: 1676.67 | H123: 114 | I123: GREENFIELD | J123: 0 | K123: 1581.44 | L123: 95.23 | M123: 0 | N123: 1676.67 | O123: 0 | P123: 1676.67
A124: 115 | B124: GROTON | C124: 0 | D124: 0 | E124: 0 | F124: 0 | H124: 115 | I124: GROTON | J124: 0 | K124: 0 | L124: 0 | M124: 0 | N124: 0 | O124: 0 | P124: 0
A125: 116 | B125: GROVELAND | C125: 0 | D125: 0 | E125: 0 | F125: 0 | H125: 116 | I125: GROVELAND | J125: 0 | K125: 0 | L125: 0 | M125: 0 | N125: 0 | O125: 0 | P125: 0
A126: 117 | B126: HADLEY | C126: 593.43 | D126: 24.2 | E126: 0 | F126: 617.63 | H126: 117 | I126: HADLEY | J126: 0 | K126: 593.43 | L126: 24.2 | M126: 0 | N126: 617.63 | O126: 0 | P126: 617.63
A127: 118 | B127: HALIFAX | C127: 541.83 | D127: 20.64 | E127: 0 | F127: 562.47 | H127: 118 | I127: HALIFAX | J127: 0 | K127: 541.83 | L127: 20.64 | M127: 0 | N127: 562.47 | O127: 0 | P127: 562.47
A128: 119 | B128: HAMILTON | C128: 0 | D128: 0 | E128: 0 | F128: 0 | H128: 119 | I128: HAMILTON | J128: 0 | K128: 0 | L128: 0 | M128: 0 | N128: 0 | O128: 0 | P128: 0
A129: 120 | B129: HAMPDEN | C129: 0 | D129: 0 | E129: 0 | F129: 0 | H129: 120 | I129: HAMPDEN | J129: 0 | K129: 0 | L129: 0 | M129: 0 | N129: 0 | O129: 0 | P129: 0
A130: 121 | B130: HANCOCK | C130: 39.38 | D130: 2.4 | E130: 0 | F130: 41.78 | H130: 121 | I130: HANCOCK | J130: 0 | K130: 39.38 | L130: 2.4 | M130: 0 | N130: 41.78 | O130: 0 | P130: 41.78
A131: 122 | B131: HANOVER | C131: 2487 | D131: 143.52 | E131: 0 | F131: 2630.52 | H131: 122 | I131: HANOVER | J131: 0 | K131: 2487 | L131: 143.52 | M131: 0 | N131: 2630.52 | O131: 0 | P131: 2630.52
A132: 123 | B132: HANSON | C132: 0 | D132: 0 | E132: 0 | F132: 0 | H132: 123 | I132: HANSON | J132: 0 | K132: 0 | L132: 0 | M132: 0 | N132: 0 | O132: 0 | P132: 0
A133: 124 | B133: HARDWICK | C133: 0 | D133: 0 | E133: 0 | F133: 0 | H133: 124 | I133: HARDWICK | J133: 0 | K133: 0 | L133: 0 | M133: 0 | N133: 0 | O133: 0 | P133: 0
A134: 125 | B134: HARVARD | C134: 1114.19 | D134: 35.41 | E134: 0 | F134: 1149.6 | H134: 125 | I134: HARVARD | J134: 0 | K134: 1114.19 | L134: 35.41 | M134: 0 | N134: 1149.6 | O134: 0 | P134: 1149.6
A135: 126 | B135: HARWICH | C135: 0 | D135: 0 | E135: 0 | F135: 0 | H135: 126 | I135: HARWICH | J135: 0 | K135: 0 | L135: 0 | M135: 0 | N135: 0 | O135: 0 | P135: 0
A136: 127 | B136: HATFIELD | C136: 429.16 | D136: 22.45 | E136: 0 | F136: 451.61 | H136: 127 | I136: HATFIELD | J136: 0 | K136: 429.16 | L136: 22.45 | M136: 0 | N136: 451.61 | O136: 0 | P136: 451.61
A137: 128 | B137: HAVERHILL | C137: 6601.06 | D137: 600.92 | E137: 0 | F137: 7201.98 | H137: 128 | I137: HAVERHILL | J137: 0 | K137: 6601.06 | L137: 600.92 | M137: 0 | N137: 7201.98 | O137: 0 | P137: 7201.98
A138: 129 | B138: HAWLEY | C138: 0 | D138: 0 | E138: 0 | F138: 0 | H138: 129 | I138: HAWLEY | J138: 0 | K138: 0 | L138: 0 | M138: 0 | N138: 0 | O138: 0 | P138: 0
A139: 130 | B139: HEATH | C139: =K139 -> 0 | D139: =L139 -> 0 | E139: =M139 -> 0 | F139: =N139 -> 0 | H139: 130 | I139: HEATH | J139: 0 | K139: 0 | L139: 0 | M139: 0 | N139: 0 | O139: 0 | P139: 0
A140: 131 | B140: HINGHAM | C140: 4116.16 | D140: 148.91 | E140: 0 | F140: 4265.07 | H140: 131 | I140: HINGHAM | J140: 0 | K140: 4116.16 | L140: 148.91 | M140: 0 | N140: 4265.07 | O140: -0.01 | P140: 4265.08
A141: 132 | B141: HINSDALE | C141: 0 | D141: 0 | E141: 0 | F141: 0 | H141: 132 | I141: HINSDALE | J141: 0 | K141: 0 | L141: 0 | M141: 0 | N141: 0 | O141: 0 | P141: 0
A142: 133 | B142: HOLBROOK | C142: 1110.8 | D142: 58.88 | E142: 0 | F142: 1169.68 | H142: 133 | I142: HOLBROOK | J142: 0 | K142: 1110.8 | L142: 58.88 | M142: 0 | N142: 1169.68 | O142: -0.01 | P142: 1169.69
A143: 134 | B143: HOLDEN | C143: 0 | D143: 0 | E143: 0 | F143: 0 | H143: 134 | I143: HOLDEN | J143: 0 | K143: 0 | L143: 0 | M143: 0 | N143: 0 | O143: 0 | P143: 0
A144: 135 | B144: HOLLAND | C144: 226.11 | D144: 13.25 | E144: 0 | F144: 239.36 | H144: 135 | I144: HOLLAND | J144: 0 | K144: 226.11 | L144: 13.25 | M144: 0 | N144: 239.36 | O144: 0 | P144: 239.36
A145: 136 | B145: HOLLISTON | C145: 2682.39 | D145: 137.92 | E145: 0 | F145: 2820.31 | H145: 136 | I145: HOLLISTON | J145: 0 | K145: 2682.39 | L145: 137.92 | M145: 0 | N145: 2820.31 | O145: 0 | P145: 2820.31
A146: 137 | B146: HOLYOKE | C146: 4652.67 | D146: 520.8 | E146: 285.83 | F146: 5459.3 | H146: 137 | I146: HOLYOKE | J146: 0 | K146: 4652.67 | L146: 520.8 | M146: 285.83 | N146: 5459.3 | O146: 0 | P146: 5459.3
A147: 138 | B147: HOPEDALE | C147: 1159.23 | D147: 61.73 | E147: 0 | F147: 1220.96 | H147: 138 | I147: HOPEDALE | J147: 0 | K147: 1159.23 | L147: 61.73 | M147: 0 | N147: 1220.96 | O147: 0 | P147: 1220.96
A148: 139 | B148: HOPKINTON | C148: 3304.07 | D148: 121.24 | E148: 0 | F148: 3425.31 | H148: 139 | I148: HOPKINTON | J148: 0 | K148: 3304.07 | L148: 121.24 | M148: 0 | N148: 3425.31 | O148: 0 | P148: 3425.31
A149: 140 | B149: HUBBARDSTON | C149: 0 | D149: 0 | E149: 0 | F149: 0 | H149: 140 | I149: HUBBARDSTON | J149: 0 | K149: 0 | L149: 0 | M149: 0 | N149: 0 | O149: 0 | P149: 0
A150: 141 | B150: HUDSON | C150: 2700.18 | D150: 152.9 | E150: 0 | F150: 2853.08 | H150: 141 | I150: HUDSON | J150: 0 | K150: 2700.18 | L150: 152.9 | M150: 0 | N150: 2853.08 | O150: 0 | P150: 2853.08
A151: 142 | B151: HULL | C151: 984.01 | D151: 39.14 | E151: 0 | F151: 1023.15 | H151: 142 | I151: HULL | J151: 0 | K151: 984.01 | L151: 39.14 | M151: 0 | N151: 1023.15 | O151: 0.01 | P151: 1023.14
A152: 143 | B152: HUNTINGTON | C152: 0 | D152: 0 | E152: 0 | F152: 0 | H152: 143 | I152: HUNTINGTON | J152: 0 | K152: 0 | L152: 0 | M152: 0 | N152: 0 | O152: 0 | P152: 0
A153: 144 | B153: IPSWICH | C153: 1821.95 | D153: 71.55 | E153: 0 | F153: 1893.5 | H153: 144 | I153: IPSWICH | J153: 0 | K153: 1821.95 | L153: 71.55 | M153: 0 | N153: 1893.5 | O153: 0.01 | P153: 1893.49
A154: 145 | B154: KINGSTON | C154: 1012.18 | D154: 54.88 | E154: 0 | F154: 1067.06 | H154: 145 | I154: KINGSTON | J154: 0 | K154: 1012.18 | L154: 54.88 | M154: 0 | N154: 1067.06 | O154: 0 | P154: 1067.06
A155: 146 | B155: LAKEVILLE | C155: 0 | D155: 0 | E155: 0 | F155: 0 | H155: 146 | I155: LAKEVILLE | J155: 0 | K155: 0 | L155: 0 | M155: 0 | N155: 0 | O155: 0 | P155: 0
A156: 147 | B156: LANCASTER | C156: 0 | D156: 0 | E156: 0 | F156: 0 | H156: 147 | I156: LANCASTER | J156: 0 | K156: 0 | L156: 0 | M156: 0 | N156: 0 | O156: 0 | P156: 0
A157: 148 | B157: LANESBOROUGH | C157: 201.65 | D157: 13.84 | E157: 0 | F157: 215.49 | H157: 148 | I157: LANESBOROUGH | J157: 0 | K157: 201.65 | L157: 13.84 | M157: 0 | N157: 215.49 | O157: 0 | P157: 215.49
A158: 149 | B158: LAWRENCE | C158: 12932.12 | D158: 913.07 | E158: 0 | F158: 13845.19 | H158: 149 | I158: LAWRENCE | J158: 0 | K158: 12932.12 | L158: 913.07 | M158: 0 | N158: 13845.19 | O158: 0 | P158: 13845.19
A159: 150 | B159: LEE | C159: 657.03 | D159: 27.31 | E159: 0 | F159: 684.34 | H159: 150 | I159: LEE | J159: 0 | K159: 657.03 | L159: 27.31 | M159: 0 | N159: 684.34 | O159: 0 | P159: 684.34
A160: 151 | B160: LEICESTER | C160: 1527.8 | D160: 73.18 | E160: 0 | F160: 1600.98 | H160: 151 | I160: LEICESTER | J160: 0 | K160: 1527.8 | L160: 73.18 | M160: 0 | N160: 1600.98 | O160: 0 | P160: 1600.98
A161: 152 | B161: LENOX | C161: 710.93 | D161: 20.13 | E161: 0 | F161: 731.06 | H161: 152 | I161: LENOX | J161: 0 | K161: 710.93 | L161: 20.13 | M161: 0 | N161: 731.06 | O161: 0 | P161: 731.06
A162: 153 | B162: LEOMINSTER | C162: 5042.74 | D162: 421.14 | E162: 597.4 | F162: 6061.28 | H162: 153 | I162: LEOMINSTER | J162: 0 | K162: 5042.74 | L162: 421.14 | M162: 597.4 | N162: 6061.28 | O162: 0.009999999999 | P162: 6061.27
A163: 154 | B163: LEVERETT | C163: 126.92 | D163: 6.58 | E163: 0 | F163: 133.5 | H163: 154 | I163: LEVERETT | J163: 0 | K163: 126.92 | L163: 6.58 | M163: 0 | N163: 133.5 | O163: 0.01 | P163: 133.49
A164: 155 | B164: LEXINGTON | C164: 6520.04 | D164: 257.29 | E164: 0 | F164: 6777.33 | H164: 155 | I164: LEXINGTON | J164: 0 | K164: 6520.04 | L164: 257.29 | M164: 0 | N164: 6777.33 | O164: 0 | P164: 6777.33
A165: 156 | B165: LEYDEN | C165: 0 | D165: 0 | E165: 0 | F165: 0 | H165: 156 | I165: LEYDEN | J165: 0 | K165: 0 | L165: 0 | M165: 0 | N165: 0 | O165: 0 | P165: 0
A166: 157 | B166: LINCOLN | C166: 1150.66 | D166: 50.63 | E166: 0 | F166: 1201.29 | H166: 157 | I166: LINCOLN | J166: 0 | K166: 1150.66 | L166: 50.63 | M166: 0 | N166: 1201.29 | O166: 0 | P166: 1201.29
A167: 158 | B167: LITTLETON | C167: 1512.94 | D167: 84.01 | E167: 0 | F167: 1596.95 | H167: 158 | I167: LITTLETON | J167: 0 | K167: 1512.94 | L167: 84.01 | M167: 0 | N167: 1596.95 | O167: 0 | P167: 1596.95
A168: 159 | B168: LONGMEADOW | C168: 2722.64 | D168: 137.04 | E168: 6.77 | F168: 2866.45 | H168: 159 | I168: LONGMEADOW | J168: 0 | K168: 2722.64 | L168: 137.04 | M168: 6.77 | N168: 2866.45 | O168: -0.01 | P168: 2866.46
A169: 160 | B169: LOWELL | C169: 12898.29 | D169: 817.16 | E169: 241.8 | F169: 13957.25 | H169: 160 | I169: LOWELL | J169: 0 | K169: 12898.29 | L169: 817.16 | M169: 241.8 | N169: 13957.25 | O169: 0.01 | P169: 13957.24
A170: 161 | B170: LUDLOW | C170: 2476.37 | D170: 171.49 | E170: 35.36 | F170: 2683.22 | H170: 161 | I170: LUDLOW | J170: 0 | K170: 2476.37 | L170: 171.49 | M170: 35.36 | N170: 2683.22 | O170: 0 | P170: 2683.22
A171: 162 | B171: LUNENBURG | C171: 1470.97 | D171: 92.31 | E171: 0 | F171: 1563.28 | H171: 162 | I171: LUNENBURG | J171: 0 | K171: 1470.97 | L171: 92.31 | M171: 0 | N171: 1563.28 | O171: 0 | P171: 1563.28
A172: 163 | B172: LYNN | C172: 13329.47 | D172: 984.76 | E172: 620.88 | F172: 14935.11 | H172: 163 | I172: LYNN | J172: 0 | K172: 13329.47 | L172: 984.76 | M172: 620.88 | N172: 14935.11 | O172: 0 | P172: 14935.11
A173: 164 | B173: LYNNFIELD | C173: 2090.14 | D173: 104.7 | E173: 0 | F173: 2194.84 | H173: 164 | I173: LYNNFIELD | J173: 0 | K173: 2090.14 | L173: 104.7 | M173: 0 | N173: 2194.84 | O173: 0 | P173: 2194.84
A174: 165 | B174: MALDEN | C174: 6147.37 | D174: 367.75 | E174: 0 | F174: 6515.12 | H174: 165 | I174: MALDEN | J174: 0 | K174: 6147.37 | L174: 367.75 | M174: 0 | N174: 6515.12 | O174: 0 | P174: 6515.12
A175: 166 | B175: MANCHESTER | C175: 0 | D175: 0 | E175: 0 | F175: 0 | H175: 166 | I175: MANCHESTER | J175: 0 | K175: 0 | L175: 0 | M175: 0 | N175: 0 | O175: 0 | P175: 0
A176: 167 | B176: MANSFIELD | C176: 3914.51 | D176: 211.41 | E176: 0 | F176: 4125.92 | H176: 167 | I176: MANSFIELD | J176: 0 | K176: 3914.51 | L176: 211.41 | M176: 0 | N176: 4125.92 | O176: 0 | P176: 4125.92
A177: 168 | B177: MARBLEHEAD | C177: 2992.45 | D177: 231.32 | E177: 0 | F177: 3223.77 | H177: 168 | I177: MARBLEHEAD | J177: 0 | K177: 2992.45 | L177: 231.32 | M177: 0 | N177: 3223.77 | O177: 0 | P177: 3223.77
A178: 169 | B178: MARION | C178: 412.63 | D178: 19.75 | E178: 0 | F178: 432.38 | H178: 169 | I178: MARION | J178: 0 | K178: 412.63 | L178: 19.75 | M178: 0 | N178: 432.38 | O178: 0 | P178: 432.38
A179: 170 | B179: MARLBOROUGH | C179: 4226.53 | D179: 334.44 | E179: 0 | F179: 4560.97 | H179: 170 | I179: MARLBOROUGH | J179: 0 | K179: 4226.53 | L179: 334.44 | M179: 0 | N179: 4560.97 | O179: 0.009999999999 | P179: 4560.96
A180: 171 | B180: MARSHFIELD | C180: 3960.79 | D180: 196.94 | E180: 47.55 | F180: 4205.28 | H180: 171 | I180: MARSHFIELD | J180: 0 | K180: 3960.79 | L180: 196.94 | M180: 47.55 | N180: 4205.28 | O180: 0 | P180: 4205.28
A181: 172 | B181: MASHPEE | C181: 1582.44 | D181: 95.35 | E181: 0 | F181: 1677.79 | H181: 172 | I181: MASHPEE | J181: 0 | K181: 1582.44 | L181: 95.35 | M181: 0 | N181: 1677.79 | O181: 0 | P181: 1677.79
A182: 173 | B182: MATTAPOISETT | C182: 488.59 | D182: 12.89 | E182: 0 | F182: 501.48 | H182: 173 | I182: MATTAPOISETT | J182: 0 | K182: 488.59 | L182: 12.89 | M182: 0 | N182: 501.48 | O182: 0 | P182: 501.48
A183: 174 | B183: MAYNARD | C183: 1342.39 | D183: 75.93 | E183: 0 | F183: 1418.32 | H183: 174 | I183: MAYNARD | J183: 0 | K183: 1342.39 | L183: 75.93 | M183: 0 | N183: 1418.32 | O183: 0 | P183: 1418.32
A184: 175 | B184: MEDFIELD | C184: 2508.89 | D184: 81.79 | E184: 0 | F184: 2590.68 | H184: 175 | I184: MEDFIELD | J184: 0 | K184: 2508.89 | L184: 81.79 | M184: 0 | N184: 2590.68 | O184: 0 | P184: 2590.68
A185: 176 | B185: MEDFORD | C185: 3975.84 | D185: 278.68 | E185: 181.38 | F185: 4435.9 | H185: 176 | I185: MEDFORD | J185: 0 | K185: 3975.84 | L185: 278.68 | M185: 181.38 | N185: 4435.9 | O185: 0.01 | P185: 4435.89
A186: 177 | B186: MEDWAY | C186: 2305.96 | D186: 88.98 | E186: 0 | F186: 2394.94 | H186: 177 | I186: MEDWAY | J186: 0 | K186: 2305.96 | L186: 88.98 | M186: 0 | N186: 2394.94 | O186: 0 | P186: 2394.94
A187: 178 | B187: MELROSE | C187: 3535.91 | D187: 155.85 | E187: 0 | F187: 3691.76 | H187: 178 | I187: MELROSE | J187: 0 | K187: 3535.91 | L187: 155.85 | M187: 0 | N187: 3691.76 | O187: 0 | P187: 3691.76
A188: 179 | B188: MENDON | C188: 0 | D188: 0 | E188: 0 | F188: 0 | H188: 179 | I188: MENDON | J188: 0 | K188: 0 | L188: 0 | M188: 0 | N188: 0 | O188: 0 | P188: 0
A189: 180 | B189: MERRIMAC | C189: 0 | D189: 0 | E189: 0 | F189: 0 | H189: 180 | I189: MERRIMAC | J189: 0 | K189: 0 | L189: 0 | M189: 0 | N189: 0 | O189: 0 | P189: 0
A190: 181 | B190: METHUEN | C190: 6383.39 | D190: 362.1 | E190: 206.52 | F190: 6952.01 | H190: 181 | I190: METHUEN | J190: 0 | K190: 6383.39 | L190: 362.1 | M190: 206.52 | N190: 6952.01 | O190: 0 | P190: 6952.01
A191: 182 | B191: MIDDLEBOROUGH | C191: 2922.94 | D191: 179.81 | E191: 0 | F191: 3102.75 | H191: 182 | I191: MIDDLEBOROUGH | J191: 0 | K191: 2922.94 | L191: 179.81 | M191: 0 | N191: 3102.75 | O191: -0.01 | P191: 3102.76
A192: 183 | B192: MIDDLEFIELD | C192: 0 | D192: 0 | E192: 0 | F192: 0 | H192: 183 | I192: MIDDLEFIELD | J192: 0 | K192: 0 | L192: 0 | M192: 0 | N192: 0 | O192: 0 | P192: 0
A193: 184 | B193: MIDDLETON | C193: 708.95 | D193: 43.63 | E193: 0 | F193: 752.58 | H193: 184 | I193: MIDDLETON | J193: 0 | K193: 708.95 | L193: 43.63 | M193: 0 | N193: 752.58 | O193: 0 | P193: 752.58
A194: 185 | B194: MILFORD | C194: 3884.65 | D194: 223.46 | E194: 16.9 | F194: 4125.01 | H194: 185 | I194: MILFORD | J194: 0 | K194: 3884.65 | L194: 223.46 | M194: 16.9 | N194: 4125.01 | O194: 0 | P194: 4125.01
A195: 186 | B195: MILLBURY | C195: 1599.78 | D195: 94.41 | E195: 0 | F195: 1694.19 | H195: 186 | I195: MILLBURY | J195: 0 | K195: 1599.78 | L195: 94.41 | M195: 0 | N195: 1694.19 | O195: 0 | P195: 1694.19
A196: 187 | B196: MILLIS | C196: 1330.03 | D196: 39.33 | E196: 0 | F196: 1369.36 | H196: 187 | I196: MILLIS | J196: 0 | K196: 1330.03 | L196: 39.33 | M196: 0 | N196: 1369.36 | O196: 0 | P196: 1369.36
A197: 188 | B197: MILLVILLE | C197: 0 | D197: 0 | E197: 0 | F197: 0 | H197: 188 | I197: MILLVILLE | J197: 0 | K197: 0 | L197: 0 | M197: 0 | N197: 0 | O197: 0 | P197: 0
A198: 189 | B198: MILTON | C198: 3821.21 | D198: 170.34 | E198: 0 | F198: 3991.55 | H198: 189 | I198: MILTON | J198: 0 | K198: 3821.21 | L198: 170.34 | M198: 0 | N198: 3991.55 | O198: 0 | P198: 3991.55
A199: 190 | B199: MONROE | C199: 0 | D199: 0 | E199: 0 | F199: 0 | H199: 190 | I199: MONROE | J199: 0 | K199: 0 | L199: 0 | M199: 0 | N199: 0 | O199: 0 | P199: 0
A200: 191 | B200: MONSON | C200: 1031.98 | D200: 53.58 | E200: 0 | F200: 1085.56 | H200: 191 | I200: MONSON | J200: 0 | K200: 1031.98 | L200: 53.58 | M200: 0 | N200: 1085.56 | O200: 0 | P200: 1085.56
A201: 192 | B201: MONTAGUE | C201: 0 | D201: 0 | E201: 0 | F201: 0 | H201: 192 | I201: MONTAGUE | J201: 0 | K201: 0 | L201: 0 | M201: 0 | N201: 0 | O201: 0 | P201: 0
A202: 193 | B202: MONTEREY | C202: 0 | D202: 0 | E202: 0 | F202: 0 | H202: 193 | I202: MONTEREY | J202: 0 | K202: 0 | L202: 0 | M202: 0 | N202: 0 | O202: 0 | P202: 0
A203: 194 | B203: MONTGOMERY | C203: =K203 -> 0 | D203: =L203 -> 0 | E203: =M203 -> 0 | F203: =N203 -> 0 | H203: 194 | I203: MONTGOMERY | J203: 0 | K203: 0 | L203: 0 | M203: 0 | N203: 0 | O203: 0 | P203: 0
... 247 more rows

Sheet tuitioncalc (hidden)
A2: Massachusetts Department of Elementary and Secondary Education
A3: Office of School Finance
A4: FY16 School Choice Rate
B6: ------- Instructional Expenditures -------- | F6: ---------- Expenditures For Pupil Services ------------------ | J6: - Expenditures For Administration, Maintenance & Fixed Charges - | O6: Full-Time
B7: From | C7: From | F7: From | G7: From | J7: From | K7: From | N7: Total Expend- | O7: Equivalent | P7: Average
B8: General | C8: School Choice | F8: General | G8: School Choice | J8: General | K8: School Choice | N8: itures for | O8: Average | P8: Cost | Q8: Allowed
B9: Fund | C9: & Tuition Funds | D9: Total | F9: Fund | G9: & Tuition Funds | H9: Total | J9: Fund | K9: & Tuition Funds | L9: Total | N9: Choice Rate | O9: Membership | P9: Per Pupil | Q9: Cost
A10: =lastlea&" "&VLOOKUP(lastlea,code436,2) -> 885 WHITTIER
A13: Regular Day Total | B13: =ROUND(eoy!E822,0) -> 0 | C13: =ROUND($O13/$O$21*C$21,0) -> 16 | D13: =B13+C13 -> 16 | F13: =ROUND($O13/$O$21*F$21,0) -> 193 | G13: =ROUND($O13/$O$21*G$21,0) -> 12 | H13: =F13+G13 -> 205 | J13: =ROUND(J$21*(D13/D$21),0) -> 10 | K13: =ROUND(K$21*(D13/D$21),0) -> 0 | L13: =J13+K13 -> 10 | N13: =D13+H13+L13 -> 231 | O13: =VLOOKUP(leaextract,membership,3) -> 0.13 | P13: =IF(O13>0,ROUND(N13/O13,0)," ") -> 1777 | Q13: =IF(O13>0,MINA(5000,ROUND(P13*0.75,0)),0) -> 1333 | R13: ratereg
A15: Special Needs in District | B15: =eoy!F822 -> 1122595 | C15: =ROUND($O15/$O$21*C$21,0) -> 10281 | D15: =B15+C15 -> 1132876 | F15: =ROUND($O15/$O$21*F$21,0) -> 122065 | G15: =ROUND($O15/$O$21*G$21,0) -> 7661 | H15: =F15+G15 -> 129726 | J15: =ROUND(J$21*(D15/D$21),0) -> 702019 | K15: =ROUND(K$21*(D15/D$21),0) -> 16565 | L15: =J15+K15 -> 718584 | N15: =D15+H15+L15 -> 1981186 | O15: =VLOOKUP(leaextract,membership,4) -> 82.09 | P15: =IF(O15>0,ROUND(N15/O15,0)," ") -> 24134
A17: left blank | P17: =IF(O17>0,ROUND(N17/O17,0)," ") ->  | Q17: =IF(O17>0,MINA(5000,ROUND(P17*0.75,0))," ") -> 
A19: Occupational Day Senior High | B19: =eoy!G822 -> 9733662 | C19: =ROUND($O19/$O$21*C$21,0) -> 149023 | D19: =B19+C19 -> 9882685 | F19: =ROUND($O19/$O$21*F$21,0) -> 1769244 | G19: =ROUND($O19/$O$21*G$21,0) -> 111039 | H19: =F19+G19 -> 1880283 | J19: =ROUND(J$21*(D19/D$21),0) -> 6124093 | K19: =ROUND(K$21*(D19/D$21),0) -> 144501 | L19: =J19+K19 -> 6268594 | N19: =D19+H19+L19 -> 18031562 | O19: =VLOOKUP(leaextract,membership,5) -> 1189.84 | P19: =IF(O19>0,ROUND(N19/O19,0)," ") -> 15155 | Q19: =IF(O19>0,MINA(5000,ROUND(P19*0.75,0))," ") -> 5000 | R19: rateocced
A21: Total (Including Special Ed) | B21: =SUM(B9:B19) -> 10856257 | C21: =eoy!L583 -> 159321 | D21: =SUM(D13:D19) -> 11015577 | F21: =eoy!I822+eoy!I283+eoy!I291+eoy!I307+eoy!I315+eoy!I323+eoy!I331+eoy!I489+eoy!I491 -> 1891502 | G21: =eoy!L585+eoy!L586+eoy!L588+eoy!L589+eoy!L590+eoy!L591 -> 118712 | H21: =SUM(H13:H19) -> 2010214 | J21: =eoy!I66+eoy!I74+eoy!I82+eoy!I90+eoy!I98+eoy!I106+eoy!I114+eoy!I127+eoy!I339+eoy!I344+eoy!I349+eoy!I357+eoy!I365+eoy!I370+eoy!I378+eoy!I383+eoy!I391+eoy!I399+eoy!I401+eoy!I407+eoy!I412+eoy!I414+eoy!I415+eoy!I416+eoy!I418+eoy!I419+eoy!I481+eoy!I482+eoy!I483+eoy!I484+eoy!I485+eoy!I486+SUM(eoy!I492:'eoy'!I502)+SUM(eoy!I508:'eoy'!I514)+eoy!I516+eoy!I517 -> 6826122 | K21: =SUM(eoy!L546:'eoy'!L554)+SUM(eoy!L592:'eoy'!L609)+eoy!L611+eoy!L612 -> 161066 | L21: =SUM(L13:L19) -> 6987188 | N21: =SUM(N13:N19) -> 20012979 | O21: =SUM(O13:O19) -> 1272.06

Sheet eoy (hidden)
C1: Copyright 2015 by Massachusetts Department of Elementary and Secondary Education. Permission is hereby granted to Massachusetts public school officials to
C2: to reproduce this document as needed to complete the 2014-2015 End of Year Financial Report. All other rights reserved.
A4: Massachusetts Department of Elementary and Secondary Education
A5: FY15 END OF YEAR FINANCIAL REPORT
E6: 2015-10-27
C7: 885 | D7: WHITTIER | E7: For all related information go to: | H7: http://www.doe.mass.edu/finance/accounting/eoy/?fy=15
C9: SCHEDULE 1 | E9: 1 | F9: 2 | G9: 3 | H9: 4 | I9: 5 | J9: 6
C10: REVENUE AND EXPENDITURE SUMMARY
G11: CH 74 VOC-
E12: REGULAR | F12: SPECIAL | G12: ATIONAL/ | H12: OTHER | I12: UNDISTRIB-
C13: I. REVENUES | E13: DAY | F13: EDUCATION | G13: TECHNICAL | H13: PROGRAMS | I13: UTED | J13: TOTAL
A14: Row | C14: Line | D14: A. REVENUE FROM LOCAL SOURCES
A15: 15 | C15: 10 | D15: Assessments Received by Regional Schools | I15: 12637157 | J15: 12637157 | AA15: =ROW() - A15 -> 0
A16: 16 | C16: 20 | D16: E & D Fund Appropriations FY15: Revenues to Regional District | J16: 0 | AA16: =ROW() - A16 -> 0
A17: 17 | C17: 30 | D17: Tuition From Individuals | J17: 0 | AA17: 0
A18: 18 | C18: 40 | D18: Tuition From Other Districts in Comm. | J18: 0 | AA18: 0
A19: 19 | C19: 50 | D19: Tuition From Districts in Other States | G19: 45492 | J19: 45492 | AA19: 0
A20: 20 | C20: 60 | D20: Previous Yr Unexpended Encumbrances (Carry Forward) | I20: 3571 | J20: 3571 | AA20: 0
A21: 21 | C21: 70 | D21: Transportation Fees | J21: 0 | AA21: 0
A22: 22 | C22: 80 | D22: Earnings on Investments | I22: 15478 | J22: 15478 | AA22: 0
A23: 23 | C23: 90 | D23: Rental of School Facilities | J23: 0 | AA23: 0
A24: 24 | C24: 100 | D24: Other Revenue | I24: 1978 | J24: 1978 | AA24: 0
A25: 25 | C25: 101 | D25: Medical Care and Assistance | F25: 47369 | J25: 47369 | AA25: 0
A26: 26 | C26: 105 | D26: Non Revenue Receipts | J26: 0 | AA26: 0
A27: 27 | C27: 110 | D27: TOTAL REVENUE FROM LOCAL SOURCES | E27: 0 | F27: 47369 | G27: 45492 | H27: 0 | I27: 12658184 | J27: 12751045 | AA27: 0
D28: B. REVENUE FROM STATE AID | E28: ------------------------State aid is not reported by program --------------------------- | AA28: 28
A29: 29 | C29: 125 | D29: School Aid (Chapter 70) | I29: 8010858.993 | J29: 8010859 | AA29: 0
A30: 30 | C30: 130 | D30: Mass. School Building Authority Construction Aid | E30: Contract | H30: Other | J30: 0 | AA30: 0
A31: 31 | C31: 140 | D31: Pupil Transportation (Ch. 71,71A,71B,74) | I31: 844601.6813 | J31: 844602 | AA31: 0
A32: 32 | C32: 170 | D32: Charter Tuition Reimbursements and Facilities Aid | E32: Charter Reimb | F32: 0 | H32: Facilities | I32: 0 | J32: 0 | AA32: 0
A33: 33 | C33: 180 | D33: Circuit Breaker | I33: 0 | J33: 0 | AA33: 0
A34: 34 | C34: 190 | D34: Foundation Reserve, State Impact Aid, and Regional Bonus Aid | I34: 0 | J34: 0 | AA34: 0
A35: 35 | C35: 200 | D35: TOTAL REVENUE FROM STATE AID | J35: 8855461 | AA35: 0
A36: 36 | AA36: 0
A37: 37 | D37: C. REVENUE FROM FEDERAL GRANTS | AA37: 0
A38: 38 | C38: 300 | D38: ESE Administered Grants | E38: 273644 | F38: 378805 | G38: 244515 | I38: 52377 | J38: 949341 | AA38: 0
A39: 39 | C39: 481 | D39: Other Federal Grants | J39: 0 | AA39: 0
A40: 40 | C40: 490 | D40: TOTAL REVENUE FEDERAL GRANTS | E40: 273644 | F40: 378805 | G40: 244515 | H40: 0 | I40: 52377 | J40: 949341 | AA40: 0
D41: D. REVENUE FROM STATE GRANTS | AA41: 41
A42: 42 | C42: 510 | D42: ESE Administered Grants | E42: 0 | F42: 0 | G42: 0 | I42: 31109 | J42: 31109 | AA42: 0
A43: 43 | C43: 590 | D43: Other State Grants | G43: 75030 | J43: 75030 | AA43: 0
A44: 44 | C44: 600 | D44: TOTAL REVENUE STATE GRANTS | E44: 0 | F44: 0 | G44: 75030 | H44: 0 | I44: 31109 | J44: 106139 | AA44: 0
D45: E. REVENUE- REVOLVING & SPECIAL FUNDS | AA45: 45
A46: 46 | C46: 610 | D46: School Lunch Receipts | I46: 584442 | J46: 584442 | AA46: 0
A47: 47 | C47: 620 | D47: Athletic Receipts | I47: 13640 | J47: 13640 | AA47: 0
A48: 48 | C48: 630 | D48: Tuition Receipts-School Choice | E48: 0 | F48: 51086 | G48: 698350 | J48: 749436 | AA48: 0
A49: 49 | C49: 640 | D49: Tuition Receipts-Other | G49: 58855 | H49: 275280 | J49: 334135 | AA49: 0
A50: 50 | C50: 650 | D50: Other Local Receipts | I50: 162480 | J50: 162480 | AA50: 0
A51: 51 | C51: 660 | D51: Private Grants | E51: 0 | F51: 0 | G51: 0 | I51: 8996 | J51: 8996 | AA51: 0
A52: 52 | C52: 670 | D52: TOTAL REVENUE REVOLVING & SPECIAL FUNDS | E52: 0 | F52: 51086 | G52: 757205 | H52: 275280 | I52: 769558 | J52: 1853129 | AA52: 0
AA53: 53
AA54: 54
C55: SCHEDULE 1 | E55: 1 | F55: 2 | G55: 3 | H55: 4 | I55: 5 | J55: 6 | AA55: 55
C56: REVENUE AND EXPENDITURE SUMMARY | AA56: 56
G57: CH 74 VOC- | AA57: 57
C58: II. EXPENDITURES | E58: REGULAR | F58: SPECIAL | G58: ATIONAL/ | H58: OTHER | I58: UNDISTRIB- | AA58: 58
C59: A. BY SCHOOL COMMITTEE | E59: DAY | F59: EDUCATION | G59: TECHNICAL | H59: PROGRAMS | I59: UTED | J59: TOTAL | AA59: 59
D60: School Committee (1110) | AA60: 60
A61: 61 | C61: 702 | D61: Clerical Salaries (02) | J61: 0 | AA61: 0
A62: 62 | C62: 703 | D62: Other Salaries (03) | J62: 0 | AA62: 0
A63: 63 | C63: 704 | D63: Contracted Services (04) | J63: 0 | AA63: 0
A64: 64 | C64: 705 | D64: Supplies and Materials (05) | I64: 12719 | J64: 12719 | AA64: 0
A65: 65 | C65: 706 | D65: Other Expenses (06) | I65: 57884 | J65: 57884 | AA65: 0
A66: 66 | C66: 709 | D66: Sub-total | I66: 70603 | J66: 70603 | AA66: 0
D67: Superintendent (1210) | AA67: 67
A68: 68 | C68: 721 | D68: Professional Salaries (01) | I68: 187000 | J68: 187000 | AA68: 0
A69: 69 | C69: 722 | D69: Clerical Salaries (02) | I69: 77197 | J69: 77197 | AA69: 0
A70: 70 | C70: 723 | D70: Other Salaries (03) | J70: 0 | AA70: 0
A71: 71 | C71: 724 | D71: Contracted Services (04) | J71: 0 | AA71: 0
A72: 72 | C72: 725 | D72: Supplies and Materials (05) | I72: 38049 | J72: 38049 | AA72: 0
A73: 73 | C73: 726 | D73: Other Expenses (06) | I73: 40941 | J73: 40941 | AA73: 0
A74: 74 | C74: 729 | D74: Sub-total | I74: 343187 | J74: 343187 | AA74: 0
D75: Assistant Superintendents (1220) | AA75: 75
A76: 76 | C76: 741 | D76: Professional Salaries (01) | J76: 0 | AA76: 0
A77: 77 | C77: 742 | D77: Clerical Salaries (02) | J77: 0 | AA77: 0
A78: 78 | C78: 743 | D78: Other Salaries (03) | J78: 0 | AA78: 0
A79: 79 | C79: 744 | D79: Contracted Services (04) | J79: 0 | AA79: 0
A80: 80 | C80: 745 | D80: Supplies and Materials (05) | J80: 0 | AA80: =ROW() - A80 -> 0
A81: 81 | C81: 746 | D81: Other Expenses (06) | J81: 0 | AA81: 0
A82: 82 | C82: 749 | D82: Sub-total | I82: 0 | J82: 0 | AA82: 0
D83: Other District-Wide Administration (1230) | AA83: 83
A84: 84 | C84: 761 | D84: Professional Salaries (01) | J84: 0 | AA84: 0
A85: 85 | C85: 762 | D85: Clerical Salaries (02) | J85: 0 | AA85: 0
A86: 86 | C86: 763 | D86: Other Salaries (03) | J86: 0 | AA86: 0
A87: 87 | C87: 764 | D87: Contracted Services (04) | J87: 0 | AA87: 0
A88: 88 | C88: 765 | D88: Supplies and Materials (05) | J88: 0 | AA88: 0
A89: 89 | C89: 766 | D89: Other Expenses (06) | J89: 0 | AA89: 0
A90: 90 | C90: 769 | D90: Sub-total | I90: 0 | J90: 0 | AA90: 0
D91: Business and Finance (1410) | AA91: 91
A92: 92 | C92: 781 | D92: Professional Salaries (01) | I92: 136555 | J92: 136555 | AA92: 0
A93: 93 | C93: 782 | D93: Clerical Salaries (02) | I93: 208209 | J93: 208209 | AA93: 0
A94: 94 | C94: 783 | D94: Other Salaries (03) | J94: 0 | AA94: 0
A95: 95 | C95: 784 | D95: Contracted Services (04) | J95: 0 | AA95: 0
A96: 96 | C96: 785 | D96: Supplies and Materials (05) | J96: 0 | AA96: 0
A97: 97 | C97: 786 | D97: Other Expenses (06) | J97: 0 | AA97: 0
A98: 98 | C98: 789 | D98: Sub-total | I98: 344764 | J98: 344764 | AA98: 0
D99: Human Resources and Benefits (1420) | AA99: 99
A100: 100 | C100: 801 | D100: Professional Salaries (01) | J100: 0 | AA100: 0
A101: 101 | C101: 802 | D101: Clerical Salaries (02) | I101: 59409 | J101: 59409 | AA101: 0
A102: 102 | C102: 803 | D102: Other Salaries (03) | J102: 0 | AA102: 0
A103: 103 | C103: 804 | D103: Contracted Services (04) | J103: 0 | AA103: 0
A104: 104 | C104: 805 | D104: Supplies and Materials (05) | J104: 0 | AA104: 0
A105: 105 | C105: 806 | D105: Other Expenses (06) | J105: 0 | AA105: 0
A106: 106 | C106: 809 | D106: Sub-total | I106: 59409 | J106: 59409 | AA106: 0
D107: Legal Service for School Committee (1430) | AA107: 107
A108: 108 | C108: 821 | D108: Professional Salaries (01) | J108: 0 | AA108: 0
A109: 109 | C109: 822 | D109: Clerical Salaries (02) | J109: 0 | AA109: 0
A110: 110 | C110: 823 | D110: Other Salaries (03) | J110: 0 | AA110: 0
A111: 111 | C111: 824 | D111: Contracted Services (04) | I111: 43171 | J111: 43171 | AA111: 0
A112: 112 | C112: 825 | D112: Supplies and Materials (05) | J112: 0 | AA112: 0
A113: 113 | C113: 826 | D113: Other Expenses (06) | J113: 0 | AA113: 0
A114: 114 | C114: 829 | D114: Sub-total | I114: 43171 | J114: 43171 | AA114: 0
D115: Legal Settlements (1435) | AA115: 115
A116: 116 | C116: 844 | D116: Contracted Services (04) | J116: 0 | AA116: 0
A117: 117 | C117: 845 | D117: Supplies and Materials (05) | J117: 0 | AA117: 0
A118: 118 | C118: 846 | D118: Other Expenses (06) | J118: 0 | AA118: 0
A119: 119 | C119: 849 | D119: Sub-total | E119: 0 | F119: 0 | G119: 0 | H119: 0 | J119: 0 | AA119: 0
D120: District-wide Information Mgmt & Tech (1450) | AA120: 120
A121: 121 | C121: 861 | D121: Professional Salaries (01) | I121: 100000 | J121: 100000 | AA121: 0
A122: 122 | C122: 862 | D122: Clerical Salaries (02) | J122: 0 | AA122: 0
A123: 123 | C123: 863 | D123: Other Salaries (03) | I123: 79087 | J123: 79087 | AA123: 0
A124: 124 | C124: 864 | D124: Contracted Services (04) | J124: 0 | AA124: 0
A125: 125 | C125: 865 | D125: Supplies and Materials (05) | J125: 0 | AA125: 0
A126: 126 | C126: 866 | D126: Other Expenses (06) | J126: 0 | AA126: 0
A127: 127 | C127: 869 | D127: Sub-total | I127: 179087 | J127: 179087 | AA127: 0
D128: Curriculum Directors (Supervisory) (2110) | AA128: 128
A129: 129 | C129: 881 | D129: Professional Salaries (01) | E129: 0 | F129: 133533 | G129: 251556 | H129: 0 | J129: 385089 | AA129: 0
A130: 130 | C130: 882 | D130: Clerical Salaries (02) | E130: 0 | F130: 0 | G130: 94419 | H130: 0 | J130: 94419 | AA130: 0
A131: 131 | C131: 883 | D131: Other Salaries (03) | E131: 0 | F131: 0 | G131: 0 | H131: 0 | J131: 0 | AA131: 0
A132: 132 | C132: 884 | D132: Contracted Services (04) | E132: 0 | F132: 0 | G132: 0 | H132: 0 | J132: 0 | AA132: 0
A133: 133 | C133: 885 | D133: Supplies and Materials (05) | E133: 0 | F133: 0 | G133: 0 | H133: 0 | J133: 0 | AA133: 0
A134: 134 | C134: 886 | D134: Other Expenses (06) | E134: 0 | F134: 0 | G134: 0 | H134: 0 | J134: 0 | AA134: 0
A135: 135 | C135: 889 | D135: Sub-total | E135: 0 | F135: 133533 | G135: 345975 | H135: 0 | J135: 479508 | AA135: 0
D136: Department Heads (Non-Supervisory) (2120) | AA136: 136
A137: 137 | C137: 901 | D137: Professional Salaries (01) | E137: 0 | F137: 0 | G137: 70663 | H137: 0 | J137: 70663 | AA137: 0
A138: 138 | C138: 902 | D138: Clerical Salaries (02) | E138: 0 | F138: 0 | G138: 0 | H138: 0 | J138: 0 | AA138: 0
A139: 139 | C139: 903 | D139: Other Salaries (03) | E139: 0 | F139: 0 | G139: 0 | H139: 0 | J139: 0 | AA139: 0
A140: 140 | C140: 904 | D140: Contracted Services (04) | E140: 0 | F140: 0 | G140: 0 | H140: 0 | J140: 0 | AA140: 0
A141: 141 | C141: 905 | D141: Supplies and Materials (05) | E141: 0 | F141: 0 | G141: 0 | H141: 0 | J141: 0 | AA141: 0
A142: 142 | C142: 906 | D142: Other Expenses (06) | E142: 0 | F142: 0 | G142: 0 | H142: 0 | J142: 0 | AA142: 0
A143: 143 | C143: 909 | D143: Sub-total | E143: 0 | F143: 0 | G143: 70663 | H143: 0 | J143: 70663 | AA143: 0
D144: School Leadership-Building (2210) | AA144: =ROW() - A144 -> 144
A145: 145 | C145: 921 | D145: Professional Salaries (01) | I145: 558798 | J145: 558798 | AA145: 0
A146: 146 | C146: 922 | D146: Clerical Salaries (02) | I146: 92801 | J146: 92801 | AA146: 0
A147: 147 | C147: 923 | D147: Other Salaries (03) | I147: 0 | J147: 0 | AA147: 0
A148: 148 | C148: 924 | D148: Contracted Services (04) | I148: 5500 | J148: 5500 | AA148: 0
A149: 149 | C149: 925 | D149: Supplies and Materials (05) | I149: 14186 | J149: 14186 | AA149: 0
A150: 150 | C150: 926 | D150: Other Expenses (06) | I150: 1460 | J150: 1460 | AA150: 0
A151: 151 | C151: 929 | D151: Sub-total | I151: 672745 | J151: 672745 | AA151: 0
D152: School Curriculum Leaders/Department Heads-Building Level (2220) | AA152: 152
A153: 153 | C153: 941 | D153: Professional Salaries (01) | E153: 0 | F153: 0 | G153: 0 | H153: 0 | J153: 0 | AA153: 0
A154: 154 | C154: 942 | D154: Clerical Salaries (02) | E154: 0 | F154: 0 | G154: 0 | H154: 0 | J154: 0 | AA154: 0
A155: 155 | C155: 943 | D155: Other Salaries (03) | E155: 0 | F155: 0 | G155: 0 | H155: 0 | J155: 0 | AA155: 0
A156: 156 | C156: 944 | D156: Contracted Services (04) | E156: 0 | F156: 0 | G156: 0 | H156: 0 | J156: 0 | AA156: 0
A157: 157 | C157: 945 | D157: Supplies and Materials (05) | E157: 0 | F157: 0 | G157: 0 | H157: 0 | J157: 0 | AA157: 0
A158: 158 | C158: 946 | D158: Other Expenses (06) | E158: 0 | F158: 0 | G158: 0 | H158: 0 | J158: 0 | AA158: 0
A159: 159 | C159: 949 | D159: Sub-total | E159: 0 | F159: 0 | G159: 0 | H159: 0 | J159: 0 | AA159: 0
D160: Building Technology (2250) | AA160: 160
A161: 161 | C161: 961 | D161: Professional Salaries (01) | I161: 0 | J161: 0 | AA161: 0
A162: 162 | C162: 962 | D162: Clerical Salaries (02) | I162: 0 | J162: 0 | AA162: 0
A163: 163 | C163: 963 | D163: Other Salaries (03) | I163: 0 | J163: 0 | AA163: 0
A164: 164 | C164: 964 | D164: Contracted Services (04) | I164: 0 | J164: 0 | AA164: 0
A165: 165 | C165: 965 | D165: Supplies and Materials (05) | I165: 0 | J165: 0 | AA165: 0
A166: 166 | C166: 966 | D166: Other Expenses (06) | I166: 0 | J166: 0 | AA166: 0
A167: 167 | C167: 969 | D167: Sub-total | I167: 0 | J167: 0 | AA167: 0
D168: Teachers, Classroom (2305) | AA168: 168
A169: 169 | C169: 981 | D169: Professional Salaries (01) | E169: 0 | F169: 787807 | G169: 7463922 | H169: 0 | J169: 8251729 | AA169: 0
D170: Teachers, Specialists (2310) | AA170: 170
A171: 171 | C171: 1001 | D171: Professional Salaries (01) | E171: 0 | F171: 0 | G171: 0 | H171: 0 | J171: 0 | AA171: 0
D172: Instructional Coordinators and Team Leaders (Non-Supervisory) (2315) | AA172: 172
A173: 173 | C173: 1021 | D173: Professional Salaries (01) | E173: 0 | F173: 0 | G173: 0 | H173: 0 | J173: 0 | AA173: 0
A174: 174 | C174: 1022 | D174: Clerical Salaries (02) | E174: 0 | F174: 0 | G174: 0 | H174: 0 | J174: 0 | AA174: 0
A175: 175 | C175: 1023 | D175: Other Salaries (03) | E175: 0 | F175: 0 | G175: 0 | H175: 0 | J175: 0 | AA175: 0
A176: 176 | C176: 1029 | D176: Sub-total | E176: 0 | F176: 0 | G176: 0 | H176: 0 | J176: 0 | AA176: 0
D177: Medical/ Therapeutic Services (2320) | AA177: 177
A178: 178 | C178: 1041 | D178: Professional Salaries (01) | E178: 0 | F178: 0 | G178: 0 | H178: 0 | J178: 0 | AA178: 0
A179: 179 | C179: 1042 | D179: Clerical Salaries (02) | E179: 0 | F179: 0 | G179: 0 | H179: 0 | J179: 0 | AA179: 0
A180: 180 | C180: 1043 | D180: Other Salaries (03) | E180: 0 | F180: 0 | G180: 0 | H180: 0 | J180: 0 | AA180: 0
A181: 181 | C181: 1044 | D181: Contracted Services (04) | E181: 0 | F181: 0 | G181: 0 | H181: 0 | J181: 0 | AA181: 0
A182: 182 | C182: 1049 | D182: Sub-total | E182: 0 | F182: 0 | G182: 0 | H182: 0 | J182: 0 | AA182: 0
D183: Substitute Teachers (2325) | AA183: 183
A184: 184 | C184: 1063 | D184: Other Salaries (03) | E184: 0 | F184: 8618 | G184: 81671 | H184: 0 | J184: 90289 | AA184: 0
A185: 185 | C185: 1064 | D185: Contracted Services (04) | E185: 0 | F185: 0 | G185: 0 | H185: 0 | J185: 0 | AA185: 0
A186: 186 | C186: 1069 | D186: Sub-total | E186: 0 | F186: 8618 | G186: 81671 | H186: 0 | J186: 90289 | AA186: 0
D187: All Non-Clerical Paraprofessionals/Instructional Assistants (2330) | AA187: 187
A188: 188 | C188: 1083 | D188: Other Salaries (03) | E188: 0 | F188: 57794 | G188: 28397 | H188: 0 | J188: 86191 | AA188: 0
A189: 189 | C189: 1084 | D189: Contracted Services (04) | E189: 0 | F189: 0 | G189: 0 | H189: 0 | J189: 0 | AA189: 0
A190: 190 | C190: 1089 | D190: Sub-total | E190: 0 | F190: 57794 | G190: 28397 | H190: 0 | J190: 86191 | AA190: 0
D191: Librarians and Media Center Directors (2340) | AA191: 191
A192: 192 | C192: 1101 | D192: Professional Salaries (01) | I192: 89327 | J192: 89327 | AA192: 0
A193: 193 | C193: 1102 | D193: Clerical Salaries (02) | I193: 0 | J193: 0 | AA193: 0
A194: 194 | C194: 1103 | D194: Other Salaries (03) | I194: 0 | J194: 0 | AA194: 0
A195: 195 | C195: 1109 | D195: Sub-total | I195: 89327 | J195: 89327 | AA195: 0
D196: Professional Development Leadership (2351) | AA196: 196
A197: 197 | C197: 1121 | D197: Professional Salaries (01) | I197: 0 | J197: 0 | AA197: 0
A198: 198 | C198: 1122 | D198: Clerical Salaries (02) | I198: 0 | J198: 0 | AA198: 0
A199: 199 | C199: 1125 | D199: Supplies and Materials (05) | I199: 0 | J199: 0 | AA199: 0
A200: 200 | C200: 1126 | D200: Other Expenses (06) | I200: 0 | J200: 0 | AA200: 0
A201: 201 | C201: 1129 | D201: Sub-total | I201: 0 | J201: 0 | AA201: 0
D202: Teacher/Instructional Staff-Professional Days (2353) | AA202: 202
... 1103 more rows

Sheet rate summary
A1: Massachusetts Department of Elementary and Secondary Education
A2: Office of School Finance
A4: =A7+1 -> 736 | B4: School Choice Rate Summary FY16
A5: =IF(A6=1,"",VALUE(VLOOKUP(A6,lea_info,2))) -> 735
A6: 395
A7: 735 | B7: =IF($A$7="","",VLOOKUP($A$7,code436,2)) -> NORTH MIDDLESEX
B9: =IF(A7="","",IF(VLOOKUP(A7,webmessage,8)="","",VLOOKUP(A7,webmessage,8))) -> 
D11: Regular | E11: Vocational
B12: Instructional Services | D12: =IF($A$7="","",VLOOKUP($A$7,dataout,6)) -> 14752761 | E12: =IF($A$7="","",VLOOKUP($A$7,dataout,14)) -> 0
B13: Pupil Services | D13: =IF($A$7="","",VLOOKUP($A$7,dataout,7)) -> 3095579 | E13: =IF($A$7="","",VLOOKUP($A$7,dataout,15)) -> 0
B14: Administration and Fixed Charges | D14: =IF($A$7="","",VLOOKUP($A$7,dataout,8)) -> 8723494 | E14: =IF($A$7="","",VLOOKUP($A$7,dataout,16)) -> 0
B15: Total Expenditure | D15: =IF($A$7="","",VLOOKUP($A$7,dataout,9)) -> 26571834 | E15: =IF($A$7="","",VLOOKUP($A$7,dataout,17)) -> 0
B16: FTE Average Membership | D16: =IF($A$7="","",VLOOKUP($A$7,dataout,10)) -> 3066.36 | E16: =IF($A$7="","",VLOOKUP($A$7,dataout,18)) -> 0
B17: Average Cost | D17: =IF(A7="","",VLOOKUP($A$7,dataout,11)) -> 8666 | E17: =IF($A$7="","",VLOOKUP($A$7,dataout,19)) -> 
B18: Eligible Rate* | D18: =IF(A7="","",VLOOKUP($A$7,dataout,12)) -> 5000 | E18: =IF($A$7="","",VLOOKUP($A$7,dataout,20)) -> 
B21: * the lesser of 75 percent of average cost, or $5,000

Sheet dataout (hidden)
C4: =COUNTIF(C10:C447,"Y") -> 184
F5: -----------------------------------------regular ed ------------------------------------------------- | M5: -----------------------------------------vocational-------------------------------------------------
C6: FY16 | J6: average | R6: average
C7: Choice | D7: eoy year or | E7: Date | G7: pupil | H7: fixed | J7: member- | K7: average | L7: allowed | O7: pupil | P7: fixed | R7: member- | S7: average | T7: allowed
C8: District? | D8: "not in" | E8: Run | F8: instructional | G8: services | H8: charges | I8: total | J8: ship | K8: cost | L8: cost | N8: instructional | O8: services | P8: charges | Q8: total | R8: ship | S8: cost | T8: cost
A9: lea | B9: district
A10: 1 | B10: ABINGTON | C10: Y | E10: 2016-06-15 | F10: 8733024 | G10: 2076999 | H10: 4276349 | I10: 15086372 | J10: 1866.98 | K10: 8081 | L10: 5000 | N10: 0 | O10: 0 | P10: 0 | Q10: 0 | R10: 0
A11: 2 | B11: ACTON
A12: 3 | B12: ACUSHNET
A13: 4 | B13: ADAMS
A14: 5 | B14: AGAWAM | C14: Y | E14: 2016-06-15 | F14: 18795316 | G14: 3499660 | H14: 10307626 | I14: 32602602 | J14: 3706.91 | K14: 8795 | L14: 5000 | N14: 813 | O14: 71392 | P14: 446 | Q14: 72651 | R14: 75.62 | S14: 961 | T14: 721
A15: 6 | B15: ALFORD
A16: 7 | B16: AMESBURY | C16: Y | E16: 2016-06-15 | F16: 9828206 | G16: 2264530 | H16: 5294592 | I16: 17387328 | J16: 2094.88 | K16: 8300 | L16: 5000 | N16: 0 | O16: 0 | P16: 0 | Q16: 0 | R16: 0
A17: 8 | B17: AMHERST | C17: Y | E17: 2016-06-15 | F17: 8025536 | G17: 1596220 | H17: 4919781 | I17: 14541537 | J17: 1119.98 | K17: 12984 | L17: 5000 | N17: 0 | O17: 0 | P17: 0 | Q17: 0 | R17: 0
A18: 9 | B18: ANDOVER
A19: 10 | B19: ARLINGTON
A20: 11 | B20: ASHBURNHAM
A21: 12 | B21: ASHBY
A22: 13 | B22: ASHFIELD
A23: 14 | B23: ASHLAND | C23: Y | E23: 2016-06-15 | F23: 14022878 | G23: 1946921 | H23: 6939153 | I23: 22908952 | J23: 2476.98 | K23: 9249 | L23: 5000 | N23: 0 | O23: 0 | P23: 0 | Q23: 0 | R23: 0
A24: 15 | B24: ATHOL
A25: 16 | B25: ATTLEBORO
A26: 17 | B26: AUBURN | C26: Y | E26: 2016-06-15 | F26: 12242156 | G26: 2296257 | H26: 7048315 | I26: 21586728 | J26: 2284.17 | K26: 9451 | L26: 5000 | N26: 0 | O26: 0 | P26: 0 | Q26: 0 | R26: 0
A27: 18 | B27: AVON | C27: Y | E27: 2016-06-15 | F27: 3742227 | G27: 985654 | H27: 2458370 | I27: 7186251 | J27: 695.36 | K27: 10335 | L27: 5000 | N27: 0 | O27: 0 | P27: 0 | Q27: 0 | R27: 0
A28: 19 | B28: AYER
A29: 20 | B29: BARNSTABLE | C29: Y | E29: 2016-06-15 | F29: 27589610 | G29: 5107918 | H29: 14249704 | I29: 46947232 | J29: 4602.73 | K29: 10200 | L29: 5000 | N29: 0 | O29: 0 | P29: 0 | Q29: 0 | R29: 0
A30: 21 | B30: BARRE
A31: 22 | B31: BECKET
A32: 23 | B32: BEDFORD
A33: 24 | B33: BELCHERTOWN | C33: Y | E33: 2016-06-15 | F33: 10308794 | G33: 2025904 | H33: 5617060 | I33: 17951758 | J33: 2201.42 | K33: 8155 | L33: 5000 | N33: 0 | O33: 0 | P33: 0 | Q33: 0 | R33: 0
A34: 25 | B34: BELLINGHAM | C34: Y | E34: 2016-06-15 | F34: 11253923 | G34: 2051469 | H34: 6208589 | I34: 19513981 | J34: 2227.7 | K34: 8760 | L34: 5000 | N34: 0 | O34: 0 | P34: 0 | Q34: 0 | R34: 0
A35: 26 | B35: BELMONT
A36: 27 | B36: BERKLEY | C36: Y | E36: 2016-06-15 | F36: 3638154 | G36: 765554 | H36: 1854082 | I36: 6257790 | J36: 801.72 | K36: 7805 | L36: 5000 | N36: 0 | O36: 0 | P36: 0 | Q36: 0 | R36: 0
A37: 28 | B37: BERLIN | C37: Y | E37: 2016-06-15 | F37: 1260269 | G37: 252855 | H37: 648072 | I37: 2161196 | J37: 176.31 | K37: 12258 | L37: 5000 | N37: 0 | O37: 0 | P37: 0 | Q37: 0 | R37: 0
A38: 29 | B38: BERNARDSTON
A39: 30 | B39: BEVERLY | C39: Y | E39: 2016-06-15 | F39: 20888798 | G39: 3370736 | H39: 12267641 | I39: 36527175 | J39: 4193.82 | K39: 8710 | L39: 5000 | N39: 0 | O39: 0 | P39: 0 | Q39: 0 | R39: 0
A40: 31 | B40: BILLERICA
A41: 32 | B41: BLACKSTONE
A42: 33 | B42: BLANDFORD
A43: 34 | B43: BOLTON
A44: 35 | B44: BOSTON
A45: 36 | B45: BOURNE | C45: Y | E45: 2016-06-15 | F45: 10903771 | G45: 1792938 | H45: 7498537 | I45: 20195246 | J45: 1900.7 | K45: 10625 | L45: 5000 | N45: 0 | O45: 0 | P45: 0 | Q45: 0 | R45: 0
A46: 37 | B46: BOXBOROUGH | E46: 2014-12-24 | F46: 2915271 | G46: 392407 | H46: 1330448 | I46: 4638126 | J46: 412.2153333 | K46: 11252 | L46: 5000 | N46: 0 | O46: 0 | P46: 0 | Q46: 0 | R46: 0
A47: 38 | B47: BOXFORD
A48: 39 | B48: BOYLSTON | C48: Y | E48: 2016-06-15 | F48: 1582052 | G48: 272336 | H48: 675313 | I48: 2529701 | J48: 288.72 | K48: 8762 | L48: 5000 | N48: 0 | O48: 0 | P48: 0 | Q48: 0 | R48: 0
A49: 40 | B49: BRAINTREE
A50: 41 | B50: BREWSTER
A51: 42 | B51: BRIDGEWATER
A52: 43 | B52: BRIMFIELD
A53: 44 | B53: BROCKTON | C53: Y | E53: 2016-06-15 | F53: 88357258 | G53: 17240687 | H53: 53280560 | I53: 158878505 | J53: 15819.33 | K53: 10043 | L53: 5000 | N53: 906372.96 | O53: 219419 | P53: 546555 | Q53: 1672346.96 | R53: 201.33 | S53: 8306 | T53: 5000
A54: 45 | B54: BROOKFIELD | C54: Y | E54: 2016-06-15 | F54: 1445829 | G54: 332762 | H54: 623134 | I54: 2401725 | J54: 319.86 | K54: 7509 | L54: 5000 | N54: 0 | O54: 0 | P54: 0 | Q54: 0 | R54: 0
A55: 46 | B55: BROOKLINE
A56: 47 | B56: BUCKLAND
A57: 48 | B57: BURLINGTON | C57: Y | E57: 2016-06-15 | F57: 28243622 | G57: 4166946 | H57: 12861210 | I57: 45271778 | J57: 3343.09 | K57: 13542 | L57: 5000 | N57: 0 | O57: 0 | P57: 0 | Q57: 0 | R57: 0
A58: 49 | B58: CAMBRIDGE
A59: 50 | B59: CANTON
A60: 51 | B60: CARLISLE
A61: 52 | B61: CARVER | C61: Y | E61: 2016-06-15 | F61: 8858450 | G61: 1558965 | H61: 5383439 | I61: 15800854 | J61: 1523.14 | K61: 10374 | L61: 5000 | N61: 0 | O61: 0 | P61: 0 | Q61: 0 | R61: 0
A62: 53 | B62: CHARLEMONT
A63: 54 | B63: CHARLTON
A64: 55 | B64: CHATHAM
A65: 56 | B65: CHELMSFORD | C65: Y | E65: 2016-06-15 | F65: 26700844 | G65: 3296548 | H65: 11133083 | I65: 41130475 | J65: 4806.94 | K65: 8556 | L65: 5000 | N65: 0 | O65: 0 | P65: 0 | Q65: 0 | R65: 0
A66: 57 | B66: CHELSEA
A67: 58 | B67: CHESHIRE
A68: 59 | B68: CHESTER
A69: 60 | B69: CHESTERFIELD
A70: 61 | B70: CHICOPEE | C70: Y | E70: 2016-06-15 | F70: 35355518 | G70: 6754430 | H70: 19122692 | I70: 61232640 | J70: 6622.64 | K70: 9246 | L70: 5000 | N70: 1577932 | O70: 461036 | P70: 853454 | Q70: 2892422 | R70: 452.04 | S70: 6399 | T70: 4799
A71: 62 | B71: CHILMARK
A72: 63 | B72: CLARKSBURG | C72: Y | E72: 2016-06-15 | F72: 872179 | G72: 157787 | H72: 537603 | I72: 1567569 | J72: 159.18 | K72: 9848 | L72: 5000 | N72: 0 | O72: 0 | P72: 0 | Q72: 0 | R72: 0
A73: 64 | B73: CLINTON | C73: Y | E73: 2016-06-15 | F73: 8224476 | G73: 1364583 | H73: 3777007 | I73: 13366066 | J73: 1716.73 | K73: 7786 | L73: 5000 | N73: 0 | O73: 0 | P73: 0 | Q73: 0 | R73: 0
A74: 65 | B74: COHASSET
A75: 66 | B75: COLRAIN
A76: 67 | B76: CONCORD
A77: 68 | B77: CONWAY | C77: Y | E77: 2016-06-15 | F77: 1078420 | G77: 234895 | H77: 496117 | I77: 1809432 | J77: 157.1 | K77: 11518 | L77: 5000 | N77: 0 | O77: 0 | P77: 0 | Q77: 0 | R77: 0
A78: 69 | B78: CUMMINGTON
A79: 70 | B79: DALTON
A80: 71 | B80: DANVERS
A81: 72 | B81: DARTMOUTH
A82: 73 | B82: DEDHAM
A83: 74 | B83: DEERFIELD | C83: Y | E83: 2016-06-15 | F83: 2618948 | G83: 343754 | H83: 956092 | I83: 3918794 | J83: 405.36 | K83: 9667 | L83: 5000 | N83: 0 | O83: 0 | P83: 0 | Q83: 0 | R83: 0
A84: 75 | B84: DENNIS
A85: 76 | B85: DIGHTON
A86: 77 | B86: DOUGLAS | C86: Y | E86: 2016-06-15 | F86: 6500489 | G86: 1385423 | H86: 3629069 | I86: 11514981 | J86: 1453.58 | K86: 7922 | L86: 5000 | N86: 0 | O86: 0 | P86: 0 | Q86: 0 | R86: 0
A87: 78 | B87: DOVER
A88: 79 | B88: DRACUT | C88: Y | E88: 2016-06-15 | F88: 14946057 | G88: 1637394 | H88: 10125890 | I88: 26709341 | J88: 3495.47 | K88: 7641 | L88: 5000 | N88: 0 | O88: 0 | P88: 0 | Q88: 0 | R88: 0
A89: 80 | B89: DUDLEY
A90: 81 | B90: DUNSTABLE
A91: 82 | B91: DUXBURY
A92: 83 | B92: EAST BRIDGEWATER | C92: Y | E92: 2016-06-15 | F92: 9130087 | G92: 1727661 | H92: 4489173 | I92: 15346921 | J92: 2147.68 | K92: 7146 | L92: 5000 | N92: 0 | O92: 0 | P92: 0 | Q92: 0 | R92: 0
A93: 84 | B93: EAST BROOKFIELD
A94: 85 | B94: EASTHAM
A95: 86 | B95: EASTHAMPTON | C95: Y | E95: 2016-06-15 | F95: 6772890 | G95: 1227673 | H95: 4113099 | I95: 12113662 | J95: 1385.96 | K95: 8740 | L95: 5000 | N95: 31668 | O95: 51296 | P95: 19232 | Q95: 102196 | R95: 57.91 | S95: 1765 | T95: 1324
A96: 87 | B96: EAST LONGMEADOW
A97: 88 | B97: EASTON
A98: 89 | B98: EDGARTOWN | C98: Y | E98: 2016-06-15 | F98: 3620460 | G98: 845892 | H98: 1996474 | I98: 6462826 | J98: 323.27 | K98: 19992 | L98: 5000 | N98: 0 | O98: 0 | P98: 0 | Q98: 0 | R98: 0
A99: 90 | B99: EGREMONT
A100: 91 | B100: ERVING
A101: 92 | B101: ESSEX
A102: 93 | B102: EVERETT
A103: 94 | B103: FAIRHAVEN | C103: T | E103: 2016-06-15 | F103: 9361125 | G103: 1980184 | H103: 5010117 | I103: 16351426 | J103: 1922.44 | K103: 8506 | L103: 5000 | N103: 0 | O103: 0 | P103: 0 | Q103: 0 | R103: 0
A104: 95 | B104: FALL RIVER | C104: Y | E104: 2016-06-15 | F104: 39308956 | G104: 7882573 | H104: 29316929 | I104: 76508458 | J104: 9002.35 | K104: 8499 | L104: 5000 | N104: 998216 | O104: 322138 | P104: 744477 | Q104: 2064831 | R104: 367.9 | S104: 5612 | T104: 4209
A105: 96 | B105: FALMOUTH | C105: Y | E105: 2016-06-15 | F105: 20547471 | G105: 3749361 | H105: 11860002 | I105: 36156834 | J105: 3124.3 | K105: 11573 | L105: 5000 | N105: 0 | O105: 244513 | P105: 0 | Q105: 244513 | R105: 203.75 | S105: 1200 | T105: 900
A106: 97 | B106: FITCHBURG | C106: Y | E106: 2016-06-15 | F106: 22921906 | G106: 3210983 | H106: 13922609 | I106: 40055498 | J106: 4579.55 | K106: 8747 | L106: 5000 | N106: 0 | O106: 0 | P106: 0 | Q106: 0 | R106: 0
A107: 98 | B107: FLORIDA | C107: Y | E107: 2016-06-15 | F107: 483663 | G107: 121264 | H107: 368106 | I107: 973033 | J107: 77.67 | K107: 12528 | L107: 5000 | N107: 0 | O107: 0 | P107: 0 | Q107: 0 | R107: 0
A108: 99 | B108: FOXBOROUGH
A109: 100 | B109: FRAMINGHAM
A110: 101 | B110: FRANKLIN | C110: Y | E110: 2016-06-15 | F110: 27757669 | G110: 5611235 | H110: 11695411 | I110: 45064315 | J110: 5370.36 | K110: 8391 | L110: 5000 | N110: 0 | O110: 0 | P110: 0 | Q110: 0 | R110: 0
A111: 102 | B111: FREETOWN
A112: 103 | B112: GARDNER | C112: Y | E112: 2016-06-15 | F112: 9567893 | G112: 2269321 | H112: 6642042 | I112: 18479256 | J112: 2246.17 | K112: 8227 | L112: 5000 | N112: 0 | O112: 0 | P112: 0 | Q112: 0 | R112: 0
A113: 104 | B113: AQUINNAH
A114: 105 | B114: GEORGETOWN | C114: Y | E114: 2016-06-15 | F114: 7484940 | G114: 1514147 | H114: 3454914 | I114: 12454001 | J114: 1409.14 | K114: 8838 | L114: 5000 | N114: 0 | O114: 0 | P114: 0 | Q114: 0 | R114: 0
A115: 106 | B115: GILL
A116: 107 | B116: GLOUCESTER | C116: Y | E116: 2016-06-15 | F116: 15382562 | G116: 2823459 | H116: 9944347 | I116: 28150368 | J116: 2583.46 | K116: 10896 | L116: 5000 | N116: 468762.87 | O116: 129508 | P116: 303041 | Q116: 901311.87 | R116: 118.5 | S116: 7606 | T116: 5000
A117: 108 | B117: GOSHEN
A118: 109 | B118: GOSNOLD
A119: 110 | B119: GRAFTON | C119: Y | E119: 2016-06-15 | F119: 13178496 | G119: 3196204 | H119: 5345565 | I119: 21720265 | J119: 2971.32 | K119: 7310 | L119: 5000 | N119: 0 | O119: 0 | P119: 0 | Q119: 0 | R119: 0
A120: 111 | B120: GRANBY | C120: Y | E120: 2016-06-15 | F120: 4320559 | G120: 846625 | H120: 1866337 | I120: 7033521 | J120: 828.83 | K120: 8486 | L120: 5000 | N120: 0 | O120: 0 | P120: 0 | Q120: 0 | R120: 0
A121: 112 | B121: GRANVILLE
A122: 113 | B122: GREAT BARRINGTON
A123: 114 | B123: GREENFIELD | C123: Y | E123: 2016-06-15 | F123: 7421519 | G123: 1755117 | H123: 5586676 | I123: 14763312 | J123: 1581.44 | K123: 9335 | L123: 5000 | N123: 0 | O123: 0 | P123: 0 | Q123: 0 | R123: 0
A124: 115 | B124: GROTON
A125: 116 | B125: GROVELAND
A126: 117 | B126: HADLEY | C126: Y | E126: 2016-06-15 | F126: 2768778 | G126: 865571 | H126: 1520535 | I126: 5154884 | J126: 593.43 | K126: 8687 | L126: 5000 | N126: 0 | O126: 0 | P126: 0 | Q126: 0 | R126: 0
A127: 118 | B127: HALIFAX
A128: 119 | B128: HAMILTON
A129: 120 | B129: HAMPDEN
A130: 121 | B130: HANCOCK | C130: Y | E130: 2016-06-15 | F130: 315401 | G130: 93057 | H130: 60223 | I130: 468681 | J130: 39.38 | K130: 11901 | L130: 5000 | N130: 0 | O130: 0 | P130: 0 | Q130: 0 | R130: 0
A131: 122 | B131: HANOVER
A132: 123 | B132: HANSON
A133: 124 | B133: HARDWICK
A134: 125 | B134: HARVARD | C134: Y | E134: 2016-06-15 | F134: 7542699 | G134: 1178445 | H134: 3394735 | I134: 12115879 | J134: 1114.19 | K134: 10874 | L134: 5000 | N134: 0 | O134: 0 | P134: 0 | Q134: 0 | R134: 0
A135: 126 | B135: HARWICH
A136: 127 | B136: HATFIELD | C136: Y | E136: 2016-06-15 | F136: 2400758 | G136: 567686 | H136: 1352589 | I136: 4321033 | J136: 429.16 | K136: 10069 | L136: 5000 | N136: 0 | O136: 0 | P136: 0 | Q136: 0 | R136: 0
A137: 128 | B137: HAVERHILL | C137: Y | E137: 2016-06-15 | F137: 26811580 | G137: 6556223 | H137: 16867173 | I137: 50234976 | J137: 6601.06 | K137: 7610 | L137: 5000 | N137: 0 | O137: 0 | P137: 0 | Q137: 0 | R137: 0
A138: 129 | B138: HAWLEY
A139: 130 | B139: HEATH
A140: 131 | B140: HINGHAM
A141: 132 | B141: HINSDALE
A142: 133 | B142: HOLBROOK | C142: Y | E142: 2016-06-15 | F142: 4807477 | G142: 1032995 | H142: 3815579 | I142: 9656051 | J142: 1110.8 | K142: 8693 | L142: 5000 | N142: 0 | O142: 0 | P142: 0 | Q142: 0 | R142: 0
A143: 134 | B143: HOLDEN
A144: 135 | B144: HOLLAND | C144: Y | E144: 2016-06-15 | F144: 1183038 | G144: 256034 | H144: 599620 | I144: 2038692 | J144: 226.11 | K144: 9016 | L144: 5000 | N144: 0 | O144: 0 | P144: 0 | Q144: 0 | R144: 0
A145: 136 | B145: HOLLISTON | C145: Y | E145: 2016-06-15 | F145: 16001609 | G145: 2739467 | H145: 4669840 | I145: 23410916 | J145: 2682.39 | K145: 8728 | L145: 5000 | N145: 0 | O145: 0 | P145: 0 | Q145: 0 | R145: 0
A146: 137 | B146: HOLYOKE | C146: Y | E146: 2016-06-15 | F146: 22653670 | G146: 4803080 | H146: 12833489 | I146: 40290239 | J146: 4652.67 | K146: 8660 | L146: 5000 | N146: 1712384.21 | O146: 295070 | P146: 970080 | Q146: 2977534.21 | R146: 285.83 | S146: 10417 | T146: 5000
A147: 138 | B147: HOPEDALE | C147: Y | E147: 2016-06-15 | F147: 5531903 | G147: 1110646 | H147: 2552253 | I147: 9194802 | J147: 1159.23 | K147: 7932 | L147: 5000 | N147: 0 | O147: 0 | P147: 0 | Q147: 0 | R147: 0
A148: 139 | B148: HOPKINTON
A149: 140 | B149: HUBBARDSTON
A150: 141 | B150: HUDSON | C150: Y | E150: 2016-06-15 | F150: 16380862 | G150: 3239611 | H150: 6424736 | I150: 26045209 | J150: 2700.18 | K150: 9646 | L150: 5000 | N150: 0 | O150: 0 | P150: 0 | Q150: 0 | R150: 0
A151: 142 | B151: HULL
A152: 143 | B152: HUNTINGTON
A153: 144 | B153: IPSWICH | C153: Y | E153: 2016-06-15 | F153: 10156906 | G153: 1654472 | H153: 4383103 | I153: 16194481 | J153: 1821.95 | K153: 8889 | L153: 5000 | N153: 0 | O153: 0 | P153: 0 | Q153: 0 | R153: 0
A154: 145 | B154: KINGSTON
A155: 146 | B155: LAKEVILLE
A156: 147 | B156: LANCASTER
A157: 148 | B157: LANESBOROUGH | C157: Y | E157: 2016-06-15 | F157: 1161849 | G157: 217443 | H157: 870148 | I157: 2249440 | J157: 201.65 | K157: 11155 | L157: 5000 | N157: 0 | O157: 0 | P157: 0 | Q157: 0 | R157: 0
A158: 149 | B158: LAWRENCE
A159: 150 | B159: LEE | C159: Y | E159: 2016-06-15 | F159: 4296455 | G159: 903310 | H159: 2859290 | I159: 8059055 | J159: 657.03 | K159: 12266 | L159: 5000 | N159: 0 | O159: 0 | P159: 0 | Q159: 0 | R159: 0
A160: 151 | B160: LEICESTER | C160: Y | E160: 2016-06-15 | F160: 7627232 | G160: 1427495 | H160: 4087606 | I160: 13142333 | J160: 1527.8 | K160: 8602 | L160: 5000 | N160: 0 | O160: 0 | P160: 0 | Q160: 0 | R160: 0
A161: 152 | B161: LENOX | C161: Y | E161: 2016-06-15 | F161: 6055396 | G161: 1016233 | H161: 3271455 | I161: 10343084 | J161: 710.93 | K161: 14549 | L161: 5000 | N161: 0 | O161: 0 | P161: 0 | Q161: 0 | R161: 0
A162: 153 | B162: LEOMINSTER | C162: Y | E162: 2016-06-15 | F162: 25160817 | G162: 3996265 | H162: 13797111 | I162: 42954193 | J162: 5042.74 | K162: 8518 | L162: 5000 | N162: 3528965 | O162: 473427 | P162: 1935132 | Q162: 5937524 | R162: 597.4 | S162: 9939 | T162: 5000
A163: 154 | B163: LEVERETT | C163: Y | E163: 2016-06-15 | F163: 821639 | G163: 291853 | H163: 555891 | I163: 1669383 | J163: 126.92 | K163: 13153 | L163: 5000 | N163: 0 | O163: 0 | P163: 0 | Q163: 0 | R163: 0
A164: 155 | B164: LEXINGTON
A165: 156 | B165: LEYDEN
A166: 157 | B166: LINCOLN
A167: 158 | B167: LITTLETON | C167: Y | E167: 2016-06-15 | F167: 7826381 | G167: 1334620 | H167: 3995950 | I167: 13156951 | J167: 1512.94 | K167: 8696 | L167: 5000 | N167: 0 | O167: 0 | P167: 0 | Q167: 0 | R167: 0
A168: 159 | B168: LONGMEADOW | C168: Y | E168: 2016-06-15 | F168: 16309500 | G168: 3169596 | H168: 7154084 | I168: 26633180 | J168: 2722.64 | K168: 9782 | L168: 5000 | N168: 1901 | O168: 7881 | P168: 834 | Q168: 10616 | R168: 6.77 | S168: 1568 | T168: 1176
A169: 160 | B169: LOWELL
A170: 161 | B170: LUDLOW | C170: Y | E170: 2016-06-15 | F170: 12437539 | G170: 2482146 | H170: 7512333 | I170: 22432018 | J170: 2476.37 | K170: 9058 | L170: 5000 | N170: 9247 | O170: 35442 | P170: 5585 | Q170: 50274 | R170: 35.36 | S170: 1422 | T170: 1067
A171: 162 | B171: LUNENBURG | C171: Y | E171: 2016-06-15 | F171: 7096047 | G171: 1221563 | H171: 3662675 | I171: 11980285 | J171: 1470.97 | K171: 8144 | L171: 5000 | N171: 0 | O171: 0 | P171: 0 | Q171: 0 | R171: 0
A172: 163 | B172: LYNN
A173: 164 | B173: LYNNFIELD
A174: 165 | B174: MALDEN
A175: 166 | B175: MANCHESTER
A176: 167 | B176: MANSFIELD
A177: 168 | B177: MARBLEHEAD
A178: 169 | B178: MARION
A179: 170 | B179: MARLBOROUGH
A180: 171 | B180: MARSHFIELD | C180: Y | E180: 2016-06-15 | F180: 25223243 | G180: 3391314 | H180: 8474044 | I180: 37088601 | J180: 3960.79 | K180: 9364 | L180: 5000 | N180: 7340 | O180: 40713 | P180: 2466 | Q180: 50519 | R180: 47.55 | S180: 1062 | T180: 797
A181: 172 | B181: MASHPEE | C181: Y | E181: 2016-06-15 | F181: 10021897 | G181: 2353669 | H181: 6414320 | I181: 18789886 | J181: 1582.44 | K181: 11874 | L181: 5000 | N181: 0 | O181: 0 | P181: 0 | Q181: 0 | R181: 0
A182: 173 | B182: MATTAPOISETT | C182: Y | E182: 2016-06-15 | F182: 2558789 | G182: 575980 | H182: 1643536 | I182: 4778305 | J182: 488.59 | K182: 9780 | L182: 5000 | N182: 0 | O182: 0 | P182: 0 | Q182: 0 | R182: 0
A183: 174 | B183: MAYNARD | C183: Y | E183: 2016-06-15 | F183: 7002220 | G183: 1578840 | H183: 4301693 | I183: 12882753 | J183: 1342.39 | K183: 9597 | L183: 5000 | N183: 0 | O183: 0 | P183: 0 | Q183: 0 | R183: 0
A184: 175 | B184: MEDFIELD
A185: 176 | B185: MEDFORD
A186: 177 | B186: MEDWAY | C186: Y | E186: 2016-06-15 | F186: 13277689 | G186: 2271085 | H186: 6226308 | I186: 21775082 | J186: 2305.96 | K186: 9443 | L186: 5000 | N186: 0 | O186: 0 | P186: 0 | Q186: 0 | R186: 0
A187: 178 | B187: MELROSE | C187: Y | E187: 2016-06-15 | F187: 12703508 | G187: 2796914 | H187: 8775907 | I187: 24276329 | J187: 3535.91 | K187: 6866 | L187: 5000 | N187: 0 | O187: 0 | P187: 0 | Q187: 0 | R187: 0
A188: 179 | B188: MENDON
A189: 180 | B189: MERRIMAC
A190: 181 | B190: METHUEN
A191: 182 | B191: MIDDLEBOROUGH | C191: Y | E191: 2016-06-15 | F191: 15048281 | G191: 2631491 | H191: 8987002 | I191: 26666774 | J191: 2922.94 | K191: 9123 | L191: 5000 | N191: 0 | O191: 0 | P191: 0 | Q191: 0 | R191: 0
A192: 183 | B192: MIDDLEFIELD
A193: 184 | B193: MIDDLETON
A194: 185 | B194: MILFORD | C194: Y | E194: 2016-06-15 | F194: 21173357 | G194: 3283944 | H194: 10302891 | I194: 34760192 | J194: 3884.65 | K194: 8948 | L194: 5000 | N194: 2527 | O194: 14287 | P194: 1230 | Q194: 18044 | R194: 16.9 | S194: 1068 | T194: 801
A195: 186 | B195: MILLBURY
A196: 187 | B196: MILLIS | C196: Y | E196: 2016-06-15 | F196: 7497798 | G196: 1445294 | H196: 3429359 | I196: 12372451 | J196: 1330.03 | K196: 9302 | L196: 5000 | N196: 0 | O196: 0 | P196: 0 | Q196: 0 | R196: 0
A197: 188 | B197: MILLVILLE
A198: 189 | B198: MILTON
A199: 190 | B199: MONROE
A200: 191 | B200: MONSON | C200: Y | E200: 2016-06-15 | F200: 5029149 | G200: 1246974 | H200: 2472837 | I200: 8748960 | J200: 1031.98 | K200: 8478 | L200: 5000 | N200: 0 | O200: 0 | P200: 0 | Q200: 0 | R200: 0
A201: 192 | B201: MONTAGUE
A202: 193 | B202: MONTEREY
A203: 194 | B203: MONTGOMERY
... 244 more rows

Sheet webmessage (hidden)
H1: updated 6/15/2016
G3: 0NO - don't show, non-op
G4: 1NO - not choice district
G5: 1Y0 - show
G6: 1Y2 - est $5k rate in use
D7: which | G7: 1T0 - tuition agreement | J7: for input to choicecalc
D8: year's
A9: lea | B9: opcode | C9: choice? | D9: rate? | F9: dist | G9: Status | H9: comment | I9: lea | J9: choice? | K9: bad | L9: reg | M9: voke | R9: lea
A10: =VALUE(E10) -> 1 | B10: 1 | C10: =IF(dataout!C10="Y","Y",IF(dataout!C10="T","T","N")) -> Y | D10: =IF(AND(dataout!C10="Y",dataout!D10="not in"),2,0) -> 0 | E10: 001 | F10: ABINGTON | G10: =B10&C10&D10 -> 1Y0 | I10: =A10 -> 1 | J10: =C10 -> Y | K10: =IF(G10="1Y2","bad"," ") ->  | L10: =dataout!L10 -> 5000 | M10: =dataout!T10 ->  | N10: =O10-A10 -> 0 | O10: 1 | P10: ABINGTON | R10: 252 | S10: ROCKPORT | T10: y | U10: bad
A11: =VALUE(E11) -> 2 | B11: 0 | C11: =IF(dataout!C11="Y","Y",IF(dataout!C11="T","T","N")) -> N | D11: =IF(AND(dataout!C11="Y",dataout!D11="not in"),2,0) -> 0 | E11: 002 | F11: ACTON | G11: =B11&C11&D11 -> 0N0 | H11: You have chosen a non-operating school district | I11: =A11 -> 2 | J11: =C11 -> N | K11: =IF(G11="1Y2","bad"," ") ->  | L11: =dataout!L11 -> 0 | M11: =dataout!T11 -> 0 | N11: =O11-A11 -> 0 | O11: 2 | P11: ACTON | R11: 337 | S11: WHATELY | T11: y | U11: bad
A12: 3 | B12: 1 | C12: =IF(dataout!C12="Y","Y",IF(dataout!C12="T","T","N")) -> N | D12: =IF(AND(dataout!C12="Y",dataout!D12="not in"),2,0) -> 0 | E12: 003 | F12: ACUSHNET | G12: 1N0 | H12: You have chosen a district that does not enroll school choice pupils in FY16 | I12: 3 | J12: N | L12: =dataout!L12 -> 0 | M12: =dataout!T12 -> 0 | N12: 0 | O12: 3 | P12: ACUSHNET | R12: 343 | S12: WINCHENDON | T12: y | U12: bad
A13: 4 | B13: 0 | C13: =IF(dataout!C13="Y","Y",IF(dataout!C13="T","T","N")) -> N | D13: =IF(AND(dataout!C13="Y",dataout!D13="not in"),2,0) -> 0 | E13: 004 | F13: ADAMS | G13: 0N0 | H13: You have chosen a non-operating school district | I13: 4 | J13: N | L13: =dataout!L13 -> 0 | M13: =dataout!T13 -> 0 | N13: 0 | O13: 4 | P13: ADAMS | R13: 349 | S13: WORTHINGTON | T13: y | U13: bad
A14: 5 | B14: 1 | C14: =IF(dataout!C14="Y","Y",IF(dataout!C14="T","T","N")) -> Y | D14: =IF(AND(dataout!C14="Y",dataout!D14="not in"),2,0) -> 0 | E14: 005 | F14: AGAWAM | G14: 1Y0 | I14: 5 | J14: Y | L14: =dataout!L14 -> 5000 | M14: =dataout!T14 -> 721 | N14: 0 | O14: 5 | P14: AGAWAM | R14: 750 | S14: PIONEER | T14: y | U14: bad
A15: 6 | B15: 0 | C15: =IF(dataout!C15="Y","Y",IF(dataout!C15="T","T","N")) -> N | D15: =IF(AND(dataout!C15="Y",dataout!D15="not in"),2,0) -> 0 | E15: 006 | F15: ALFORD | G15: 0N0 | H15: You have chosen a non-operating school district | I15: 6 | J15: N | L15: =dataout!L15 -> 0 | M15: =dataout!T15 -> 0 | N15: 0 | O15: 6 | P15: ALFORD | R15: 7 | S15: AMESBURY | T15: y | U15: notin
A16: 7 | B16: 1 | C16: =IF(dataout!C16="Y","Y",IF(dataout!C16="T","T","N")) -> Y | D16: =IF(AND(dataout!C16="Y",dataout!D16="not in"),2,0) -> 0 | E16: 007 | F16: AMESBURY | G16: 1Y0 | I16: 7 | J16: Y | L16: =dataout!L16 -> 5000 | M16: =dataout!T16 ->  | N16: 0 | O16: 7 | P16: AMESBURY | R16: 44 | S16: BROCKTON | T16: y | U16: notin
A17: 8 | B17: 1 | C17: =IF(dataout!C17="Y","Y",IF(dataout!C17="T","T","N")) -> Y | D17: =IF(AND(dataout!C17="Y",dataout!D17="not in"),2,0) -> 0 | E17: 008 | F17: AMHERST | G17: 1Y0 | I17: 8 | J17: Y | L17: =dataout!L17 -> 5000 | M17: =dataout!T17 ->  | N17: 0 | O17: 8 | P17: AMHERST | R17: 56 | S17: CHELMSFORD | T17: y | U17: notin
A18: 9 | B18: 1 | C18: =IF(dataout!C18="Y","Y",IF(dataout!C18="T","T","N")) -> N | D18: =IF(AND(dataout!C18="Y",dataout!D18="not in"),2,0) -> 0 | E18: 009 | F18: ANDOVER | G18: 1N0 | H18: You have chosen a district that does not enroll school choice pupils in FY16 | I18: 9 | J18: N | L18: =dataout!L18 -> 0 | M18: =dataout!T18 -> 0 | N18: 0 | O18: 9 | P18: ANDOVER | R18: 64 | S18: CLINTON | T18: y | U18: notin
A19: 10 | B19: 1 | C19: =IF(dataout!C19="Y","Y",IF(dataout!C19="T","T","N")) -> N | D19: =IF(AND(dataout!C19="Y",dataout!D19="not in"),2,0) -> 0 | E19: 010 | F19: ARLINGTON | G19: 1N0 | H19: You have chosen a district that does not enroll school choice pupils in FY16 | I19: 10 | J19: N | L19: =dataout!L19 -> 0 | M19: =dataout!T19 -> 0 | N19: 0 | O19: 10 | P19: ARLINGTON | R19: 77 | S19: DOUGLAS | T19: y | U19: notin
A20: 11 | B20: 0 | C20: =IF(dataout!C20="Y","Y",IF(dataout!C20="T","T","N")) -> N | D20: =IF(AND(dataout!C20="Y",dataout!D20="not in"),2,0) -> 0 | E20: 011 | F20: ASHBURNHAM | G20: 0N0 | H20: You have chosen a non-operating school district | I20: 11 | J20: N | L20: =dataout!L20 -> 0 | M20: =dataout!T20 -> 0 | N20: 0 | O20: 11 | P20: ASHBURNHAM | R20: 97 | S20: FITCHBURG | T20: y | U20: notin
A21: 12 | B21: 0 | C21: =IF(dataout!C21="Y","Y",IF(dataout!C21="T","T","N")) -> N | D21: =IF(AND(dataout!C21="Y",dataout!D21="not in"),2,0) -> 0 | E21: 012 | F21: ASHBY | G21: 0N0 | H21: You have chosen a non-operating school district | I21: 12 | J21: N | L21: =dataout!L21 -> 0 | M21: =dataout!T21 -> 0 | N21: 0 | O21: 12 | P21: ASHBY | R21: 105 | S21: GEORGETOWN | T21: y | U21: notin
A22: 13 | B22: 0 | C22: =IF(dataout!C22="Y","Y",IF(dataout!C22="T","T","N")) -> N | D22: =IF(AND(dataout!C22="Y",dataout!D22="not in"),2,0) -> 0 | E22: 013 | F22: ASHFIELD | G22: 0N0 | H22: You have chosen a non-operating school district | I22: 13 | J22: N | L22: =dataout!L22 -> 0 | M22: =dataout!T22 -> 0 | N22: 0 | O22: 13 | P22: ASHFIELD | R22: 110 | S22: GRAFTON | T22: y | U22: notin
A23: 14 | B23: 1 | C23: =IF(dataout!C23="Y","Y",IF(dataout!C23="T","T","N")) -> Y | D23: =IF(AND(dataout!C23="Y",dataout!D23="not in"),2,0) -> 0 | E23: 014 | F23: ASHLAND | G23: 1Y0 | I23: 14 | J23: Y | L23: =dataout!L23 -> 5000 | M23: =dataout!T23 ->  | N23: 0 | O23: 14 | P23: ASHLAND | R23: 114 | S23: GREENFIELD | T23: y | U23: notin
A24: 15 | B24: 0 | C24: =IF(dataout!C24="Y","Y",IF(dataout!C24="T","T","N")) -> N | D24: =IF(AND(dataout!C24="Y",dataout!D24="not in"),2,0) -> 0 | E24: 015 | F24: ATHOL | G24: 0N0 | H24: You have chosen a non-operating school district | I24: 15 | J24: N | L24: =dataout!L24 -> 0 | M24: =dataout!T24 -> 0 | N24: 0 | O24: 15 | P24: ATHOL | R24: 128 | S24: HAVERHILL | T24: y | U24: notin
A25: 16 | B25: 1 | C25: =IF(dataout!C25="Y","Y",IF(dataout!C25="T","T","N")) -> N | D25: =IF(AND(dataout!C25="Y",dataout!D25="not in"),2,0) -> 0 | E25: 016 | F25: ATTLEBORO | G25: 1N0 | H25: You have chosen a district that does not enroll school choice pupils in FY16 | I25: 16 | J25: N | L25: =dataout!L25 -> 0 | M25: =dataout!T25 -> 0 | N25: 0 | O25: 16 | P25: ATTLEBORO | R25: 137 | S25: HOLYOKE | T25: y | U25: notin
A26: 17 | B26: 1 | C26: =IF(dataout!C26="Y","Y",IF(dataout!C26="T","T","N")) -> Y | D26: =IF(AND(dataout!C26="Y",dataout!D26="not in"),2,0) -> 0 | E26: 017 | F26: AUBURN | G26: 1Y0 | I26: 17 | J26: Y | L26: =dataout!L26 -> 5000 | M26: =dataout!T26 ->  | N26: 0 | O26: 17 | P26: AUBURN | R26: 153 | S26: LEOMINSTER | T26: y | U26: notin
A27: 18 | B27: 1 | C27: =IF(dataout!C27="Y","Y",IF(dataout!C27="T","T","N")) -> Y | D27: =IF(AND(dataout!C27="Y",dataout!D27="not in"),2,0) -> 0 | E27: 018 | F27: AVON | G27: 1Y0 | I27: 18 | J27: Y | L27: =dataout!L27 -> 5000 | M27: =dataout!T27 ->  | N27: 0 | O27: 18 | P27: AVON | R27: 191 | S27: MONSON | T27: y | U27: notin
A28: 19 | B28: 0 | C28: =IF(dataout!C28="Y","Y",IF(dataout!C28="T","T","N")) -> N | D28: =IF(AND(dataout!C28="Y",dataout!D28="not in"),2,0) -> 0 | E28: 019 | F28: AYER | G28: 0N0 | H28: You have chosen a non-operating school district | I28: 19 | J28: N | L28: =dataout!L28 -> 0 | M28: =dataout!T28 -> 0 | N28: 0 | O28: 19 | P28: AYER | R28: 221 | S28: OAK BLUFFS | T28: y | U28: notin
A29: 20 | B29: 1 | C29: =IF(dataout!C29="Y","Y",IF(dataout!C29="T","T","N")) -> Y | D29: =IF(AND(dataout!C29="Y",dataout!D29="not in"),2,0) -> 0 | E29: 020 | F29: BARNSTABLE | G29: 1Y0 | I29: 20 | J29: Y | L29: =dataout!L29 -> 5000 | M29: =dataout!T29 ->  | N29: 0 | O29: 20 | P29: BARNSTABLE | R29: 229 | S29: PEABODY | T29: y | U29: notin
A30: 21 | B30: 0 | C30: =IF(dataout!C30="Y","Y",IF(dataout!C30="T","T","N")) -> N | D30: =IF(AND(dataout!C30="Y",dataout!D30="not in"),2,0) -> 0 | E30: 021 | F30: BARRE | G30: 0N0 | H30: You have chosen a non-operating school district | I30: 21 | J30: N | L30: =dataout!L30 -> 0 | M30: =dataout!T30 -> 0 | N30: 0 | O30: 21 | P30: BARRE | R30: 304 | S30: UXBRIDGE | T30: y | U30: notin
A31: 22 | B31: 0 | C31: =IF(dataout!C31="Y","Y",IF(dataout!C31="T","T","N")) -> N | D31: =IF(AND(dataout!C31="Y",dataout!D31="not in"),2,0) -> 0 | E31: 022 | F31: BECKET | G31: 0N0 | H31: You have chosen a non-operating school district | I31: 22 | J31: N | L31: =dataout!L31 -> 0 | M31: =dataout!T31 -> 0 | N31: 0 | O31: 22 | P31: BECKET | R31: 322 | S31: WEST BOYLSTON | T31: y | U31: notin
A32: 23 | B32: 1 | C32: =IF(dataout!C32="Y","Y",IF(dataout!C32="T","T","N")) -> N | D32: =IF(AND(dataout!C32="Y",dataout!D32="not in"),2,0) -> 0 | E32: 023 | F32: BEDFORD | G32: 1N0 | H32: You have chosen a district that does not enroll school choice pupils in FY16 | I32: 23 | J32: N | L32: =dataout!L32 -> 0 | M32: =dataout!T32 -> 0 | N32: 0 | O32: 23 | P32: BEDFORD | R32: 348 | S32: WORCESTER | T32: y | U32: notin
A33: 24 | B33: 1 | C33: =IF(dataout!C33="Y","Y",IF(dataout!C33="T","T","N")) -> Y | D33: =IF(AND(dataout!C33="Y",dataout!D33="not in"),2,0) -> 0 | E33: 024 | F33: BELCHERTOWN | G33: 1Y0 | I33: 24 | J33: Y | L33: =dataout!L33 -> 5000 | M33: =dataout!T33 ->  | N33: 0 | O33: 24 | P33: BELCHERTOWN | R33: 600 | S33: ACTON BOXBOROUGH | T33: y | U33: notin
A34: 25 | B34: 1 | C34: =IF(dataout!C34="Y","Y",IF(dataout!C34="T","T","N")) -> Y | D34: =IF(AND(dataout!C34="Y",dataout!D34="not in"),2,0) -> 0 | E34: 025 | F34: BELLINGHAM | G34: 1Y0 | I34: 25 | J34: Y | L34: =dataout!L34 -> 5000 | M34: =dataout!T34 ->  | N34: 0 | O34: 25 | P34: BELLINGHAM | R34: 698 | S34: MANCHESTER ESSEX | T34: y | U34: notin
A35: 26 | B35: 1 | C35: =IF(dataout!C35="Y","Y",IF(dataout!C35="T","T","N")) -> N | D35: =IF(AND(dataout!C35="Y",dataout!D35="not in"),2,0) -> 0 | E35: 026 | F35: BELMONT | G35: 1N0 | H35: You have chosen a district that does not enroll school choice pupils in FY16 | I35: 26 | J35: N | L35: =dataout!L35 -> 0 | M35: =dataout!T35 -> 0 | N35: 0 | O35: 26 | P35: BELMONT | R35: 766 | S35: SOUTHWICK TOLLAND | T35: y | U35: notin
A36: 27 | B36: 1 | C36: =IF(dataout!C36="Y","Y",IF(dataout!C36="T","T","N")) -> Y | D36: =IF(AND(dataout!C36="Y",dataout!D36="not in"),2,0) -> 0 | E36: 027 | F36: BERKLEY | G36: 1Y0 | I36: 27 | J36: Y | L36: =dataout!L36 -> 5000 | M36: =dataout!T36 ->  | N36: 0 | O36: 27 | P36: BERKLEY | R36: 1 | S36: ABINGTON | T36: y
A37: 28 | B37: 1 | C37: =IF(dataout!C37="Y","Y",IF(dataout!C37="T","T","N")) -> Y | D37: =IF(AND(dataout!C37="Y",dataout!D37="not in"),2,0) -> 0 | E37: 028 | F37: BERLIN | G37: 1Y0 | I37: 28 | J37: Y | L37: =dataout!L37 -> 5000 | M37: =dataout!T37 ->  | N37: 0 | O37: 28 | P37: BERLIN | R37: 5 | S37: AGAWAM | T37: y
A38: 29 | B38: 0 | C38: =IF(dataout!C38="Y","Y",IF(dataout!C38="T","T","N")) -> N | D38: =IF(AND(dataout!C38="Y",dataout!D38="not in"),2,0) -> 0 | E38: 029 | F38: BERNARDSTON | G38: 0N0 | H38: You have chosen a non-operating school district | I38: 29 | J38: N | L38: =dataout!L38 -> 0 | M38: =dataout!T38 -> 0 | N38: 0 | O38: 29 | P38: BERNARDSTON | R38: 8 | S38: AMHERST | T38: y
A39: 30 | B39: 1 | C39: =IF(dataout!C39="Y","Y",IF(dataout!C39="T","T","N")) -> Y | D39: =IF(AND(dataout!C39="Y",dataout!D39="not in"),2,0) -> 0 | E39: 030 | F39: BEVERLY | G39: 1Y0 | I39: 30 | J39: Y | L39: =dataout!L39 -> 5000 | M39: =dataout!T39 ->  | N39: 0 | O39: 30 | P39: BEVERLY | R39: 14 | S39: ASHLAND | T39: y
A40: 31 | B40: 1 | C40: =IF(dataout!C40="Y","Y",IF(dataout!C40="T","T","N")) -> N | D40: =IF(AND(dataout!C40="Y",dataout!D40="not in"),2,0) -> 0 | E40: 031 | F40: BILLERICA | G40: 1N0 | H40: You have chosen a district that does not enroll school choice pupils in FY16 | I40: 31 | J40: N | L40: =dataout!L40 -> 0 | M40: =dataout!T40 -> 0 | N40: 0 | O40: 31 | P40: BILLERICA | R40: 17 | S40: AUBURN | T40: y
A41: 32 | B41: 0 | C41: =IF(dataout!C41="Y","Y",IF(dataout!C41="T","T","N")) -> N | D41: =IF(AND(dataout!C41="Y",dataout!D41="not in"),2,0) -> 0 | E41: 032 | F41: BLACKSTONE | G41: 0N0 | H41: You have chosen a non-operating school district | I41: 32 | J41: N | L41: =dataout!L41 -> 0 | M41: =dataout!T41 -> 0 | N41: 0 | O41: 32 | P41: BLACKSTONE | R41: 18 | S41: AVON | T41: y
A42: 33 | B42: 0 | C42: =IF(dataout!C42="Y","Y",IF(dataout!C42="T","T","N")) -> N | D42: =IF(AND(dataout!C42="Y",dataout!D42="not in"),2,0) -> 0 | E42: 033 | F42: BLANDFORD | G42: 0N0 | H42: You have chosen a non-operating school district | I42: 33 | J42: N | L42: =dataout!L42 -> 0 | M42: =dataout!T42 -> 0 | N42: 0 | O42: 33 | P42: BLANDFORD | R42: 20 | S42: BARNSTABLE | T42: y
A43: 34 | B43: 0 | C43: =IF(dataout!C43="Y","Y",IF(dataout!C43="T","T","N")) -> N | D43: =IF(AND(dataout!C43="Y",dataout!D43="not in"),2,0) -> 0 | E43: 034 | F43: BOLTON | G43: 0N0 | H43: You have chosen a non-operating school district | I43: 34 | J43: N | L43: =dataout!L43 -> 0 | M43: =dataout!T43 -> 0 | N43: 0 | O43: 34 | P43: BOLTON | R43: 24 | S43: BELCHERTOWN | T43: y
A44: 35 | B44: 1 | C44: =IF(dataout!C44="Y","Y",IF(dataout!C44="T","T","N")) -> N | D44: =IF(AND(dataout!C44="Y",dataout!D44="not in"),2,0) -> 0 | E44: 035 | F44: BOSTON | G44: 1N0 | H44: You have chosen a district that does not enroll school choice pupils in FY16 | I44: 35 | J44: N | L44: =dataout!L44 -> 0 | M44: =dataout!T44 -> 0 | N44: 0 | O44: 35 | P44: BOSTON | R44: 25 | S44: BELLINGHAM | T44: y
A45: 36 | B45: 1 | C45: =IF(dataout!C45="Y","Y",IF(dataout!C45="T","T","N")) -> Y | D45: =IF(AND(dataout!C45="Y",dataout!D45="not in"),2,0) -> 0 | E45: 036 | F45: BOURNE | G45: 1Y0 | I45: 36 | J45: Y | L45: =dataout!L45 -> 5000 | M45: =dataout!T45 ->  | N45: 0 | O45: 36 | P45: BOURNE | R45: 27 | S45: BERKLEY | T45: y
A46: 37 | B46: 0 | C46: =IF(dataout!C46="Y","Y",IF(dataout!C46="T","T","N")) -> N | D46: =IF(AND(dataout!C46="Y",dataout!D46="not in"),2,0) -> 0 | E46: 037 | F46: BOXBOROUGH | G46: 0N0 | H46: You have chosen a non-operating school district | I46: 37 | J46: N | L46: =dataout!L46 -> 5000 | M46: =dataout!T46 ->  | N46: 0 | O46: 37 | P46: BOXBOROUGH | R46: 28 | S46: BERLIN | T46: y
A47: 38 | B47: 1 | C47: =IF(dataout!C47="Y","Y",IF(dataout!C47="T","T","N")) -> N | D47: =IF(AND(dataout!C47="Y",dataout!D47="not in"),2,0) -> 0 | E47: 038 | F47: BOXFORD | G47: 1N0 | H47: You have chosen a district that does not enroll school choice pupils in FY16 | I47: 38 | J47: N | L47: =dataout!L47 -> 0 | M47: =dataout!T47 -> 0 | N47: 0 | O47: 38 | P47: BOXFORD | R47: 30 | S47: BEVERLY | T47: y
A48: 39 | B48: 1 | C48: =IF(dataout!C48="Y","Y",IF(dataout!C48="T","T","N")) -> Y | D48: =IF(AND(dataout!C48="Y",dataout!D48="not in"),2,0) -> 0 | E48: 039 | F48: BOYLSTON | G48: 1Y0 | I48: 39 | J48: Y | L48: =dataout!L48 -> 5000 | M48: =dataout!T48 ->  | N48: 0 | O48: 39 | P48: BOYLSTON | R48: 36 | S48: BOURNE | T48: y
A49: 40 | B49: 1 | C49: =IF(dataout!C49="Y","Y",IF(dataout!C49="T","T","N")) -> N | D49: =IF(AND(dataout!C49="Y",dataout!D49="not in"),2,0) -> 0 | E49: 040 | F49: BRAINTREE | G49: 1N0 | H49: You have chosen a district that does not enroll school choice pupils in FY16 | I49: 40 | J49: N | L49: =dataout!L49 -> 0 | M49: =dataout!T49 -> 0 | N49: 0 | O49: 40 | P49: BRAINTREE | R49: 39 | S49: BOYLSTON | T49: y
A50: =VALUE(E50) -> 41 | B50: 1 | C50: =IF(dataout!C50="Y","Y",IF(dataout!C50="T","T","N")) -> N | D50: =IF(AND(dataout!C50="Y",dataout!D50="not in"),2,0) -> 0 | E50: 041 | F50: BREWSTER | G50: 1N0 | H50: You have chosen a district that does not enroll school choice pupils in FY16 | I50: 41 | J50: N | L50: =dataout!L50 -> 0 | M50: =dataout!T50 -> 0 | N50: 0 | O50: 41 | P50: BREWSTER | R50: 45 | S50: BROOKFIELD | T50: y
A51: 42 | B51: 0 | C51: =IF(dataout!C51="Y","Y",IF(dataout!C51="T","T","N")) -> N | D51: =IF(AND(dataout!C51="Y",dataout!D51="not in"),2,0) -> 0 | E51: 042 | F51: BRIDGEWATER | G51: 0N0 | H51: You have chosen a non-operating school district | I51: 42 | J51: N | L51: =dataout!L51 -> 0 | M51: =dataout!T51 -> 0 | N51: 0 | O51: 42 | P51: BRIDGEWATER | R51: 48 | S51: BURLINGTON | T51: y
A52: 43 | B52: 1 | C52: =IF(dataout!C52="Y","Y",IF(dataout!C52="T","T","N")) -> N | D52: =IF(AND(dataout!C52="Y",dataout!D52="not in"),2,0) -> 0 | E52: 043 | F52: BRIMFIELD | G52: 1N0 | H52: You have chosen a district that does not enroll school choice pupils in FY16 | I52: 43 | J52: N | L52: =dataout!L52 -> 0 | M52: =dataout!T52 -> 0 | N52: 0 | O52: 43 | P52: BRIMFIELD | R52: 52 | S52: CARVER | T52: y
A53: 44 | B53: 1 | C53: =IF(dataout!C53="Y","Y",IF(dataout!C53="T","T","N")) -> Y | D53: =IF(AND(dataout!C53="Y",dataout!D53="not in"),2,0) -> 0 | E53: 044 | F53: BROCKTON | G53: 1Y0 | I53: 44 | J53: Y | L53: =dataout!L53 -> 5000 | M53: =dataout!T53 -> 5000 | N53: 0 | O53: 44 | P53: BROCKTON | R53: 61 | S53: CHICOPEE | T53: y
A54: 45 | B54: 1 | C54: =IF(dataout!C54="Y","Y",IF(dataout!C54="T","T","N")) -> Y | D54: =IF(AND(dataout!C54="Y",dataout!D54="not in"),2,0) -> 0 | E54: 045 | F54: BROOKFIELD | G54: 1Y0 | I54: 45 | J54: Y | L54: =dataout!L54 -> 5000 | M54: =dataout!T54 ->  | N54: 0 | O54: 45 | P54: BROOKFIELD | R54: 63 | S54: CLARKSBURG | T54: y
A55: 46 | B55: 1 | C55: =IF(dataout!C55="Y","Y",IF(dataout!C55="T","T","N")) -> N | D55: =IF(AND(dataout!C55="Y",dataout!D55="not in"),2,0) -> 0 | E55: 046 | F55: BROOKLINE | G55: 1N0 | H55: You have chosen a district that does not enroll school choice pupils in FY16 | I55: 46 | J55: N | L55: =dataout!L55 -> 0 | M55: =dataout!T55 -> 0 | N55: 0 | O55: 46 | P55: BROOKLINE | R55: 68 | S55: CONWAY | T55: y
A56: 47 | B56: 0 | C56: =IF(dataout!C56="Y","Y",IF(dataout!C56="T","T","N")) -> N | D56: =IF(AND(dataout!C56="Y",dataout!D56="not in"),2,0) -> 0 | E56: 047 | F56: BUCKLAND | G56: 0N0 | H56: You have chosen a non-operating school district | I56: 47 | J56: N | L56: =dataout!L56 -> 0 | M56: =dataout!T56 -> 0 | N56: 0 | O56: 47 | P56: BUCKLAND | R56: 74 | S56: DEERFIELD | T56: y
A57: 48 | B57: 1 | C57: =IF(dataout!C57="Y","Y",IF(dataout!C57="T","T","N")) -> Y | D57: =IF(AND(dataout!C57="Y",dataout!D57="not in"),2,0) -> 0 | E57: 048 | F57: BURLINGTON | G57: 1Y0 | I57: 48 | J57: Y | L57: =dataout!L57 -> 5000 | M57: =dataout!T57 ->  | N57: 0 | O57: 48 | P57: BURLINGTON | R57: 79 | S57: DRACUT | T57: y
A58: 49 | B58: 1 | C58: =IF(dataout!C58="Y","Y",IF(dataout!C58="T","T","N")) -> N | D58: =IF(AND(dataout!C58="Y",dataout!D58="not in"),2,0) -> 0 | E58: 049 | F58: CAMBRIDGE | G58: 1N0 | H58: You have chosen a district that does not enroll school choice pupils in FY16 | I58: 49 | J58: N | L58: =dataout!L58 -> 0 | M58: =dataout!T58 -> 0 | N58: 0 | O58: 49 | P58: CAMBRIDGE | R58: 83 | S58: EAST BRIDGEWATER | T58: y
A59: 50 | B59: 1 | C59: =IF(dataout!C59="Y","Y",IF(dataout!C59="T","T","N")) -> N | D59: =IF(AND(dataout!C59="Y",dataout!D59="not in"),2,0) -> 0 | E59: 050 | F59: CANTON | G59: 1N0 | H59: You have chosen a district that does not enroll school choice pupils in FY16 | I59: 50 | J59: N | L59: =dataout!L59 -> 0 | M59: =dataout!T59 -> 0 | N59: 0 | O59: 50 | P59: CANTON | R59: 86 | S59: EASTHAMPTON | T59: y
A60: 51 | B60: 1 | C60: =IF(dataout!C60="Y","Y",IF(dataout!C60="T","T","N")) -> N | D60: =IF(AND(dataout!C60="Y",dataout!D60="not in"),2,0) -> 0 | E60: 051 | F60: CARLISLE | G60: 1N0 | H60: You have chosen a district that does not enroll school choice pupils in FY16 | I60: 51 | J60: N | L60: =dataout!L60 -> 0 | M60: =dataout!T60 -> 0 | N60: 0 | O60: 51 | P60: CARLISLE | R60: 89 | S60: EDGARTOWN | T60: y
A61: 52 | B61: 1 | C61: =IF(dataout!C61="Y","Y",IF(dataout!C61="T","T","N")) -> Y | D61: =IF(AND(dataout!C61="Y",dataout!D61="not in"),2,0) -> 0 | E61: 052 | F61: CARVER | G61: 1Y0 | I61: 52 | J61: Y | L61: =dataout!L61 -> 5000 | M61: =dataout!T61 ->  | N61: 0 | O61: 52 | P61: CARVER | R61: 95 | S61: FALL RIVER | T61: y
A62: 53 | B62: 0 | C62: =IF(dataout!C62="Y","Y",IF(dataout!C62="T","T","N")) -> N | D62: =IF(AND(dataout!C62="Y",dataout!D62="not in"),2,0) -> 0 | E62: 053 | F62: CHARLEMONT | G62: 0N0 | H62: You have chosen a non-operating school district | I62: 53 | J62: N | L62: =dataout!L62 -> 0 | M62: =dataout!T62 -> 0 | N62: 0 | O62: 53 | P62: CHARLEMONT | R62: 96 | S62: FALMOUTH | T62: y
A63: 54 | B63: 0 | C63: =IF(dataout!C63="Y","Y",IF(dataout!C63="T","T","N")) -> N | D63: =IF(AND(dataout!C63="Y",dataout!D63="not in"),2,0) -> 0 | E63: 054 | F63: CHARLTON | G63: 0N0 | H63: You have chosen a non-operating school district | I63: 54 | J63: N | L63: =dataout!L63 -> 0 | M63: =dataout!T63 -> 0 | N63: 0 | O63: 54 | P63: CHARLTON | R63: 98 | S63: FLORIDA | T63: y
A64: 55 | B64: 0 | C64: =IF(dataout!C64="Y","Y",IF(dataout!C64="T","T","N")) -> N | D64: =IF(AND(dataout!C64="Y",dataout!D64="not in"),2,0) -> 0 | E64: 055 | F64: CHATHAM | G64: 0N0 | H64: You have chosen a non-operating school district | I64: 55 | J64: N | L64: =dataout!L64 -> 0 | M64: =dataout!T64 -> 0 | N64: 0 | O64: 55 | P64: CHATHAM | R64: 101 | S64: FRANKLIN | T64: y
A65: 56 | B65: 1 | C65: =IF(dataout!C65="Y","Y",IF(dataout!C65="T","T","N")) -> Y | D65: =IF(AND(dataout!C65="Y",dataout!D65="not in"),2,0) -> 0 | E65: 056 | F65: CHELMSFORD | G65: 1Y0 | I65: 56 | J65: Y | L65: =dataout!L65 -> 5000 | M65: =dataout!T65 ->  | N65: 0 | O65: 56 | P65: CHELMSFORD | R65: 103 | S65: GARDNER | T65: y
A66: 57 | B66: 1 | C66: =IF(dataout!C66="Y","Y",IF(dataout!C66="T","T","N")) -> N | D66: =IF(AND(dataout!C66="Y",dataout!D66="not in"),2,0) -> 0 | E66: 057 | F66: CHELSEA | G66: 1N0 | H66: You have chosen a district that does not enroll school choice pupils in FY16 | I66: 57 | J66: N | L66: =dataout!L66 -> 0 | M66: =dataout!T66 -> 0 | N66: 0 | O66: 57 | P66: CHELSEA | R66: 107 | S66: GLOUCESTER | T66: y
A67: 58 | B67: 0 | C67: =IF(dataout!C67="Y","Y",IF(dataout!C67="T","T","N")) -> N | D67: =IF(AND(dataout!C67="Y",dataout!D67="not in"),2,0) -> 0 | E67: 058 | F67: CHESHIRE | G67: 0N0 | H67: You have chosen a non-operating school district | I67: 58 | J67: N | L67: =dataout!L67 -> 0 | M67: =dataout!T67 -> 0 | N67: 0 | O67: 58 | P67: CHESHIRE | R67: 111 | S67: GRANBY | T67: y
A68: 59 | B68: 0 | C68: =IF(dataout!C68="Y","Y",IF(dataout!C68="T","T","N")) -> N | D68: =IF(AND(dataout!C68="Y",dataout!D68="not in"),2,0) -> 0 | E68: 059 | F68: CHESTER | G68: 0N0 | H68: You have chosen a non-operating school district | I68: 59 | J68: N | L68: =dataout!L68 -> 0 | M68: =dataout!T68 -> 0 | N68: 0 | O68: 59 | P68: CHESTER | R68: 117 | S68: HADLEY | T68: y
A69: 60 | B69: 0 | C69: =IF(dataout!C69="Y","Y",IF(dataout!C69="T","T","N")) -> N | D69: =IF(AND(dataout!C69="Y",dataout!D69="not in"),2,0) -> 0 | E69: 060 | F69: CHESTERFIELD | G69: 0N0 | H69: You have chosen a non-operating school district | I69: 60 | J69: N | L69: =dataout!L69 -> 0 | M69: =dataout!T69 -> 0 | N69: 0 | O69: 60 | P69: CHESTERFIELD | R69: 121 | S69: HANCOCK | T69: y
A70: 61 | B70: 1 | C70: =IF(dataout!C70="Y","Y",IF(dataout!C70="T","T","N")) -> Y | D70: =IF(AND(dataout!C70="Y",dataout!D70="not in"),2,0) -> 0 | E70: 061 | F70: CHICOPEE | G70: 1Y0 | I70: 61 | J70: Y | L70: =dataout!L70 -> 5000 | M70: =dataout!T70 -> 4799 | N70: 0 | O70: 61 | P70: CHICOPEE | R70: 125 | S70: HARVARD | T70: y
A71: 62 | B71: 0 | C71: =IF(dataout!C71="Y","Y",IF(dataout!C71="T","T","N")) -> N | D71: =IF(AND(dataout!C71="Y",dataout!D71="not in"),2,0) -> 0 | E71: 062 | F71: CHILMARK | G71: 0N0 | H71: You have chosen a non-operating school district | I71: 62 | J71: N | L71: =dataout!L71 -> 0 | M71: =dataout!T71 -> 0 | N71: 0 | O71: 62 | P71: CHILMARK | R71: 127 | S71: HATFIELD | T71: y
A72: 63 | B72: 1 | C72: =IF(dataout!C72="Y","Y",IF(dataout!C72="T","T","N")) -> Y | D72: =IF(AND(dataout!C72="Y",dataout!D72="not in"),2,0) -> 0 | E72: 063 | F72: CLARKSBURG | G72: 1Y0 | I72: 63 | J72: Y | L72: =dataout!L72 -> 5000 | M72: =dataout!T72 ->  | N72: 0 | O72: 63 | P72: CLARKSBURG | R72: 133 | S72: HOLBROOK | T72: y
A73: 64 | B73: 1 | C73: =IF(dataout!C73="Y","Y",IF(dataout!C73="T","T","N")) -> Y | D73: =IF(AND(dataout!C73="Y",dataout!D73="not in"),2,0) -> 0 | E73: 064 | F73: CLINTON | G73: 1Y0 | I73: 64 | J73: Y | L73: =dataout!L73 -> 5000 | M73: =dataout!T73 ->  | N73: 0 | O73: 64 | P73: CLINTON | R73: 135 | S73: HOLLAND | T73: y
A74: =VALUE(E74) -> 65 | B74: 1 | C74: =IF(dataout!C74="Y","Y",IF(dataout!C74="T","T","N")) -> N | D74: =IF(AND(dataout!C74="Y",dataout!D74="not in"),2,0) -> 0 | E74: 065 | F74: COHASSET | G74: 1N0 | H74: You have chosen a district that does not enroll school choice pupils in FY16 | I74: 65 | J74: N | L74: =dataout!L74 -> 0 | M74: =dataout!T74 -> 0 | N74: 0 | O74: 65 | P74: COHASSET | R74: 136 | S74: HOLLISTON | T74: y
A75: 66 | B75: 0 | C75: =IF(dataout!C75="Y","Y",IF(dataout!C75="T","T","N")) -> N | D75: =IF(AND(dataout!C75="Y",dataout!D75="not in"),2,0) -> 0 | E75: 066 | F75: COLRAIN | G75: =B75&C75&D75 -> 0N0 | H75: You have chosen a non-operating school district | I75: =A75 -> 66 | J75: =C75 -> N | K75: =IF(G75="1Y2","bad"," ") ->  | L75: =dataout!L75 -> 0 | M75: =dataout!T75 -> 0 | N75: =O75-A75 -> 0 | O75: 66 | P75: COLRAIN | R75: 138 | S75: HOPEDALE | T75: y
A76: =VALUE(E76) -> 67 | B76: 1 | C76: =IF(dataout!C76="Y","Y",IF(dataout!C76="T","T","N")) -> N | D76: =IF(AND(dataout!C76="Y",dataout!D76="not in"),2,0) -> 0 | E76: 067 | F76: CONCORD | G76: 1N0 | H76: You have chosen a district that does not enroll school choice pupils in FY16 | I76: 67 | J76: N | L76: =dataout!L76 -> 0 | M76: =dataout!T76 -> 0 | N76: 0 | O76: 67 | P76: CONCORD | R76: 141 | S76: HUDSON | T76: y
A77: 68 | B77: 1 | C77: =IF(dataout!C77="Y","Y",IF(dataout!C77="T","T","N")) -> Y | D77: =IF(AND(dataout!C77="Y",dataout!D77="not in"),2,0) -> 0 | E77: 068 | F77: CONWAY | G77: 1Y0 | I77: 68 | J77: Y | L77: =dataout!L77 -> 5000 | M77: =dataout!T77 ->  | N77: 0 | O77: 68 | P77: CONWAY | R77: 144 | S77: IPSWICH | T77: y
A78: 69 | B78: 0 | C78: =IF(dataout!C78="Y","Y",IF(dataout!C78="T","T","N")) -> N | D78: =IF(AND(dataout!C78="Y",dataout!D78="not in"),2,0) -> 0 | E78: 069 | F78: CUMMINGTON | G78: 0N0 | H78: You have chosen a non-operating school district | I78: 69 | J78: N | L78: =dataout!L78 -> 0 | M78: =dataout!T78 -> 0 | N78: 0 | O78: 69 | P78: CUMMINGTON | R78: 148 | S78: LANESBOROUGH | T78: y
A79: 70 | B79: 0 | C79: =IF(dataout!C79="Y","Y",IF(dataout!C79="T","T","N")) -> N | D79: =IF(AND(dataout!C79="Y",dataout!D79="not in"),2,0) -> 0 | E79: 070 | F79: DALTON | G79: 0N0 | H79: You have chosen a non-operating school district | I79: 70 | J79: N | L79: =dataout!L79 -> 0 | M79: =dataout!T79 -> 0 | N79: 0 | O79: 70 | P79: DALTON | R79: 150 | S79: LEE | T79: y
A80: 71 | B80: 1 | C80: =IF(dataout!C80="Y","Y",IF(dataout!C80="T","T","N")) -> N | D80: =IF(AND(dataout!C80="Y",dataout!D80="not in"),2,0) -> 0 | E80: 071 | F80: DANVERS | G80: 1N0 | H80: You have chosen a district that does not enroll school choice pupils in FY16 | I80: 71 | J80: N | L80: =dataout!L80 -> 0 | M80: =dataout!T80 -> 0 | N80: 0 | O80: 71 | P80: DANVERS | R80: 151 | S80: LEICESTER | T80: y
A81: 72 | B81: 1 | C81: =IF(dataout!C81="Y","Y",IF(dataout!C81="T","T","N")) -> N | D81: =IF(AND(dataout!C81="Y",dataout!D81="not in"),2,0) -> 0 | E81: 072 | F81: DARTMOUTH | G81: 1N0 | H81: You have chosen a district that does not enroll school choice pupils in FY16 | I81: 72 | J81: N | L81: =dataout!L81 -> 0 | M81: =dataout!T81 -> 0 | N81: 0 | O81: 72 | P81: DARTMOUTH | R81: 152 | S81: LENOX | T81: y
A82: 73 | B82: 1 | C82: =IF(dataout!C82="Y","Y",IF(dataout!C82="T","T","N")) -> N | D82: =IF(AND(dataout!C82="Y",dataout!D82="not in"),2,0) -> 0 | E82: 073 | F82: DEDHAM | G82: 1N0 | H82: You have chosen a district that does not enroll school choice pupils in FY16 | I82: 73 | J82: N | L82: =dataout!L82 -> 0 | M82: =dataout!T82 -> 0 | N82: 0 | O82: 73 | P82: DEDHAM | R82: 154 | S82: LEVERETT | T82: y
A83: 74 | B83: 1 | C83: =IF(dataout!C83="Y","Y",IF(dataout!C83="T","T","N")) -> Y | D83: =IF(AND(dataout!C83="Y",dataout!D83="not in"),2,0) -> 0 | E83: 074 | F83: DEERFIELD | G83: 1Y0 | I83: 74 | J83: Y | L83: =dataout!L83 -> 5000 | M83: =dataout!T83 ->  | N83: 0 | O83: 74 | P83: DEERFIELD | R83: 158 | S83: LITTLETON | T83: y
A84: 75 | B84: 0 | C84: =IF(dataout!C84="Y","Y",IF(dataout!C84="T","T","N")) -> N | D84: =IF(AND(dataout!C84="Y",dataout!D84="not in"),2,0) -> 0 | E84: 075 | F84: DENNIS | G84: 0N0 | H84: You have chosen a non-operating school district | I84: 75 | J84: N | L84: =dataout!L84 -> 0 | M84: =dataout!T84 -> 0 | N84: 0 | O84: 75 | P84: DENNIS | R84: 159 | S84: LONGMEADOW | T84: y
A85: 76 | B85: 0 | C85: =IF(dataout!C85="Y","Y",IF(dataout!C85="T","T","N")) -> N | D85: =IF(AND(dataout!C85="Y",dataout!D85="not in"),2,0) -> 0 | E85: 076 | F85: DIGHTON | G85: 0N0 | H85: You have chosen a non-operating school district | I85: 76 | J85: N | L85: =dataout!L85 -> 0 | M85: =dataout!T85 -> 0 | N85: 0 | O85: 76 | P85: DIGHTON | R85: 161 | S85: LUDLOW | T85: y
A86: 77 | B86: 1 | C86: =IF(dataout!C86="Y","Y",IF(dataout!C86="T","T","N")) -> Y | D86: =IF(AND(dataout!C86="Y",dataout!D86="not in"),2,0) -> 0 | E86: 077 | F86: DOUGLAS | G86: 1Y0 | I86: 77 | J86: Y | L86: =dataout!L86 -> 5000 | M86: =dataout!T86 ->  | N86: 0 | O86: 77 | P86: DOUGLAS | R86: 162 | S86: LUNENBURG | T86: y
A87: 78 | B87: 1 | C87: =IF(dataout!C87="Y","Y",IF(dataout!C87="T","T","N")) -> N | D87: =IF(AND(dataout!C87="Y",dataout!D87="not in"),2,0) -> 0 | E87: 078 | F87: DOVER | G87: 1N0 | H87: You have chosen a district that does not enroll school choice pupils in FY16 | I87: 78 | J87: N | L87: =dataout!L87 -> 0 | M87: =dataout!T87 -> 0 | N87: 0 | O87: 78 | P87: DOVER | R87: 171 | S87: MARSHFIELD | T87: y
A88: 79 | B88: 1 | C88: =IF(dataout!C88="Y","Y",IF(dataout!C88="T","T","N")) -> Y | D88: =IF(AND(dataout!C88="Y",dataout!D88="not in"),2,0) -> 0 | E88: 079 | F88: DRACUT | G88: 1Y0 | I88: 79 | J88: Y | L88: =dataout!L88 -> 5000 | M88: =dataout!T88 ->  | N88: 0 | O88: 79 | P88: DRACUT | R88: 172 | S88: MASHPEE | T88: y
A89: 80 | B89: 0 | C89: =IF(dataout!C89="Y","Y",IF(dataout!C89="T","T","N")) -> N | D89: =IF(AND(dataout!C89="Y",dataout!D89="not in"),2,0) -> 0 | E89: 080 | F89: DUDLEY | G89: 0N0 | H89: You have chosen a non-operating school district | I89: 80 | J89: N | L89: =dataout!L89 -> 0 | M89: =dataout!T89 -> 0 | N89: 0 | O89: 80 | P89: DUDLEY | R89: 173 | S89: MATTAPOISETT | T89: y
A90: 81 | B90: 0 | C90: =IF(dataout!C90="Y","Y",IF(dataout!C90="T","T","N")) -> N | D90: =IF(AND(dataout!C90="Y",dataout!D90="not in"),2,0) -> 0 | E90: 081 | F90: DUNSTABLE | G90: 0N0 | H90: You have chosen a non-operating school district | I90: 81 | J90: N | L90: =dataout!L90 -> 0 | M90: =dataout!T90 -> 0 | N90: 0 | O90: 81 | P90: DUNSTABLE | R90: 174 | S90: MAYNARD | T90: y
A91: 82 | B91: 1 | C91: =IF(dataout!C91="Y","Y",IF(dataout!C91="T","T","N")) -> N | D91: =IF(AND(dataout!C91="Y",dataout!D91="not in"),2,0) -> 0 | E91: 082 | F91: DUXBURY | G91: 1N0 | H91: You have chosen a district that does not enroll school choice pupils in FY16 | I91: 82 | J91: N | L91: =dataout!L91 -> 0 | M91: =dataout!T91 -> 0 | N91: 0 | O91: 82 | P91: DUXBURY | R91: 177 | S91: MEDWAY | T91: y
A92: 83 | B92: 1 | C92: =IF(dataout!C92="Y","Y",IF(dataout!C92="T","T","N")) -> Y | D92: =IF(AND(dataout!C92="Y",dataout!D92="not in"),2,0) -> 0 | E92: 083 | F92: EAST BRIDGEWATER | G92: 1Y0 | I92: 83 | J92: Y | L92: =dataout!L92 -> 5000 | M92: =dataout!T92 ->  | N92: 0 | O92: 83 | P92: EAST BRIDGEWATER | R92: 178 | S92: MELROSE | T92: y
A93: 84 | B93: 0 | C93: =IF(dataout!C93="Y","Y",IF(dataout!C93="T","T","N")) -> N | D93: =IF(AND(dataout!C93="Y",dataout!D93="not in"),2,0) -> 0 | E93: 084 | F93: EAST BROOKFIELD | G93: 0N0 | H93: You have chosen a non-operating school district | I93: 84 | J93: N | L93: =dataout!L93 -> 0 | M93: =dataout!T93 -> 0 | N93: 0 | O93: 84 | P93: EAST BROOKFIELD | R93: 182 | S93: MIDDLEBOROUGH | T93: y
A94: 85 | B94: 1 | C94: =IF(dataout!C94="Y","Y",IF(dataout!C94="T","T","N")) -> N | D94: =IF(AND(dataout!C94="Y",dataout!D94="not in"),2,0) -> 0 | E94: 085 | F94: EASTHAM | G94: 1N0 | H94: You have chosen a district that does not enroll school choice pupils in FY16 | I94: 85 | J94: N | L94: =dataout!L94 -> 0 | M94: =dataout!T94 -> 0 | N94: 0 | O94: 85 | P94: EASTHAM | R94: 185 | S94: MILFORD | T94: y
A95: 86 | B95: 1 | C95: =IF(dataout!C95="Y","Y",IF(dataout!C95="T","T","N")) -> Y | D95: =IF(AND(dataout!C95="Y",dataout!D95="not in"),2,0) -> 0 | E95: 086 | F95: EASTHAMPTON | G95: 1Y0 | I95: 86 | J95: Y | L95: =dataout!L95 -> 5000 | M95: =dataout!T95 -> 1324 | N95: 0 | O95: 86 | P95: EASTHAMPTON | R95: 187 | S95: MILLIS | T95: y
A96: 87 | B96: 1 | C96: =IF(dataout!C96="Y","Y",IF(dataout!C96="T","T","N")) -> N | D96: =IF(AND(dataout!C96="Y",dataout!D96="not in"),2,0) -> 0 | E96: 087 | F96: EAST LONGMEADOW | G96: 1N0 | H96: You have chosen a district that does not enroll school choice pupils in FY16 | I96: 87 | J96: N | L96: =dataout!L96 -> 0 | M96: =dataout!T96 -> 0 | N96: 0 | O96: 87 | P96: EAST LONGMEADOW | R96: 198 | S96: NATICK | T96: y
A97: 88 | B97: 1 | C97: =IF(dataout!C97="Y","Y",IF(dataout!C97="T","T","N")) -> N | D97: =IF(AND(dataout!C97="Y",dataout!D97="not in"),2,0) -> 0 | E97: 088 | F97: EASTON | G97: 1N0 | H97: You have chosen a district that does not enroll school choice pupils in FY16 | I97: 88 | J97: N | L97: =dataout!L97 -> 0 | M97: =dataout!T97 -> 0 | N97: 0 | O97: 88 | P97: EASTON | R97: 204 | S97: NEWBURYPORT | T97: y
A98: 89 | B98: 1 | C98: =IF(dataout!C98="Y","Y",IF(dataout!C98="T","T","N")) -> Y | D98: =IF(AND(dataout!C98="Y",dataout!D98="not in"),2,0) -> 0 | E98: 089 | F98: EDGARTOWN | G98: 1Y0 | I98: 89 | J98: Y | L98: =dataout!L98 -> 5000 | M98: =dataout!T98 ->  | N98: 0 | O98: 89 | P98: EDGARTOWN | R98: 209 | S98: NORTH ADAMS | T98: y
A99: 90 | B99: 0 | C99: =IF(dataout!C99="Y","Y",IF(dataout!C99="T","T","N")) -> N | D99: =IF(AND(dataout!C99="Y",dataout!D99="not in"),2,0) -> 0 | E99: 090 | F99: EGREMONT | G99: 0N0 | H99: You have chosen a non-operating school district | I99: 90 | J99: N | L99: =dataout!L99 -> 0 | M99: =dataout!T99 -> 0 | N99: 0 | O99: 90 | P99: EGREMONT | R99: 210 | S99: NORTHAMPTON | T99: y
A100: 91 | B100: 1 | C100: =IF(dataout!C100="Y","Y",IF(dataout!C100="T","T","N")) -> N | D100: =IF(AND(dataout!C100="Y",dataout!D100="not in"),2,0) -> 0 | E100: 091 | F100: ERVING | G100: 1N0 | H100: You have chosen a district that does not enroll school choice pupils in FY16 | I100: 91 | J100: N | L100: =dataout!L100 -> 0 | M100: =dataout!T100 -> 0 | N100: 0 | O100: 91 | P100: ERVING | R100: 214 | S100: NORTHBRIDGE | T100: y
A101: 92 | B101: 0 | C101: =IF(dataout!C101="Y","Y",IF(dataout!C101="T","T","N")) -> N | D101: =IF(AND(dataout!C101="Y",dataout!D101="not in"),2,0) -> 0 | E101: 092 | F101: ESSEX | G101: 0N0 | H101: You have chosen a non-operating school district | I101: 92 | J101: N | L101: =dataout!L101 -> 0 | M101: =dataout!T101 -> 0 | N101: 0 | O101: 92 | P101: ESSEX | R101: 215 | S101: NORTH BROOKFIELD | T101: y
A102: 93 | B102: 1 | C102: =IF(dataout!C102="Y","Y",IF(dataout!C102="T","T","N")) -> N | D102: =IF(AND(dataout!C102="Y",dataout!D102="not in"),2,0) -> 0 | E102: 093 | F102: EVERETT | G102: 1N0 | H102: You have chosen a district that does not enroll school choice pupils in FY16 | I102: 93 | J102: N | L102: =dataout!L102 -> 0 | M102: =dataout!T102 -> 0 | N102: 0 | O102: 93 | P102: EVERETT | R102: 218 | S102: NORTON | T102: y
A103: 94 | B103: 1 | C103: =IF(dataout!C103="Y","Y",IF(dataout!C103="T","T","N")) -> T | D103: =IF(AND(dataout!C103="Y",dataout!D103="not in"),2,0) -> 0 | E103: 094 | F103: FAIRHAVEN | G103: 1T0 | H103: Not a school choice district, but regular ed choice rate is used for tuitioning from other districts | I103: 94 | J103: T | L103: =dataout!L103 -> 5000 | M103: =dataout!T103 ->  | N103: 0 | O103: 94 | P103: FAIRHAVEN | R103: 223 | S103: ORANGE | T103: y
A104: 95 | B104: 1 | C104: =IF(dataout!C104="Y","Y",IF(dataout!C104="T","T","N")) -> Y | D104: =IF(AND(dataout!C104="Y",dataout!D104="not in"),2,0) -> 0 | E104: 095 | F104: FALL RIVER | G104: 1Y0 | I104: 95 | J104: Y | L104: =dataout!L104 -> 5000 | M104: =dataout!T104 -> 4209 | N104: 0 | O104: 95 | P104: FALL RIVER | R104: 224 | S104: ORLEANS | T104: y
A105: 96 | B105: 1 | C105: =IF(dataout!C105="Y","Y",IF(dataout!C105="T","T","N")) -> Y | D105: =IF(AND(dataout!C105="Y",dataout!D105="not in"),2,0) -> 0 | E105: 096 | F105: FALMOUTH | G105: 1Y0 | I105: 96 | J105: Y | L105: =dataout!L105 -> 5000 | M105: =dataout!T105 -> 900 | N105: 0 | O105: 96 | P105: FALMOUTH | R105: 226 | S105: OXFORD | T105: y
A106: 97 | B106: 1 | C106: =IF(dataout!C106="Y","Y",IF(dataout!C106="T","T","N")) -> Y | D106: =IF(AND(dataout!C106="Y",dataout!D106="not in"),2,0) -> 0 | E106: 097 | F106: FITCHBURG | G106: 1Y0 | I106: 97 | J106: Y | L106: =dataout!L106 -> 5000 | M106: =dataout!T106 ->  | N106: 0 | O106: 97 | P106: FITCHBURG | R106: 227 | S106: PALMER | T106: y
A107: 98 | B107: 1 | C107: =IF(dataout!C107="Y","Y",IF(dataout!C107="T","T","N")) -> Y | D107: =IF(AND(dataout!C107="Y",dataout!D107="not in"),2,0) -> 0 | E107: 098 | F107: FLORIDA | G107: 1Y0 | I107: 98 | J107: Y | L107: =dataout!L107 -> 5000 | M107: =dataout!T107 ->  | N107: 0 | O107: 98 | P107: FLORIDA | R107: 230 | S107: PELHAM | T107: y
A108: 99 | B108: 1 | C108: =IF(dataout!C108="Y","Y",IF(dataout!C108="T","T","N")) -> N | D108: =IF(AND(dataout!C108="Y",dataout!D108="not in"),2,0) -> 0 | E108: 099 | F108: FOXBOROUGH | G108: 1N0 | H108: You have chosen a district that does not enroll school choice pupils in FY16 | I108: 99 | J108: N | L108: =dataout!L108 -> 0 | M108: =dataout!T108 -> 0 | N108: 0 | O108: 99 | P108: FOXBOROUGH | R108: 234 | S108: PETERSHAM | T108: y
A109: 100 | B109: 1 | C109: =IF(dataout!C109="Y","Y",IF(dataout!C109="T","T","N")) -> N | D109: =IF(AND(dataout!C109="Y",dataout!D109="not in"),2,0) -> 0 | E109: 100 | F109: FRAMINGHAM | G109: 1N0 | H109: You have chosen a district that does not enroll school choice pupils in FY16 | I109: 100 | J109: N | L109: =dataout!L109 -> 0 | M109: =dataout!T109 -> 0 | N109: 0 | O109: 100 | P109: FRAMINGHAM | R109: 236 | S109: PITTSFIELD | T109: y
A110: 101 | B110: 1 | C110: =IF(dataout!C110="Y","Y",IF(dataout!C110="T","T","N")) -> Y | D110: =IF(AND(dataout!C110="Y",dataout!D110="not in"),2,0) -> 0 | E110: 101 | F110: FRANKLIN | G110: 1Y0 | I110: 101 | J110: Y | L110: =dataout!L110 -> 5000 | M110: =dataout!T110 ->  | N110: 0 | O110: 101 | P110: FRANKLIN | R110: 240 | S110: PLYMPTON | T110: y
A111: 102 | B111: 0 | C111: =IF(dataout!C111="Y","Y",IF(dataout!C111="T","T","N")) -> N | D111: =IF(AND(dataout!C111="Y",dataout!D111="not in"),2,0) -> 0 | E111: 102 | F111: FREETOWN | G111: 0N0 | H111: You have chosen a non-operating school district | I111: 102 | J111: N | L111: =dataout!L111 -> 0 | M111: =dataout!T111 -> 0 | N111: 0 | O111: 102 | P111: FREETOWN | R111: 242 | S111: PROVINCETOWN | T111: y
A112: 103 | B112: 1 | C112: =IF(dataout!C112="Y","Y",IF(dataout!C112="T","T","N")) -> Y | D112: =IF(AND(dataout!C112="Y",dataout!D112="not in"),2,0) -> 0 | E112: 103 | F112: GARDNER | G112: 1Y0 | I112: 103 | J112: Y | L112: =dataout!L112 -> 5000 | M112: =dataout!T112 ->  | N112: 0 | O112: 103 | P112: GARDNER | R112: 244 | S112: RANDOLPH | T112: y
A113: 104 | B113: 0 | C113: =IF(dataout!C113="Y","Y",IF(dataout!C113="T","T","N")) -> N | D113: =IF(AND(dataout!C113="Y",dataout!D113="not in"),2,0) -> 0 | E113: 104 | F113: GAY HEAD | G113: 0N0 | H113: You have chosen a non-operating school district | I113: 104 | J113: N | L113: =dataout!L113 -> 0 | M113: =dataout!T113 -> 0 | N113: 0 | O113: 104 | P113: AQUINNAH | R113: 249 | S113: RICHMOND | T113: y
A114: =VALUE(E114) -> 105 | B114: 1 | C114: =IF(dataout!C114="Y","Y",IF(dataout!C114="T","T","N")) -> Y | D114: =IF(AND(dataout!C114="Y",dataout!D114="not in"),2,0) -> 0 | E114: 105 | F114: GEORGETOWN | G114: 1Y0 | I114: 105 | J114: Y | L114: =dataout!L114 -> 5000 | M114: =dataout!T114 ->  | N114: 0 | O114: 105 | P114: GEORGETOWN | R114: 251 | S114: ROCKLAND | T114: y
A115: 106 | B115: 0 | C115: =IF(dataout!C115="Y","Y",IF(dataout!C115="T","T","N")) -> N | D115: =IF(AND(dataout!C115="Y",dataout!D115="not in"),2,0) -> 0 | E115: 106 | F115: GILL | G115: 0N0 | H115: You have chosen a non-operating school district | I115: 106 | J115: N | L115: =dataout!L115 -> 0 | M115: =dataout!T115 -> 0 | N115: 0 | O115: 106 | P115: GILL | R115: 253 | S115: ROWE | T115: y
A116: 107 | B116: 1 | C116: =IF(dataout!C116="Y","Y",IF(dataout!C116="T","T","N")) -> Y | D116: =IF(AND(dataout!C116="Y",dataout!D116="not in"),2,0) -> 0 | E116: 107 | F116: GLOUCESTER | G116: 1Y0 | I116: 107 | J116: Y | L116: =dataout!L116 -> 5000 | M116: =dataout!T116 -> 5000 | N116: 0 | O116: 107 | P116: GLOUCESTER | R116: 261 | S116: SANDWICH | T116: y
A117: 108 | B117: 0 | C117: =IF(dataout!C117="Y","Y",IF(dataout!C117="T","T","N")) -> N | D117: =IF(AND(dataout!C117="Y",dataout!D117="not in"),2,0) -> 0 | E117: 108 | F117: GOSHEN | G117: 0N0 | H117: You have chosen a non-operating school district | I117: 108 | J117: N | L117: =dataout!L117 -> 0 | M117: =dataout!T117 -> 0 | N117: 0 | O117: 108 | P117: GOSHEN | R117: 263 | S117: SAVOY | T117: y
A118: 109 | B118: 0 | C118: =IF(dataout!C118="Y","Y",IF(dataout!C118="T","T","N")) -> N | D118: =IF(AND(dataout!C118="Y",dataout!D118="not in"),2,0) -> 0 | E118: 109 | F118: GOSNOLD | G118: 0N0 | H118: You have chosen a non-operating school district | I118: 109 | J118: N | L118: =dataout!L118 -> 0 | M118: =dataout!T118 -> 0 | N118: 0 | O118: 109 | P118: GOSNOLD | R118: 271 | S118: SHREWSBURY | T118: y
A119: 110 | B119: 1 | C119: =IF(dataout!C119="Y","Y",IF(dataout!C119="T","T","N")) -> Y | D119: =IF(AND(dataout!C119="Y",dataout!D119="not in"),2,0) -> 0 | E119: 110 | F119: GRAFTON | G119: 1Y0 | I119: 110 | J119: Y | L119: =dataout!L119 -> 5000 | M119: =dataout!T119 ->  | N119: 0 | O119: 110 | P119: GRAFTON | R119: 275 | S119: SOUTHAMPTON | T119: y
A120: 111 | B120: 1 | C120: =IF(dataout!C120="Y","Y",IF(dataout!C120="T","T","N")) -> Y | D120: =IF(AND(dataout!C120="Y",dataout!D120="not in"),2,0) -> 0 | E120: 111 | F120: GRANBY | G120: 1Y0 | I120: 111 | J120: Y | L120: =dataout!L120 -> 5000 | M120: =dataout!T120 ->  | N120: 0 | O120: 111 | P120: GRANBY | R120: 277 | S120: SOUTHBRIDGE | T120: y
A121: 112 | B121: 0 | C121: =IF(dataout!C121="Y","Y",IF(dataout!C121="T","T","N")) -> N | D121: =IF(AND(dataout!C121="Y",dataout!D121="not in"),2,0) -> 0 | E121: 112 | F121: GRANVILLE | G121: 0N0 | H121: You have chosen a non-operating school district | I121: 112 | J121: N | L121: =dataout!L121 -> 0 | M121: =dataout!T121 -> 0 | N121: 0 | O121: 112 | P121: GRANVILLE | R121: 278 | S121: SOUTH HADLEY | T121: y
A122: =VALUE(E122) -> 113 | B122: 0 | C122: =IF(dataout!C122="Y","Y",IF(dataout!C122="T","T","N")) -> N | D122: =IF(AND(dataout!C122="Y",dataout!D122="not in"),2,0) -> 0 | E122: 113 | F122: GREAT BARRINGTON | G122: 0N0 | H122: You have chosen a non-operating school district | I122: 113 | J122: N | L122: =dataout!L122 -> 0 | M122: =dataout!T122 -> 0 | N122: 0 | O122: 113 | P122: GREAT BARRINGTON | R122: 281 | S122: SPRINGFIELD | T122: y
A123: =VALUE(E123) -> 114 | B123: 1 | C123: =IF(dataout!C123="Y","Y",IF(dataout!C123="T","T","N")) -> Y | D123: =IF(AND(dataout!C123="Y",dataout!D123="not in"),2,0) -> 0 | E123: 114 | F123: GREENFIELD | G123: 1Y0 | I123: 114 | J123: Y | L123: =dataout!L123 -> 5000 | M123: =dataout!T123 ->  | N123: 0 | O123: 114 | P123: GREENFIELD | R123: 289 | S123: SUNDERLAND | T123: y
A124: 115 | B124: 0 | C124: =IF(dataout!C124="Y","Y",IF(dataout!C124="T","T","N")) -> N | D124: =IF(AND(dataout!C124="Y",dataout!D124="not in"),2,0) -> 0 | E124: 115 | F124: GROTON | G124: 0N0 | H124: You have chosen a non-operating school district | I124: 115 | J124: N | L124: =dataout!L124 -> 0 | M124: =dataout!T124 -> 0 | N124: 0 | O124: 115 | P124: GROTON | R124: 290 | S124: SUTTON | T124: y
A125: 116 | B125: 0 | C125: =IF(dataout!C125="Y","Y",IF(dataout!C125="T","T","N")) -> N | D125: =IF(AND(dataout!C125="Y",dataout!D125="not in"),2,0) -> 0 | E125: 116 | F125: GROVELAND | G125: 0N0 | H125: You have chosen a non-operating school district | I125: 116 | J125: N | L125: =dataout!L125 -> 0 | M125: =dataout!T125 -> 0 | N125: 0 | O125: 116 | P125: GROVELAND | R125: 293 | S125: TAUNTON | T125: y
A126: 117 | B126: 1 | C126: =IF(dataout!C126="Y","Y",IF(dataout!C126="T","T","N")) -> Y | D126: =IF(AND(dataout!C126="Y",dataout!D126="not in"),2,0) -> 0 | E126: 117 | F126: HADLEY | G126: 1Y0 | I126: 117 | J126: Y | L126: =dataout!L126 -> 5000 | M126: =dataout!T126 ->  | N126: 0 | O126: 117 | P126: HADLEY | R126: 296 | S126: TISBURY | T126: y
A127: 118 | B127: 1 | C127: =IF(dataout!C127="Y","Y",IF(dataout!C127="T","T","N")) -> N | D127: =IF(AND(dataout!C127="Y",dataout!D127="not in"),2,0) -> 0 | E127: 118 | F127: HALIFAX | G127: 1N0 | H127: You have chosen a district that does not enroll school choice pupils in FY16 | I127: 118 | J127: N | L127: =dataout!L127 -> 0 | M127: =dataout!T127 -> 0 | N127: 0 | O127: 118 | P127: HALIFAX | R127: 300 | S127: TRURO | T127: y
A128: 119 | B128: 0 | C128: =IF(dataout!C128="Y","Y",IF(dataout!C128="T","T","N")) -> N | D128: =IF(AND(dataout!C128="Y",dataout!D128="not in"),2,0) -> 0 | E128: 119 | F128: HAMILTON | G128: 0N0 | H128: You have chosen a non-operating school district | I128: 119 | J128: N | L128: =dataout!L128 -> 0 | M128: =dataout!T128 -> 0 | N128: 0 | O128: 119 | P128: HAMILTON | R128: 301 | S128: TYNGSBOROUGH | T128: y
A129: 120 | B129: 0 | C129: =IF(dataout!C129="Y","Y",IF(dataout!C129="T","T","N")) -> N | D129: =IF(AND(dataout!C129="Y",dataout!D129="not in"),2,0) -> 0 | E129: 120 | F129: HAMPDEN | G129: 0N0 | H129: You have chosen a non-operating school district | I129: 120 | J129: N | L129: =dataout!L129 -> 0 | M129: =dataout!T129 -> 0 | N129: 0 | O129: 120 | P129: HAMPDEN | R129: 306 | S129: WALES | T129: y
A130: 121 | B130: 1 | C130: =IF(dataout!C130="Y","Y",IF(dataout!C130="T","T","N")) -> Y | D130: =IF(AND(dataout!C130="Y",dataout!D130="not in"),2,0) -> 0 | E130: 121 | F130: HANCOCK | G130: 1Y0 | I130: 121 | J130: Y | L130: =dataout!L130 -> 5000 | M130: =dataout!T130 ->  | N130: 0 | O130: 121 | P130: HANCOCK | R130: 309 | S130: WARE | T130: y
A131: 122 | B131: 1 | C131: =IF(dataout!C131="Y","Y",IF(dataout!C131="T","T","N")) -> N | D131: =IF(AND(dataout!C131="Y",dataout!D131="not in"),2,0) -> 0 | E131: 122 | F131: HANOVER | G131: 1N0 | H131: You have chosen a district that does not enroll school choice pupils in FY16 | I131: 122 | J131: N | L131: =dataout!L131 -> 0 | M131: =dataout!T131 -> 0 | N131: 0 | O131: 122 | P131: HANOVER | R131: 310 | S131: WAREHAM | T131: y
A132: 123 | B132: 0 | C132: =IF(dataout!C132="Y","Y",IF(dataout!C132="T","T","N")) -> N | D132: =IF(AND(dataout!C132="Y",dataout!D132="not in"),2,0) -> 0 | E132: 123 | F132: HANSON | G132: 0N0 | H132: You have chosen a non-operating school district | I132: 123 | J132: N | L132: =dataout!L132 -> 0 | M132: =dataout!T132 -> 0 | N132: 0 | O132: 123 | P132: HANSON | R132: 316 | S132: WEBSTER | T132: y
A133: 124 | B133: 0 | C133: =IF(dataout!C133="Y","Y",IF(dataout!C133="T","T","N")) -> N | D133: =IF(AND(dataout!C133="Y",dataout!D133="not in"),2,0) -> 0 | E133: 124 | F133: HARDWICK | G133: 0N0 | H133: You have chosen a non-operating school district | I133: 124 | J133: N | L133: =dataout!L133 -> 0 | M133: =dataout!T133 -> 0 | N133: 0 | O133: 124 | P133: HARDWICK | R133: 323 | S133: WEST BRIDGEWATER | T133: y
A134: 125 | B134: 1 | C134: =IF(dataout!C134="Y","Y",IF(dataout!C134="T","T","N")) -> Y | D134: =IF(AND(dataout!C134="Y",dataout!D134="not in"),2,0) -> 0 | E134: 125 | F134: HARVARD | G134: 1Y0 | I134: 125 | J134: Y | L134: =dataout!L134 -> 5000 | M134: =dataout!T134 ->  | N134: 0 | O134: 125 | P134: HARVARD | R134: 325 | S134: WESTFIELD | T134: y
A135: 126 | B135: 0 | C135: =IF(dataout!C135="Y","Y",IF(dataout!C135="T","T","N")) -> N | D135: =IF(AND(dataout!C135="Y",dataout!D135="not in"),2,0) -> 0 | E135: 126 | F135: HARWICH | G135: 0N0 | H135: You have chosen a non-operating school district | I135: 126 | J135: N | L135: =dataout!L135 -> 0 | M135: =dataout!T135 -> 0 | N135: 0 | O135: 126 | P135: HARWICH | R135: 326 | S135: WESTFORD | T135: y
A136: 127 | B136: 1 | C136: =IF(dataout!C136="Y","Y",IF(dataout!C136="T","T","N")) -> Y | D136: =IF(AND(dataout!C136="Y",dataout!D136="not in"),2,0) -> 0 | E136: 127 | F136: HATFIELD | G136: 1Y0 | I136: 127 | J136: Y | L136: =dataout!L136 -> 5000 | M136: =dataout!T136 ->  | N136: 0 | O136: 127 | P136: HATFIELD | R136: 327 | S136: WESTHAMPTON | T136: y
A137: 128 | B137: 1 | C137: =IF(dataout!C137="Y","Y",IF(dataout!C137="T","T","N")) -> Y | D137: =IF(AND(dataout!C137="Y",dataout!D137="not in"),2,0) -> 0 | E137: 128 | F137: HAVERHILL | G137: 1Y0 | I137: 128 | J137: Y | L137: =dataout!L137 -> 5000 | M137: =dataout!T137 ->  | N137: 0 | O137: 128 | P137: HAVERHILL | R137: 332 | S137: WEST SPRINGFIELD | T137: y
A138: 129 | B138: 0 | C138: =IF(dataout!C138="Y","Y",IF(dataout!C138="T","T","N")) -> N | D138: =IF(AND(dataout!C138="Y",dataout!D138="not in"),2,0) -> 0 | E138: 129 | F138: HAWLEY | G138: 0N0 | H138: You have chosen a non-operating school district | I138: 129 | J138: N | L138: =dataout!L138 -> 0 | M138: =dataout!T138 -> 0 | N138: 0 | O138: 129 | P138: HAWLEY | R138: 340 | S138: WILLIAMSBURG | T138: y
A139: 130 | B139: 0 | C139: =IF(dataout!C139="Y","Y",IF(dataout!C139="T","T","N")) -> N | D139: =IF(AND(dataout!C139="Y",dataout!D139="not in"),2,0) -> 0 | E139: 130 | F139: HEATH | G139: =B139&C139&D139 -> 0N0 | H139: You have chosen a non-operating school district | I139: =A139 -> 130 | J139: =C139 -> N | K139: =IF(G139="1Y2","bad"," ") ->  | L139: =dataout!L139 -> 0 | M139: =dataout!T139 -> 0 | N139: =O139-A139 -> 0 | O139: 130 | P139: HEATH | R139: 341 | S139: WILLIAMSTOWN | T139: y
A140: 131 | B140: 1 | C140: =IF(dataout!C140="Y","Y",IF(dataout!C140="T","T","N")) -> N | D140: =IF(AND(dataout!C140="Y",dataout!D140="not in"),2,0) -> 0 | E140: 131 | F140: HINGHAM | G140: 1N0 | H140: You have chosen a district that does not enroll school choice pupils in FY16 | I140: 131 | J140: N | L140: =dataout!L140 -> 0 | M140: =dataout!T140 -> 0 | N140: 0 | O140: 131 | P140: HINGHAM | R140: 346 | S140: WINTHROP | T140: y
A141: 132 | B141: 0 | C141: =IF(dataout!C141="Y","Y",IF(dataout!C141="T","T","N")) -> N | D141: =IF(AND(dataout!C141="Y",dataout!D141="not in"),2,0) -> 0 | E141: 132 | F141: HINSDALE | G141: 0N0 | H141: You have chosen a non-operating school district | I141: 132 | J141: N | L141: =dataout!L141 -> 0 | M141: =dataout!T141 -> 0 | N141: 0 | O141: 132 | P141: HINSDALE | R141: 603 | S141: ADAMS CHESHIRE | T141: y
A142: 133 | B142: 1 | C142: =IF(dataout!C142="Y","Y",IF(dataout!C142="T","T","N")) -> Y | D142: =IF(AND(dataout!C142="Y",dataout!D142="not in"),2,0) -> 0 | E142: 133 | F142: HOLBROOK | G142: 1Y0 | I142: 133 | J142: Y | L142: =dataout!L142 -> 5000 | M142: =dataout!T142 ->  | N142: 0 | O142: 133 | P142: HOLBROOK | R142: 605 | S142: AMHERST PELHAM | T142: y
A143: 134 | B143: 0 | C143: =IF(dataout!C143="Y","Y",IF(dataout!C143="T","T","N")) -> N | D143: =IF(AND(dataout!C143="Y",dataout!D143="not in"),2,0) -> 0 | E143: 134 | F143: HOLDEN | G143: 0N0 | H143: You have chosen a non-operating school district | I143: 134 | J143: N | L143: =dataout!L143 -> 0 | M143: =dataout!T143 -> 0 | N143: 0 | O143: 134 | P143: HOLDEN | R143: 610 | S143: ASHBURNHAM WESTMINSTER | T143: y
A144: 135 | B144: 1 | C144: =IF(dataout!C144="Y","Y",IF(dataout!C144="T","T","N")) -> Y | D144: =IF(AND(dataout!C144="Y",dataout!D144="not in"),2,0) -> 0 | E144: 135 | F144: HOLLAND | G144: 1Y0 | I144: 135 | J144: Y | L144: =dataout!L144 -> 5000 | M144: =dataout!T144 ->  | N144: 0 | O144: 135 | P144: HOLLAND | R144: 615 | S144: ATHOL ROYALSTON | T144: y
A145: 136 | B145: 1 | C145: =IF(dataout!C145="Y","Y",IF(dataout!C145="T","T","N")) -> Y | D145: =IF(AND(dataout!C145="Y",dataout!D145="not in"),2,0) -> 0 | E145: 136 | F145: HOLLISTON | G145: 1Y0 | I145: 136 | J145: Y | L145: =dataout!L145 -> 5000 | M145: =dataout!T145 ->  | N145: 0 | O145: 136 | P145: HOLLISTON | R145: 616 | S145: AYER SHIRLEY | T145: y
A146: 137 | B146: 1 | C146: =IF(dataout!C146="Y","Y",IF(dataout!C146="T","T","N")) -> Y | D146: =IF(AND(dataout!C146="Y",dataout!D146="not in"),2,0) -> 0 | E146: 137 | F146: HOLYOKE | G146: 1Y0 | I146: 137 | J146: Y | L146: =dataout!L146 -> 5000 | M146: =dataout!T146 -> 5000 | N146: 0 | O146: 137 | P146: HOLYOKE | R146: 618 | S146: BERKSHIRE HILLS | T146: y
A147: 138 | B147: 1 | C147: =IF(dataout!C147="Y","Y",IF(dataout!C147="T","T","N")) -> Y | D147: =IF(AND(dataout!C147="Y",dataout!D147="not in"),2,0) -> 0 | E147: 138 | F147: HOPEDALE | G147: 1Y0 | I147: 138 | J147: Y | L147: =dataout!L147 -> 5000 | M147: =dataout!T147 ->  | N147: 0 | O147: 138 | P147: HOPEDALE | R147: 620 | S147: BERLIN BOYLSTON | T147: y
A148: 139 | B148: 1 | C148: =IF(dataout!C148="Y","Y",IF(dataout!C148="T","T","N")) -> N | D148: =IF(AND(dataout!C148="Y",dataout!D148="not in"),2,0) -> 0 | E148: 139 | F148: HOPKINTON | G148: 1N0 | H148: You have chosen a district that does not enroll school choice pupils in FY16 | I148: 139 | J148: N | L148: =dataout!L148 -> 0 | M148: =dataout!T148 -> 0 | N148: 0 | O148: 139 | P148: HOPKINTON | R148: 622 | S148: BLACKSTONE MILLVILLE | T148: y
A149: 140 | B149: 0 | C149: =IF(dataout!C149="Y","Y",IF(dataout!C149="T","T","N")) -> N | D149: =IF(AND(dataout!C149="Y",dataout!D149="not in"),2,0) -> 0 | E149: 140 | F149: HUBBARDSTON | G149: 0N0 | H149: You have chosen a non-operating school district | I149: 140 | J149: N | L149: =dataout!L149 -> 0 | M149: =dataout!T149 -> 0 | N149: 0 | O149: 140 | P149: HUBBARDSTON | R149: 625 | S149: BRIDGEWATER RAYNHAM | T149: y
A150: 141 | B150: 1 | C150: =IF(dataout!C150="Y","Y",IF(dataout!C150="T","T","N")) -> Y | D150: =IF(AND(dataout!C150="Y",dataout!D150="not in"),2,0) -> 0 | E150: 141 | F150: HUDSON | G150: 1Y0 | I150: 141 | J150: Y | L150: =dataout!L150 -> 5000 | M150: =dataout!T150 ->  | N150: 0 | O150: 141 | P150: HUDSON | R150: 632 | S150: CHESTERFIELD GOSHEN | T150: y
A151: 142 | B151: 1 | C151: =IF(dataout!C151="Y","Y",IF(dataout!C151="T","T","N")) -> N | D151: =IF(AND(dataout!C151="Y",dataout!D151="not in"),2,0) -> 0 | E151: 142 | F151: HULL | G151: 1N0 | H151: You have chosen a district that does not enroll school choice pupils in FY16 | I151: 142 | J151: N | L151: =dataout!L151 -> 0 | M151: =dataout!T151 -> 0 | N151: 0 | O151: 142 | P151: HULL | R151: 635 | S151: CENTRAL BERKSHIRE | T151: y
A152: 143 | B152: 0 | C152: =IF(dataout!C152="Y","Y",IF(dataout!C152="T","T","N")) -> N | D152: =IF(AND(dataout!C152="Y",dataout!D152="not in"),2,0) -> 0 | E152: 143 | F152: HUNTINGTON | G152: 0N0 | H152: You have chosen a non-operating school district | I152: 143 | J152: N | L152: =dataout!L152 -> 0 | M152: =dataout!T152 -> 0 | N152: 0 | O152: 143 | P152: HUNTINGTON | R152: 645 | S152: DENNIS YARMOUTH | T152: y
A153: 144 | B153: 1 | C153: =IF(dataout!C153="Y","Y",IF(dataout!C153="T","T","N")) -> Y | D153: =IF(AND(dataout!C153="Y",dataout!D153="not in"),2,0) -> 0 | E153: 144 | F153: IPSWICH | G153: 1Y0 | I153: 144 | J153: Y | L153: =dataout!L153 -> 5000 | M153: =dataout!T153 ->  | N153: 0 | O153: 144 | P153: IPSWICH | R153: 650 | S153: DIGHTON REHOBOTH | T153: y
A154: 145 | B154: 1 | C154: =IF(dataout!C154="Y","Y",IF(dataout!C154="T","T","N")) -> N | D154: =IF(AND(dataout!C154="Y",dataout!D154="not in"),2,0) -> 0 | E154: 145 | F154: KINGSTON | G154: 1N0 | H154: You have chosen a district that does not enroll school choice pupils in FY16 | I154: 145 | J154: N | L154: =dataout!L154 -> 0 | M154: =dataout!T154 -> 0 | N154: 0 | O154: 145 | P154: KINGSTON | R154: 658 | S154: DUDLEY CHARLTON | T154: y
A155: 146 | B155: 0 | C155: =IF(dataout!C155="Y","Y",IF(dataout!C155="T","T","N")) -> N | D155: =IF(AND(dataout!C155="Y",dataout!D155="not in"),2,0) -> 0 | E155: 146 | F155: LAKEVILLE | G155: 0N0 | H155: You have chosen a non-operating school district | I155: 146 | J155: N | L155: =dataout!L155 -> 0 | M155: =dataout!T155 -> 0 | N155: 0 | O155: 146 | P155: LAKEVILLE | R155: 660 | S155: NAUSET | T155: y
A156: 147 | B156: 0 | C156: =IF(dataout!C156="Y","Y",IF(dataout!C156="T","T","N")) -> N | D156: =IF(AND(dataout!C156="Y",dataout!D156="not in"),2,0) -> 0 | E156: 147 | F156: LANCASTER | G156: 0N0 | H156: You have chosen a non-operating school district | I156: 147 | J156: N | L156: =dataout!L156 -> 0 | M156: =dataout!T156 -> 0 | N156: 0 | O156: 147 | P156: LANCASTER | R156: 662 | S156: FARMINGTON RIVER | T156: y
A157: 148 | B157: 1 | C157: =IF(dataout!C157="Y","Y",IF(dataout!C157="T","T","N")) -> Y | D157: =IF(AND(dataout!C157="Y",dataout!D157="not in"),2,0) -> 0 | E157: 148 | F157: LANESBOROUGH | G157: 1Y0 | I157: 148 | J157: Y | L157: =dataout!L157 -> 5000 | M157: =dataout!T157 ->  | N157: 0 | O157: 148 | P157: LANESBOROUGH | R157: 665 | S157: FREETOWN LAKEVILLE | T157: y
A158: 149 | B158: 1 | C158: =IF(dataout!C158="Y","Y",IF(dataout!C158="T","T","N")) -> N | D158: =IF(AND(dataout!C158="Y",dataout!D158="not in"),2,0) -> 0 | E158: 149 | F158: LAWRENCE | G158: 1N0 | H158: You have chosen a district that does not enroll school choice pupils in FY16 | I158: 149 | J158: N | L158: =dataout!L158 -> 0 | M158: =dataout!T158 -> 0 | N158: 0 | O158: 149 | P158: LAWRENCE | R158: 670 | S158: FRONTIER | T158: y
A159: 150 | B159: 1 | C159: =IF(dataout!C159="Y","Y",IF(dataout!C159="T","T","N")) -> Y | D159: =IF(AND(dataout!C159="Y",dataout!D159="not in"),2,0) -> 0 | E159: 150 | F159: LEE | G159: 1Y0 | I159: 150 | J159: Y | L159: =dataout!L159 -> 5000 | M159: =dataout!T159 ->  | N159: 0 | O159: 150 | P159: LEE | R159: 672 | S159: GATEWAY | T159: y
A160: 151 | B160: 1 | C160: =IF(dataout!C160="Y","Y",IF(dataout!C160="T","T","N")) -> Y | D160: =IF(AND(dataout!C160="Y",dataout!D160="not in"),2,0) -> 0 | E160: 151 | F160: LEICESTER | G160: 1Y0 | I160: 151 | J160: Y | L160: =dataout!L160 -> 5000 | M160: =dataout!T160 ->  | N160: 0 | O160: 151 | P160: LEICESTER | R160: 673 | S160: GROTON DUNSTABLE | T160: y
A161: 152 | B161: 1 | C161: =IF(dataout!C161="Y","Y",IF(dataout!C161="T","T","N")) -> Y | D161: =IF(AND(dataout!C161="Y",dataout!D161="not in"),2,0) -> 0 | E161: 152 | F161: LENOX | G161: 1Y0 | I161: 152 | J161: Y | L161: =dataout!L161 -> 5000 | M161: =dataout!T161 ->  | N161: 0 | O161: 152 | P161: LENOX | R161: 674 | S161: GILL MONTAGUE | T161: y
A162: =VALUE(E162) -> 153 | B162: 1 | C162: =IF(dataout!C162="Y","Y",IF(dataout!C162="T","T","N")) -> Y | D162: =IF(AND(dataout!C162="Y",dataout!D162="not in"),2,0) -> 0 | E162: 153 | F162: LEOMINSTER | G162: 1Y0 | I162: 153 | J162: Y | L162: =dataout!L162 -> 5000 | M162: =dataout!T162 -> 5000 | N162: 0 | O162: 153 | P162: LEOMINSTER | R162: 675 | S162: HAMILTON WENHAM | T162: y
A163: 154 | B163: 1 | C163: =IF(dataout!C163="Y","Y",IF(dataout!C163="T","T","N")) -> Y | D163: =IF(AND(dataout!C163="Y",dataout!D163="not in"),2,0) -> 0 | E163: 154 | F163: LEVERETT | G163: 1Y0 | I163: 154 | J163: Y | L163: =dataout!L163 -> 5000 | M163: =dataout!T163 ->  | N163: 0 | O163: 154 | P163: LEVERETT | R163: 680 | S163: HAMPDEN WILBRAHAM | T163: y
A164: 155 | B164: 1 | C164: =IF(dataout!C164="Y","Y",IF(dataout!C164="T","T","N")) -> N | D164: =IF(AND(dataout!C164="Y",dataout!D164="not in"),2,0) -> 0 | E164: 155 | F164: LEXINGTON | G164: 1N0 | H164: You have chosen a district that does not enroll school choice pupils in FY16 | I164: 155 | J164: N | L164: =dataout!L164 -> 0 | M164: =dataout!T164 -> 0 | N164: 0 | O164: 155 | P164: LEXINGTON | R164: 683 | S164: HAMPSHIRE | T164: y
A165: 156 | B165: 0 | C165: =IF(dataout!C165="Y","Y",IF(dataout!C165="T","T","N")) -> N | D165: =IF(AND(dataout!C165="Y",dataout!D165="not in"),2,0) -> 0 | E165: 156 | F165: LEYDEN | G165: 0N0 | H165: You have chosen a non-operating school district | I165: 156 | J165: N | L165: =dataout!L165 -> 0 | M165: =dataout!T165 -> 0 | N165: 0 | O165: 156 | P165: LEYDEN | R165: 685 | S165: HAWLEMONT | T165: y
A166: 157 | B166: 1 | C166: =IF(dataout!C166="Y","Y",IF(dataout!C166="T","T","N")) -> N | D166: =IF(AND(dataout!C166="Y",dataout!D166="not in"),2,0) -> 0 | E166: 157 | F166: LINCOLN | G166: 1N0 | H166: You have chosen a district that does not enroll school choice pupils in FY16 | I166: 157 | J166: N | L166: =dataout!L166 -> 0 | M166: =dataout!T166 -> 0 | N166: 0 | O166: 157 | P166: LINCOLN | R166: 710 | S166: MENDON UPTON | T166: y
A167: 158 | B167: 1 | C167: =IF(dataout!C167="Y","Y",IF(dataout!C167="T","T","N")) -> Y | D167: =IF(AND(dataout!C167="Y",dataout!D167="not in"),2,0) -> 0 | E167: 158 | F167: LITTLETON | G167: 1Y0 | I167: 158 | J167: Y | L167: =dataout!L167 -> 5000 | M167: =dataout!T167 ->  | N167: 0 | O167: 158 | P167: LITTLETON | R167: 712 | S167: MONOMOY | T167: y
A168: 159 | B168: 1 | C168: =IF(dataout!C168="Y","Y",IF(dataout!C168="T","T","N")) -> Y | D168: =IF(AND(dataout!C168="Y",dataout!D168="not in"),2,0) -> 0 | E168: 159 | F168: LONGMEADOW | G168: 1Y0 | I168: 159 | J168: Y | L168: =dataout!L168 -> 5000 | M168: =dataout!T168 -> 1176 | N168: 0 | O168: 159 | P168: LONGMEADOW | R168: 715 | S168: MOUNT GREYLOCK | T168: y
A169: 160 | B169: 1 | C169: =IF(dataout!C169="Y","Y",IF(dataout!C169="T","T","N")) -> N | D169: =IF(AND(dataout!C169="Y",dataout!D169="not in"),2,0) -> 0 | E169: 160 | F169: LOWELL | G169: 1N0 | H169: You have chosen a district that does not enroll school choice pupils in FY16 | I169: 160 | J169: N | L169: =dataout!L169 -> 0 | M169: =dataout!T169 -> 0 | N169: 0 | O169: 160 | P169: LOWELL | R169: 717 | S169: MOHAWK TRAIL | T169: y
A170: 161 | B170: 1 | C170: =IF(dataout!C170="Y","Y",IF(dataout!C170="T","T","N")) -> Y | D170: =IF(AND(dataout!C170="Y",dataout!D170="not in"),2,0) -> 0 | E170: 161 | F170: LUDLOW | G170: 1Y0 | I170: 161 | J170: Y | L170: =dataout!L170 -> 5000 | M170: =dataout!T170 -> 1067 | N170: 0 | O170: 161 | P170: LUDLOW | R170: 720 | S170: NARRAGANSETT | T170: y
A171: 162 | B171: 1 | C171: =IF(dataout!C171="Y","Y",IF(dataout!C171="T","T","N")) -> Y | D171: =IF(AND(dataout!C171="Y",dataout!D171="not in"),2,0) -> 0 | E171: 162 | F171: LUNENBURG | G171: 1Y0 | I171: 162 | J171: Y | L171: =dataout!L171 -> 5000 | M171: =dataout!T171 ->  | N171: 0 | O171: 162 | P171: LUNENBURG | R171: 725 | S171: NASHOBA | T171: y
A172: 163 | B172: 1 | C172: =IF(dataout!C172="Y","Y",IF(dataout!C172="T","T","N")) -> N | D172: =IF(AND(dataout!C172="Y",dataout!D172="not in"),2,0) -> 0 | E172: 163 | F172: LYNN | G172: 1N0 | H172: You have chosen a district that does not enroll school choice pupils in FY16 | I172: 163 | J172: N | L172: =dataout!L172 -> 0 | M172: =dataout!T172 -> 0 | N172: 0 | O172: 163 | P172: LYNN | R172: 728 | S172: NEW SALEM WENDELL | T172: y
A173: 164 | B173: 1 | C173: =IF(dataout!C173="Y","Y",IF(dataout!C173="T","T","N")) -> N | D173: =IF(AND(dataout!C173="Y",dataout!D173="not in"),2,0) -> 0 | E173: 164 | F173: LYNNFIELD | G173: 1N0 | H173: You have chosen a district that does not enroll school choice pupils in FY16 | I173: 164 | J173: N | L173: =dataout!L173 -> 0 | M173: =dataout!T173 -> 0 | N173: 0 | O173: 164 | P173: LYNNFIELD | R173: 735 | S173: NORTH MIDDLESEX | T173: y
A174: 165 | B174: 1 | C174: =IF(dataout!C174="Y","Y",IF(dataout!C174="T","T","N")) -> N | D174: =IF(AND(dataout!C174="Y",dataout!D174="not in"),2,0) -> 0 | E174: 165 | F174: MALDEN | G174: 1N0 | H174: You have chosen a district that does not enroll school choice pupils in FY16 | I174: 165 | J174: N | L174: =dataout!L174 -> 0 | M174: =dataout!T174 -> 0 | N174: 0 | O174: 165 | P174: MALDEN | R174: 740 | S174: OLD ROCHESTER | T174: y
A175: 166 | B175: 0 | C175: =IF(dataout!C175="Y","Y",IF(dataout!C175="T","T","N")) -> N | D175: =IF(AND(dataout!C175="Y",dataout!D175="not in"),2,0) -> 0 | E175: 166 | F175: MANCHESTER | G175: 0N0 | H175: You have chosen a non-operating school district | I175: 166 | J175: N | L175: =dataout!L175 -> 0 | M175: =dataout!T175 -> 0 | N175: 0 | O175: 166 | P175: MANCHESTER | R175: 745 | S175: PENTUCKET | T175: y
A176: 167 | B176: 1 | C176: =IF(dataout!C176="Y","Y",IF(dataout!C176="T","T","N")) -> N | D176: =IF(AND(dataout!C176="Y",dataout!D176="not in"),2,0) -> 0 | E176: 167 | F176: MANSFIELD | G176: 1N0 | H176: You have chosen a district that does not enroll school choice pupils in FY16 | I176: 167 | J176: N | L176: =dataout!L176 -> 0 | M176: =dataout!T176 -> 0 | N176: 0 | O176: 167 | P176: MANSFIELD | R176: 753 | S176: QUABBIN | T176: y
A177: 168 | B177: 1 | C177: =IF(dataout!C177="Y","Y",IF(dataout!C177="T","T","N")) -> N | D177: =IF(AND(dataout!C177="Y",dataout!D177="not in"),2,0) -> 0 | E177: 168 | F177: MARBLEHEAD | G177: 1N0 | H177: You have chosen a district that does not enroll school choice pupils in FY16 | I177: 168 | J177: N | L177: =dataout!L177 -> 0 | M177: =dataout!T177 -> 0 | N177: 0 | O177: 168 | P177: MARBLEHEAD | R177: 755 | S177: RALPH C MAHAR | T177: y
A178: 169 | B178: 1 | C178: =IF(dataout!C178="Y","Y",IF(dataout!C178="T","T","N")) -> N | D178: =IF(AND(dataout!C178="Y",dataout!D178="not in"),2,0) -> 0 | E178: 169 | F178: MARION | G178: 1N0 | H178: You have chosen a district that does not enroll school choice pupils in FY16 | I178: 169 | J178: N | L178: =dataout!L178 -> 0 | M178: =dataout!T178 -> 0 | N178: 0 | O178: 169 | P178: MARION | R178: 763 | S178: SOMERSET BERKLEY | T178: y
A179: 170 | B179: 1 | C179: =IF(dataout!C179="Y","Y",IF(dataout!C179="T","T","N")) -> N | D179: =IF(AND(dataout!C179="Y",dataout!D179="not in"),2,0) -> 0 | E179: 170 | F179: MARLBOROUGH | G179: 1N0 | H179: You have chosen a district that does not enroll school choice pupils in FY16 | I179: 170 | J179: N | L179: =dataout!L179 -> 0 | M179: =dataout!T179 -> 0 | N179: 0 | O179: 170 | P179: MARLBOROUGH | R179: 765 | S179: SOUTHERN BERKSHIRE | T179: y
A180: 171 | B180: 1 | C180: =IF(dataout!C180="Y","Y",IF(dataout!C180="T","T","N")) -> Y | D180: =IF(AND(dataout!C180="Y",dataout!D180="not in"),2,0) -> 0 | E180: 171 | F180: MARSHFIELD | G180: 1Y0 | I180: 171 | J180: Y | L180: =dataout!L180 -> 5000 | M180: =dataout!T180 -> 797 | N180: 0 | O180: 171 | P180: MARSHFIELD | R180: 767 | S180: SPENCER EAST BROOKFIELD | T180: y
A181: 172 | B181: 1 | C181: =IF(dataout!C181="Y","Y",IF(dataout!C181="T","T","N")) -> Y | D181: =IF(AND(dataout!C181="Y",dataout!D181="not in"),2,0) -> 0 | E181: 172 | F181: MASHPEE | G181: 1Y0 | I181: 172 | J181: Y | L181: =dataout!L181 -> 5000 | M181: =dataout!T181 ->  | N181: 0 | O181: 172 | P181: MASHPEE | R181: 770 | S181: TANTASQUA | T181: y
A182: 173 | B182: 1 | C182: =IF(dataout!C182="Y","Y",IF(dataout!C182="T","T","N")) -> Y | D182: =IF(AND(dataout!C182="Y",dataout!D182="not in"),2,0) -> 0 | E182: 173 | F182: MATTAPOISETT | G182: 1Y0 | I182: 173 | J182: Y | L182: =dataout!L182 -> 5000 | M182: =dataout!T182 ->  | N182: 0 | O182: 173 | P182: MATTAPOISETT | R182: 773 | S182: TRITON | T182: y
A183: 174 | B183: 1 | C183: =IF(dataout!C183="Y","Y",IF(dataout!C183="T","T","N")) -> Y | D183: =IF(AND(dataout!C183="Y",dataout!D183="not in"),2,0) -> 0 | E183: 174 | F183: MAYNARD | G183: 1Y0 | I183: 174 | J183: Y | L183: =dataout!L183 -> 5000 | M183: =dataout!T183 ->  | N183: 0 | O183: 174 | P183: MAYNARD | R183: 774 | S183: UPISLAND | T183: y
A184: =VALUE(E184) -> 175 | B184: 1 | C184: =IF(dataout!C184="Y","Y",IF(dataout!C184="T","T","N")) -> N | D184: =IF(AND(dataout!C184="Y",dataout!D184="not in"),2,0) -> 0 | E184: 175 | F184: MEDFIELD | G184: 1N0 | H184: You have chosen a district that does not enroll school choice pupils in FY16 | I184: 175 | J184: N | L184: =dataout!L184 -> 0 | M184: =dataout!T184 -> 0 | N184: 0 | O184: 175 | P184: MEDFIELD | R184: 775 | S184: WACHUSETT | T184: y
A185: =VALUE(E185) -> 176 | B185: 1 | C185: =IF(dataout!C185="Y","Y",IF(dataout!C185="T","T","N")) -> N | D185: =IF(AND(dataout!C185="Y",dataout!D185="not in"),2,0) -> 0 | E185: 176 | F185: MEDFORD | G185: 1N0 | H185: You have chosen a district that does not enroll school choice pupils in FY16 | I185: 176 | J185: N | L185: =dataout!L185 -> 0 | M185: =dataout!T185 -> 0 | N185: 0 | O185: 176 | P185: MEDFORD | R185: 778 | S185: QUABOAG | T185: y
A186: 177 | B186: 1 | C186: =IF(dataout!C186="Y","Y",IF(dataout!C186="T","T","N")) -> Y | D186: =IF(AND(dataout!C186="Y",dataout!D186="not in"),2,0) -> 0 | E186: 177 | F186: MEDWAY | G186: 1Y0 | I186: 177 | J186: Y | L186: =dataout!L186 -> 5000 | M186: =dataout!T186 ->  | N186: 0 | O186: 177 | P186: MEDWAY | R186: 780 | S186: WHITMAN HANSON | T186: y
A187: 178 | B187: 1 | C187: =IF(dataout!C187="Y","Y",IF(dataout!C187="T","T","N")) -> Y | D187: =IF(AND(dataout!C187="Y",dataout!D187="not in"),2,0) -> 0 | E187: 178 | F187: MELROSE | G187: 1Y0 | I187: 178 | J187: Y | L187: =dataout!L187 -> 5000 | M187: =dataout!T187 ->  | N187: 0 | O187: 178 | P187: MELROSE | R187: 817 | S187: NORTH SHORE | T187: y
A188: 179 | B188: 0 | C188: =IF(dataout!C188="Y","Y",IF(dataout!C188="T","T","N")) -> N | D188: =IF(AND(dataout!C188="Y",dataout!D188="not in"),2,0) -> 0 | E188: 179 | F188: MENDON | G188: 0N0 | H188: You have chosen a non-operating school district | I188: 179 | J188: N | L188: =dataout!L188 -> 0 | M188: =dataout!T188 -> 0 | N188: 0 | O188: 179 | P188: MENDON | R188: 823 | S188: GREATER LAWRENCE | T188: y
A189: 180 | B189: 0 | C189: =IF(dataout!C189="Y","Y",IF(dataout!C189="T","T","N")) -> N | D189: =IF(AND(dataout!C189="Y",dataout!D189="not in"),2,0) -> 0 | E189: 180 | F189: MERRIMAC | G189: 0N0 | H189: You have chosen a non-operating school district | I189: 180 | J189: N | L189: =dataout!L189 -> 0 | M189: =dataout!T189 -> 0 | N189: 0 | O189: 180 | P189: MERRIMAC | R189: 828 | S189: GREATER LOWELL | T189: y
A190: 181 | B190: 1 | C190: =IF(dataout!C190="Y","Y",IF(dataout!C190="T","T","N")) -> N | D190: =IF(AND(dataout!C190="Y",dataout!D190="not in"),2,0) -> 0 | E190: 181 | F190: METHUEN | G190: 1N0 | H190: You have chosen a district that does not enroll school choice pupils in FY16 | I190: 181 | J190: N | L190: =dataout!L190 -> 0 | M190: =dataout!T190 -> 0 | N190: 0 | O190: 181 | P190: METHUEN | R190: 832 | S190: MONTACHUSETT | T190: y
A191: 182 | B191: 1 | C191: =IF(dataout!C191="Y","Y",IF(dataout!C191="T","T","N")) -> Y | D191: =IF(AND(dataout!C191="Y",dataout!D191="not in"),2,0) -> 0 | E191: 182 | F191: MIDDLEBOROUGH | G191: 1Y0 | I191: 182 | J191: Y | L191: =dataout!L191 -> 5000 | M191: =dataout!T191 ->  | N191: 0 | O191: 182 | P191: MIDDLEBOROUGH | R191: 852 | S191: NASHOBA VALLEY | T191: y
A192: 183 | B192: 0 | C192: =IF(dataout!C192="Y","Y",IF(dataout!C192="T","T","N")) -> N | D192: =IF(AND(dataout!C192="Y",dataout!D192="not in"),2,0) -> 0 | E192: 183 | F192: MIDDLEFIELD | G192: 0N0 | H192: You have chosen a non-operating school district | I192: 183 | J192: N | L192: =dataout!L192 -> 0 | M192: =dataout!T192 -> 0 | N192: 0 | O192: 183 | P192: MIDDLEFIELD | R192: 853 | S192: NORTHEAST METROPOLITAN | T192: y
A193: 184 | B193: 1 | C193: =IF(dataout!C193="Y","Y",IF(dataout!C193="T","T","N")) -> N | D193: =IF(AND(dataout!C193="Y",dataout!D193="not in"),2,0) -> 0 | E193: 184 | F193: MIDDLETON | G193: 1N0 | H193: You have chosen a district that does not enroll school choice pupils in FY16 | I193: 184 | J193: N | L193: =dataout!L193 -> 0 | M193: =dataout!T193 -> 0 | N193: 0 | O193: 184 | P193: MIDDLETON | R193: 860 | S193: PATHFINDER | T193: y
A194: 185 | B194: 1 | C194: =IF(dataout!C194="Y","Y",IF(dataout!C194="T","T","N")) -> Y | D194: =IF(AND(dataout!C194="Y",dataout!D194="not in"),2,0) -> 0 | E194: 185 | F194: MILFORD | G194: 1Y0 | I194: 185 | J194: Y | L194: =dataout!L194 -> 5000 | M194: =dataout!T194 -> 801 | N194: 0 | O194: 185 | P194: MILFORD | R194: 885 | S194: WHITTIER | T194: y
A195: 186 | B195: 1 | C195: =IF(dataout!C195="Y","Y",IF(dataout!C195="T","T","N")) -> N | D195: =IF(AND(dataout!C195="Y",dataout!D195="not in"),2,0) -> 0 | E195: 186 | F195: MILLBURY | G195: 1N0 | H195: You have chosen a district that does not enroll school choice pupils in FY16 | I195: 186 | J195: N | L195: =dataout!L195 -> 0 | M195: =dataout!T195 -> 0 | N195: 0 | O195: 186 | P195: MILLBURY
A196: 187 | B196: 1 | C196: =IF(dataout!C196="Y","Y",IF(dataout!C196="T","T","N")) -> Y | D196: =IF(AND(dataout!C196="Y",dataout!D196="not in"),2,0) -> 0 | E196: 187 | F196: MILLIS | G196: 1Y0 | I196: 187 | J196: Y | L196: =dataout!L196 -> 5000 | M196: =dataout!T196 ->  | N196: 0 | O196: 187 | P196: MILLIS
A197: 188 | B197: 0 | C197: =IF(dataout!C197="Y","Y",IF(dataout!C197="T","T","N")) -> N | D197: =IF(AND(dataout!C197="Y",dataout!D197="not in"),2,0) -> 0 | E197: 188 | F197: MILLVILLE | G197: 0N0 | H197: You have chosen a non-operating school district | I197: 188 | J197: N | L197: =dataout!L197 -> 0 | M197: =dataout!T197 -> 0 | N197: 0 | O197: 188 | P197: MILLVILLE
A198: 189 | B198: 1 | C198: =IF(dataout!C198="Y","Y",IF(dataout!C198="T","T","N")) -> N | D198: =IF(AND(dataout!C198="Y",dataout!D198="not in"),2,0) -> 0 | E198: 189 | F198: MILTON | G198: 1N0 | H198: You have chosen a district that does not enroll school choice pupils in FY16 | I198: 189 | J198: N | L198: =dataout!L198 -> 0 | M198: =dataout!T198 -> 0 | N198: 0 | O198: 189 | P198: MILTON
A199: 190 | B199: 0 | C199: =IF(dataout!C199="Y","Y",IF(dataout!C199="T","T","N")) -> N | D199: =IF(AND(dataout!C199="Y",dataout!D199="not in"),2,0) -> 0 | E199: 190 | F199: MONROE | G199: 0N0 | H199: You have chosen a non-operating school district | I199: 190 | J199: N | L199: =dataout!L199 -> 0 | M199: =dataout!T199 -> 0 | N199: 0 | O199: 190 | P199: MONROE
A200: 191 | B200: 1 | C200: =IF(dataout!C200="Y","Y",IF(dataout!C200="T","T","N")) -> Y | D200: =IF(AND(dataout!C200="Y",dataout!D200="not in"),2,0) -> 0 | E200: 191 | F200: MONSON | G200: 1Y0 | I200: 191 | J200: Y | L200: =dataout!L200 -> 5000 | M200: =dataout!T200 ->  | N200: 0 | O200: 191 | P200: MONSON
A201: 192 | B201: 0 | C201: =IF(dataout!C201="Y","Y",IF(dataout!C201="T","T","N")) -> N | D201: =IF(AND(dataout!C201="Y",dataout!D201="not in"),2,0) -> 0 | E201: 192 | F201: MONTAGUE | G201: 0N0 | H201: You have chosen a non-operating school district | I201: 192 | J201: N | L201: =dataout!L201 -> 0 | M201: =dataout!T201 -> 0 | N201: 0 | O201: 192 | P201: MONTAGUE
... 246 more rows
